{"text_format":"1","workbook":"xlsx","n_sheets":22,"sheets":["ご記入にあたって","記入マニュアル","申込書","学校情報","GIGAスクールパック申込別紙","【社内用】社内受付情報","休日一覧","GIGAスクールパック（コンテンツ）","GIGAスクールパック（端末種別）","年月日","GIGA研修希望調書","CBT情報","エラー一覧","エラー番号処理対応一覧","選択肢マスタ_申込書","選択肢マスタ_学校情報","選択肢マスタ_その他","表示シートマスタ","コンテンツ＆備考マスタ","承諾項目マスタ","パッケージコンテンツセット","コンテンツプルダウン用"],"not_rendered":{"charts":0,"images":74,"macros":1,"external_links":0,"defined_names":49,"comments":0,"pivot_tables":0},"unopened":[],"bounds":{"document_bytes":16777216,"sheet_cells":100000,"rows_first":2000,"rows_last":500,"rows_between":2000,"halvings":0,"cell_chars":16384,"cell_head_chars":4096},"cells_cut":0,"cells_raw":0,"read":"whole","date_system":"1900"}

{"sheet":"ご記入にあたって","index":0,"n_rows":224,"n_cols":46,"rows_kept":224,"cut":false,"hidden":false,"merged":[[30,13,30,28],[37,2,37,7],[37,11,37,24],[40,3,40,33],[42,2,42,7],[179,4,179,27],[183,11,183,18],[183,26,183,32],[211,3,211,8],[211,10,211,15],[211,17,211,22],[2,0,2,45],[5,2,5,7],[5,9,5,14],[5,16,5,21],[5,23,5,28],[5,30,5,35],[5,37,5,42],[7,1,10,44],[14,22,14,43],[15,22,15,43],[18,2,18,7],[25,2,25,33],[16,22,16,42],[48,30,48,35],[52,2,52,7],[57,16,57,30],[71,2,71,7],[174,4,174,27],[48,2,48,7],[48,9,48,14],[48,16,48,21],[48,23,48,28]]}
[]
[null,null,null,null,null,null,null,null,null,null,null,null,null,null,null,null,null,null,null,null,null,null,null,null,null,null,null,null,null,null,null,null,null,null,null,null,null,null,null,null,null,null,null,null,null,"ver.20250708"]
["申込書のご記入にあたって"]
[]
[null,"お申し込み種類によって確認箇所が異なります。お申し込み種類に該当する下記マークの項目をご確認ください。共通の内容にはマークの貼付はありません。"]
[null,null,"各種有料コンテンツ",null,null,null,null,null,null,"まなホーダイ",null,null,null,null,null,null,"まなびポケットたんぽくん",null,null,null,null,null,null,"GIGAスクールパック",null,null,null,null,null,null,"MEXCBT",null,null,null,null,null,null,"まなびポケット登録情報変更"]
[]
[null,"教育クラウドプラットフォームサービス「まなびポケット」（以下、「本サービス」）は、NTTドコモビジネス株式会社の定める「教育クラウドプラットフォーム『まなびポケット』利用規約」に基づき提供しております。本サービスのお申し込みに際しては、事前に必ず「教育クラウドプラットフォーム「まなびポケット」利用規約」、「教育クラウドプラットフォームサービス「まなびポケット」重要事項説明」、及び「プライバシーポリシー」をご確認頂き、承諾された上でお申し込みください。詳細な内容につきましては当社販売担当者等にご確認ください。"]
[]
[]
[]
[]
[]
[null,"■利用規約等"]
[null,null,"・","教育クラウドプラットフォーム「まなびポケット」利用規約",null,null,null,null,null,null,null,null,null,null,null,null,null,null,null,null,null,null,"https://www.ntt.com/content/dam/nttcom/hq/jp/about-us/disclosure/tariff/pdf/c393.pdf"]
[null,null,"・","教育クラウドプラットフォームサービス「まなびポケット」重要事項説明",null,null,null,null,null,null,null,null,null,null,null,null,null,null,null,null,null,null,"https://manabipocket.ed-cl.com/wp/wp-content/uploads/2024/01/manabipocket_disclosure_statement.pdf"]
[null,null,"・","プライバシーポリシー",null,null,null,null,null,null,null,null,null,null,null,null,null,null,null,null,null,null,"https://www.ntt.com/about-us/hp/privacy.html"]
[]
[null,null,"GIGAスクールパック",null,null,null,null,null,null,"「GIGAスクールパック コンテンツ提供条件」を確認ください。"]
[null,null,null,null,null,null,null,null,null,"https://manabipocket.ed-cl.com/wp/wp-content/uploads/2024/02/giga_manapoke_overview.pdf"]
[]
[]
[]
[null,"■送付書類"]
[null,null,"最新版の申込書は下記URLからダウンロードいただけます。"]
[null,null,"https://manabipocket.ed-cl.com/applicationform_download/"]
[]
[null,null,"・","申込書「Excel原本（申込書・学校情報）」と「押印（個人印は不可）または署名の入ったページのPDF」をご送付ください。"]
[null,null,"・","外部IdP連携オプションをお申し込みの場合はメタデータをご送付ください。"]
[null,null,null,"メタデータ取得方法は、まなびポケットサポートサイトの外部IdP連携設定マニュアル（Google Workspace/Microsoft Entra(旧Azure AD)）をご参照ください。"]
[null,null,null,"まなびポケットサポートサイト",null,null,null,null,null,null,null,null,null,"https://manabipocket.ed-cl.com/support/manuals/"]
[]
[]
[null,null,null,null,null,null,null,"＋",null,null,null,null,null,null,null,null,"（＋）"]
[]
[]
[]
[null,null,"まなびポケットたんぽくん"]
[null,null,"教育委員会および私立学校はお申し込みいただけます。（公立学校のお申し込みは受け付けておりません）"]
[null,null,"・","端末情報シートを下記URLからダウンロードし、ご記入の上ご送付ください。"]
[null,null,null,"https://manabipocket.ed-cl.com/wp/wp-content/uploads/2024/02/manapoke_tanpokun_device_info_sheet.xlsx"]
[]
[null,null,"GIGAスクールパック"]
[null,null,"・","上記記載の送付書類に加え、本ファイルのGIGAスクールパック申込別紙シートへもご記入の上ご送付ください。"]
[]
[]
[]
[null,"■申込書送付先"]
[null,null,"各種有料コンテンツ",null,null,null,null,null,null,"まなホーダイ",null,null,null,null,null,null,"まなびポケットたんぽくん",null,null,null,null,null,null,"まなびポケット登録情報変更",null,null,null,null,null,null,"GIGAスクールパック"]
[null,null,"・","NTTドコモビジネス／ドコモビジネスソリューションズ販売担当または販売店経由でお申し込みください。"]
[null,null,"・","販売担当や販売店が不明な場合はまなびポケットサービスデスク宛にお問い合わせください。"]
[]
[null,null,"MEXCBT"]
[null,null,"・","文部科学省のMEXCBT申し込みページへお申し込みください。"]
[null,null,null,"その後、まなびポケットサービスデスクから送付されるメールに添付の申込書（本申込）にご記入いただき"]
[null,null,null,"まなびポケットサービスデスク宛にメールの件名を変更せずにご送付ください。"]
[]
[null,null,"まなびポケットサービスデスク　メールアドレス",null,null,null,null,null,null,null,null,null,null,null,null,null,"manabipocket@support.ed-cl.com"]
[]
[]
[]
[null,"■ご利用開始について"]
[null,null,"・","お申し込み内容に不備がないことを当社が確認してからご利用開始のご案内まで最短5営業日が必要です。"]
[null,null,"・","まなびポケットの新規申し込み／学校追加を含む変更申し込みの場合、まなびポケットサービスデスクより申込書にご記入いただいた"]
[null,null,null,"アカウント送付先メールアドレス宛にパスワードが設定されたアカウント通知書（Zipファイル）を送付いたします。"]
[null,null,null,"アカウント通知書は申込書にご記入いただいたアカウント通知書 解凍パスワードで解凍（展開）を行ってください。"]
[null,null,"・","学校追加を含まない変更または廃止をお申し込みの場合は、まなびポケットサービスデスクよりお申し込み受領メールを送付いたします。"]
[null,null,"・","児童・生徒、教職員が利用を開始するためには、学校管理者によるユーザー登録が必要です。"]
[null,null,"・","お申し込みのコンテンツによっては、コンテンツ利用開始のために別途登録処理等が必要なものがあります。"]
[null,null,null,"ご不明な場合はNTTドコモビジネス／ドコモビジネスソリューションズ販売担当または販売店へご確認ください。"]
[]
[null,null,"まなびポケットたんぽくん"]
[null,null,"・","まなびポケット たんぽくんのご利用開始日およびご契約期間については、サービスデスクよりご連絡いたします。"]
[null,null,null,"別途、損保ジャパンから「動産総合保険契約の保険金請求に関する覚書」が郵送されますので受領後に内容をご確認ください。"]
[]
[]
[]
[null,"■新規の申込書記入について"]
[null,null,"【新規申し込み共通】"]
[null,null,"新規でまなびポケットをお申し込みいただく教育委員会または学校が対象です。"]
[null,null,"お申し込み元、お申し込み種類を選択し、契約情報、お支払い情報、教育委員会情報、学校管理者情報、お申し込みコンテンツ等をご記入ください。"]
[null,null,"申込書の契約情報欄の申込区分は「新規」を選択します。"]
[null,null,"新規お申し込みの際には上部の「■送付書類」をご確認の上、必要書類をご送付ください。"]
[null,null,"・","ご契約者が教育委員会の場合"]
[null,null,null,"お申し込み元は「教育委員会」を選択します。"]
[null,null,null,"学校情報シートにはご利用予定のすべての学校情報およびコンテンツ申し込み情報をご記入ください。"]
[null,null,"・","ご契約者が学校の場合"]
[null,null,null,"お申し込み元は「学校単独（公立）」または「学校単独（私立国立）」を選択します。"]
[null,null,null,"学校情報シートにはご利用予定の学校情報およびコンテンツ申し込み情報をご記入ください。"]
[]
[]
[]
[null,"■変更の申込書記入について"]
[null,null,"【変更申し込み共通】"]
[null,null,"すでにまなびポケットをご契約いただいている教育委員会または学校が対象です。"]
[null,null,"お申し込み元、お申し込み種類を選択し、契約情報、お支払い情報、教育委員会情報、学校管理者情報、お申し込みコンテンツ等をご記入ください。"]
[null,null,"申込書の契約情報欄の申込区分は「変更」を選択し、申込内容詳細記載欄に変更に関する情報をご記入ください。"]
[null,null,"変更をお申し込みの際には上部の「■送付書類」をご確認の上、必要書類をご送付ください。"]
[null,null,"・","ご契約者が教育委員会の場合"]
[null,null,null,"お申し込み元は「教育委員会」を選択します。"]
[null,null,null,"学校情報シートには変更対象の学校情報と下記の変更種類に記載された内容に注意し、情報をご記入ください。"]
[null,null,"・","ご契約者が学校の場合"]
[null,null,null,"お申し込み元は「学校単独（公立）」または「学校単独（私立国立）」を選択します。"]
[null,null,null,"申込書シート、学校情報シートは下記の変更種類に記載された内容に注意し、情報をご記入ください。"]
[]
[null,null,"【変更種類】"]
[null,null,"・","まなびポケットの登録情報（契約情報、お支払い情報、教育委員会情報、学校管理者情報）の変更"]
[null,null,null,"申込書のお申し込み種類に「まなびポケット登録情報変更」を選択し、変更後の契約内容をご記入ください。"]
[null,null,"・","まなびポケットのご利用ID数のみ変更"]
[null,null,null,"申込書のお申し込み種類は「まなびポケット登録情報変更」を選択し、"]
[null,null,null,"変更後の合計ID数を学校情報シートのまなびポケットご利用ID数【総数】にご記入ください。"]
[null,null,"・","各種コンテンツのご利用ID数の追加"]
[null,null,null,"申込書のコンテンツ申し込み欄の数量および学校情報シートのID数に追加分の数量をご記入ください。"]
[null,null,"・","各種コンテンツの新規申し込み（まなびポケット既存環境あり）"]
[null,null,null,"申込書のコンテンツ申し込み欄および学校情報シートの対象コンテンツに関わる記入欄に追加するコンテンツの申し込み情報をご記入ください。"]
[null,null,null,"（ご利用中コンテンツの情報を記入する必要はありません）"]
[null,null,"・","各種コンテンツのご利用継続"]
[null,null,null,"申込書のコンテンツ申し込み欄および学校情報シートの対象コンテンツに関わる記入欄に継続するコンテンツの申し込み情報をご記入ください。"]
[null,null,"・","コンテンツの利用終了"]
[null,null,null,"まなびポケットの利用は継続し、コンテンツのみ利用終了する場合は申込書の契約情報の申込区分は「変更」、"]
[null,null,null,"コンテンツ申し込み欄の申し込み有無は「コンテンツ利用終了（無償のみ）」、コンテンツ名は利用を終了するコンテンツを選択してください。"]
[null,null,null,"複数校のコンテンツの利用終了をご希望の場合は学校情報シートに対象学校の情報を記入してください。"]
[null,null,null,"利用終了以外の変更申し込みがある場合は、申込書を分けてお申し込みください。"]
[null,null,null,"※ 無償コンテンツのみ利用終了の申し込みが可能です。"]
[null,null,null,"※ 有料コンテンツの終了の際は、変更申し込み書の提出は不要です。契約期間終了後にはコンテンツが表示されず、ご利用はできません。"]
[]
[]
[]
[null,"■廃止の申込書記入について"]
[null,null,"・","まなびポケットのご利用廃止をご希望の場合は、申込書の契約情報欄の申込区分は「廃止」を選択してください。"]
[null,null,"・","教育委員会よる一部の学校の廃止をご希望の場合は、申込書の契約情報欄の申込区分は「廃止」ではなく「変更」を選択します。"]
[null,null,null,"「学校情報」シートのまなびポケット欄は「廃止」を選択し、対象学校をご記入ください。"]
[]
[]
[]
[null,"■学校統廃合時のお申し込みについて"]
[null,null,"・","学校統廃合時には既存の学校は変更や廃止の申請、統合後の学校は新規（新設）や変更の申請を申込書で行います。"]
[null,null,null,"状況により新規／変更／廃止の申請パターンが異なりますので、学校統廃合パターン別の申込方法についてをご確認ください。"]
[null,null,null,"学校統廃合パターン別の申込方法について",null,null,null,null,null,null,null,null,null,null,null,null,"https://manabipocket.ed-cl.com/wp/wp-content/uploads/2025/02/manapokeSchool_merger.pdf"]
[]
[]
[]
[null,"■","外部IdP連携オプションについて"]
[null,null,"「IdP」とはIdentity Providerの略称で、外部IdP（クラウドサービス）などにアクセスするユーザーの認証情報を保存・管理するサービスのことです。"]
[null,null,"・","まなびポケットと連携可能な外部IdPはGoogle Workspace、Microsoft Entra ID（旧Azure AD）です。外部IdP連携設定後は"]
[null,null,null,"Google WorkspaceアカウントまたはMicrosoft  Entra ID（旧Azure AD）アカウントを利用し、まなびポケットにログインが可能になります。"]
[null,null,null,"（外部IdP連携を利用しない場合はまなびポケットへ登録したユーザーIDとパスワードでログインします）"]
[null,null,"・","外部IdPで利用しているログインに関わるユーザー情報（メールアドレスとパスワード）を一元管理することができます。"]
[null,null,"・","外部IdP連携オプションの設定対象アカウントは、学校管理者、教職員、児童・生徒です。"]
[null,null,null,"【学校情報シートの外部IdPオプションに関係する項目をご記入いただく際の注意事項】"]
[null,null,null,"・","お申し込みの場合は、学校情報シートへご準備いただいた外部IdP連携情報をご記入ください。"]
[null,null,null,null,"入力方法や詳細な注意事項については記入マニュアルシートをご確認ください。"]
[null,null,null,"・","外部IdP連携オプションお申し込みの際にはメタデータが必要です。取得方法等の詳細はサポートサイトに掲載のマニュアルをご参照ください。"]
[null,null,null,null,"まなびポケットサポートサイト",null,null,null,null,null,null,null,null,null,"https://manabipocket.ed-cl.com/support/manuals/"]
[]
[]
[]
[null,"■","グローバルIPアドレスによるアクセス制限について"]
[null,null,"グローバルIPアドレスによるアクセス制限とは、特定のグローバルIPアドレスからのみアクセスが可能となるアクセス権限設定のことです。"]
[null,null,"・","お申し込みをご希望の場合は、本ファイルの学校情報シートへご準備いただいたグローバルIPアドレスをご記入ください。"]
[null,null,"・","本オプションをお申し込みいただくことで、特定のグローバルIPアドレスからのみ「まなびポケット」にアクセスが可能となります。"]
[null,null,null,"【学校情報シートのグローバルIPアドレスによるアクセス制限に関わる項目をご記入いただく際の注意事項】"]
[null,null,null,"・","アクセス許可するグローバルIPアドレスは「xxx.xxx.xxx.xxx/yy」の形式でご記入ください。"]
[null,null,null,"・","許可するグローバルIPアドレスが複数ある場合はカンマ区切りでご記入ください。"]
[null,null,null,"・","アクセス制限対象は「児童・生徒のみ」「全校」のいずれかを選択してください。"]
[null,null,null,null,"　-　児童・生徒のみ：studentの権限を持つユーザーのみにアクセス制限がかかります。"]
[null,null,null,null,"　-　全校：全てのユーザーにアクセス制限がかかります。"]
[]
[]
[]
[null,"■その他"]
[null,null,null,"eboardについて"]
[null,null,null,"・","eboardはNPO法人eboardが提供するサービスです。"]
[null,null,null,"・","eboardのご利用条件等は eboard ユーザー利用規約をご参照ください。"]
[null,null,null,null,"https://info.eboard.jp/term_of_use"]
[]
[null,null,null,"EEVideoについて"]
[null,null,null,"・","EEVideoは株式会社エドテックが提供するサービスです。"]
[null,null,null,"・","EEVideoのご利用条件等は免責事項 - お問い合わせをご参照ください。"]
[null,null,null,null,"https://www.eevideo.net/m-pocket/menseki-gaxtukou-muryou-service.pdf"]
[]
[null,null,null,"Google/Microsoft 365について"]
[null,null,null,"・","Google/Microsoft 365はリンクアイコンを提供いたします。"]
[null,null,null,null,"（リンク先 ：  ",null,null,null,"Google",null,null,"https://www.google.co.jp/",null,null,null,null,null,null,null,null,"，","Microsoft 365　",null,null,null,null,"https://www.office.com/",null,null,null,null,null,null,"）"]
[null,null,null,"・","リンク先に関してのご質問やお問い合わせはお受けしておりません。"]
[]
[null,null,null,"NHK for Schoolについて"]
[null,null,null,"・","NHK for SchoolはNHKが提供するサービスです。"]
[null,null,null,"・","NHK for Schoolのご利用条件等はNHKインターネットサービス利用規約をご参照ください。",null,null,null,null,null,null,null,null,null,null,null,null,null,null,null,null,null,null,null,null,null,null,null,null,"https://www.nhk.or.jp/rules/"]
[]
[null,null,null,"SKYMENU Cloud Professional Editionについて"]
[null,null,null,"・","SKYMENU Cloud Professional EditionはＳｋｙ株式会社がするサービスです。"]
[null,null,null,"・","緊急時、Webサイトのパスワード設定、メールマガジン、その他特別に連絡が必要になった場合に限り、"]
[null,null,null,null,"Ｓｋｙ株式会社からご契約者のメールアドレス宛にご連絡する場合がございます。"]
[null,null,null,"・","ご契約者のメールアドレスは、『Ｓｋｙマネジメント基本方針（",null,null,null,null,null,null,null,null,null,null,null,null,null,null,null,null,"https://www.skygroup.jp/management/",null,null,null,null,null,null,null,null,null,null,null,"）』および"]
[null,null,null,null,"『個人情報の取り扱いについて（",null,null,null,null,null,null,null,null,null,"https://www2.sky-partner.net/privacy/",null,null,null,null,null,null,null,null,null,null,null,"）』に従い、適正にお取り扱い致します。"]
[]
[null,null,null,"学研まんがひみつ文庫について"]
[null,null,null,"・","学研まんがひみつ文庫は株式会社Gakkenが提供するサービスです。"]
[null,null,null,"・","学研まんがひみつ文庫のご利用条件等は「学研まんがひみつ文庫」 利用規約をご参照ください。",null,null,null,null,null,null,null,null,null,null,null,null,null,null,null,null,null,null,null,null,null,null,null,null,null,null,"https://ebook.gakken.jp/gk-himitsu/terms/"]
[]
[null,null,null,"防災学習ポータルサイト"]
[null,null,null,"・","防災学習ポータルサイトは国土交通省が提供するサービスです。"]
[null,null,null,"・","お問い合わせ先等は国土交通ホットラインステーションをご確認ください。",null,null,null,null,null,null,null,null,null,null,null,null,null,null,null,null,null,null,null,null,"https://www.mlit.go.jp/hotline/u_hotline_1503.html"]
[]
[null,null,null,"ロイロノート・スクール"]
[null,null,null,"・","ロイロノート・スクールは株式会社LoiLoが提供するサービスです。"]
[null,null,null,"・","ご利用校がロイロノートの利用契約があることを条件とし、ロイロノート・スクールのリンクアイコンを提供いたします。"]
[null,null,null,"・","お問い合わせ先等はロイロノートSupportをご確認ください。",null,null,null,null,null,null,null,null,null,null,null,null,null,null,null,null,null,"https://help.loilonote.app/--5cef436f975ad300174d03ff "]
[]
[null,null,null,"教育委員会への「まなびポケット」学校環境の提供について"]
[null,null,null,"各種有料コンテンツ",null,null,null,null,null,null,"まなホーダイ",null,null,null,null,null,null,"GIGAスクールパック"]
[null,null,null,"「まなびポケット」の研修や機能確認を目的に教育委員会向けに学校環境のご利用が可能です。ご希望の場合は下記に従ってお申し込みください。"]
[null,null,null,"・","学校名 ： ",null,null,null,null,"○○教育委員会学校（例：大手町市教育委員会学校）"]
[null,null,null,null,null,null,null,null,null,"※学校名変更のご要望は不可。また、お申し込み可能な学校数は1教育委員会につき１校まで。"]
[null,null,null,"・","お申し込み方法 ： ",null,null,null,null,"学校情報シートの学校名に「○○教育委員会学校」と記入し、通常のお申し込みと同様に"]
[null,null,null,null,null,null,null,null,null,"申込書「Excel原本（申込書・学校情報）」と「押印（個人印は不可）または署名の入ったPDF」をご送付ください。"]
[null,null,null,"・","お申し込み可能なID数 ： 下表参照"]
[null,null,null,null,"まなびポケットを利用（予定）している学校数",null,null,null,null,null,null,null,null,null,null,null,null,null,null,"お申し込み可能なID数の上限"]
[null,null,null,null,null,null,null,null,"10校以下",null,null,null,null,null,null,null,null,null," 80IDまで (教職員ID：40、児童・生徒ID：40まで)"]
[null,null,null,null,null,null,null,null,"30校以下",null,null,null,null,null,null,null,null,null,"160IDまで(教職員ID：80、児童・生徒ID：80まで)"]
[null,null,null,null,null,null,null,null,"50校以下",null,null,null,null,null,null,null,null,null,"240IDまで(教職員ID：120、児童・生徒ID：120まで)"]
[null,null,null,null,null,null,null,null,"51校以上",null,null,null,null,null,null,null,null,null,"320IDまで(教職員ID：160、児童・生徒ID：160まで)"]
[null,null,null,"※教育委員会学校での有料コンテンツの提供については事前に当社販売担当者にご相談の上、お申し込みください。"]

{"sheet":"記入マニュアル","index":1,"n_rows":1014,"n_cols":52,"rows_kept":1014,"cut":false,"hidden":true,"merged":[[355,1,355,52],[359,5,359,6],[386,6,386,20],[17,4,17,16],[19,4,19,16],[21,4,21,16],[23,1,23,52],[33,11,33,17],[0,12,0,21],[0,23,0,36],[0,39,0,52],[1,40,1,52],[3,1,3,52],[1,12,1,21],[5,2,15,3],[5,4,5,23],[6,4,6,23],[7,4,7,23],[8,4,8,23],[9,4,9,23],[10,4,10,23],[11,4,11,23],[13,4,13,12],[13,15,13,23],[15,4,15,16],[15,19,15,20],[388,6,388,20],[393,6,393,20],[394,6,394,20],[464,40,464,50],[469,36,469,44],[392,6,392,20],[496,1,496,52],[599,1,599,52],[709,1,709,52],[829,1,829,52],[946,1,946,51]]}
[null,"申込書記入マニュアル",null,null,null,null,null,null,null,null,null,null,"申込書シート記入マニュアル",null,null,null,null,null,null,null,null,null,null,"入力完了後の申込内容チェック→ファイル出力",null,null,null,null,null,null,null,null,null,null,null,null,null,null,null,"GIGAスクールパック申込別紙記入マニュアル"]
[null,null,null,null,null,null,null,null,null,null,null,null,"学校情報シート記入マニュアル",null,null,null,null,null,null,null,null,null,null,null,null,null,null,null,null,null,null,null,null,null,null,null,null,null,null,null,"【社内用】社内受付情報シート"]
[]
[null,"申込書ファイル記入　～　申込書提出　まで"]
[null,"背景色がグレーで表示されているセルは入力不要項目のセルです"]
[null,null,"申込書記入ファイル",null,"①　　申込書シートに必要項目を記入"]
[null,null,null,null,"↓"]
[null,null,null,null,"②　学校情報シートに必要項目を記入"]
[null,null,null,null,"↓"]
[null,null,null,null,"（③　GIGAスクールパック申込別紙シートを記入）",null,null,null,null,null,null,null,null,null,null,null,null,null,null,null,null,null,null,null,null,"※","GIGAスクールパックを申し込む場合のみ、記入シートが表示されます。"]
[null,null,null,null,"↓"]
[null,null,null,null,"④　申し込み内容チェックボタンクリック"]
[null,null,null,null,null,null,"↓","エラーなし",null,null,null,null,null,null,null,null,null,"↓","エラーあり"]
[null,null,null,null,"⑤　ファイル保存",null,null,null,null,null,null,null,null,null,null,"⑩　エラー一覧確認・修正"]
[null,null,null,null,null,null,null,null,"↓",null,null,null,null,null,null,null,null,null,null,"↓"]
[null,null,null,null,"⑥　印刷用ファイル出力ボタンクリック",null,null,null,null,null,null,null,null,null,null,null,null,null,null,"④へ"]
[null,null,null,null,null,null,null,null,null,null,"↓"]
[null,null,null,null,"⑦　印刷用ファイル　申込書シート出力"]
[null,null,null,null,null,null,null,null,null,null,"↓"]
[null,null,null,null,"⑧　押印（個人印不可）／署名・PDF化"]
[null,null,null,null,null,null,null,null,null,null,"↓"]
[null,null,null,null,"⑨　⑤と⑧のファイルを送付"]
[]
[null,"申込書シート"]
[]
[null,null,"ボタンと入力チェック状況"]
[null,null,"申込書シートの上部のボタンと入力チェック状況は使用する項目で説明しています。"]
[]
[]
[]
[]
[null,1,".","お申し込み元とお申し込み種類を選択します",null,null,null,null,null,null,null,null,null,null,null,null,null,"（この画面は申込書ファイルを開く時と、申し込み種類再選択ボタンをクリックした時に表示されます）"]
[null,null,null,"※","最新の申込書ファイルのバージョン確認およびダウンロードは",null,null,null,null,null,null,null,null,null,null,null,null,null,null,null,null,"https://manabipocket.ed-cl.com/applicationform_download/",null,null,null,null,null,null,null,null,null,null,null,null,null,null,null,null,null,null,null,null,null,"で行います。"]
[null,null,null,null,"本ファイルのバージョンは",null,null,null,null,null,null,"ご記入にあたってシート",null,null,null,null,null,null,"で確認できます。"]
[null,null,null,"・","お申し込み元",null,null,null,null,null,null,null,"ご契約される組織（教育委員会／学校）を選択します。"]
[null,null,null,"・","お申し込み種類",null,null,null,null,null,null,null,"ご契約されるお申し込み種類を選択します。"]
[null,null,null,"・","申込書作成を開始する",null,null,null,null,null,null,null,"お申し込み元とお申し込み種類を選択後にクリックすることで、申し込みに必要なシートと項目が設定されます。"]
[null,null,null,"選択した組み合わせにより、注意事項がポップアップ表示される場合がありますのでご確認ください。"]
[]
[]
[]
[]
[]
[null,null,null,null,null,null,null,null,null,null,null,null,null,null,null,null,null,null,null,null,null,null,"お申し込み元・申し込み種類を変更する場合は申し込み種類再選択ボタンをクリックにより"]
[null,null,null,null,null,null,null,null,null,null,null,null,null,null,null,null,null,null,null,null,null,null,"本画面を表示し、変更します。"]
[null,null,null,null,null,null,null,null,null,null,null,null,null,null,null,null,null,null,null,null,null,null,"※","変更した場合は入力済の内容が初期状態に戻る項目があります。"]
[]
[]
[]
[]
[]
[]
[]
[]
[]
[]
[]
[]
[]
[]
[]
[]
[null,{"$f":"B32+1","v":2},".","承諾項目を確認の上、チェックをします"]
[null,null,null,"・","承諾項目",null,null,null,"表示された全ての承諾項目をご確認の上、チェックをします。押印／署名済PDFファイルも必ずチェックが入った状態でご送付ください。"]
[]
[]
[]
[]
[]
[null,{"$f":"B63+1","v":3},".","契約情報を入力します"]
[null,null,null,"・","申込区分～メールアドレス①",null,null,null,null,null,null,null,null,"入力必須"]
[null,null,null,"・","申込区分",null,null,null,null,null,null,null,null,"まなびポケットを新規で申し込みする場合は「新規」"]
[null,null,null,null,null,null,null,null,null,null,null,null,null,"コンテンツ申し込みやID/台数の追加、契約内容のご変更の場合は「変更」"]
[null,null,null,null,null,null,null,null,null,null,null,null,null,"まなびポケットを解約する場合は「廃止」を選択してください。「廃止」選択により利用開始希望年月日が廃止希望年月日になります。"]
[null,null,null,"・","申込内容詳細記載欄",null,null,null,null,null,null,null,null,"本申し込みにより申請する内容をご入力ください。"]
[null,null,null,"・","利用開始希望年月日",null,null,null,null,null,null,null,null,"お申し込み日（受付日を0日）から５営業日目以降の日付を入力します。"]
[null,null,null,"・","販売店名",null,null,null,null,null,null,null,null,"NTTドコモビジネス株式会社以外の販売店経由でお申し込みする場合に入力します。"]
[]
[]
[]
[]
[]
[]
[]
[]
[]
[]
[]
[]
[]
[]
[]
[]
[]
[]
[]
[]
[]
[]
[null,{"$f":"B70+1","v":4},".","アカウント通知書 送付先情報を入力します"]
[null,null,null,"・","アカウント送付先メールアドレス",null,null,null,null,null,null,null,null,null,"①は入力必須です。"]
[null,null,null,null,null,null,null,null,null,null,null,null,null,null,"ご入力のメールアドレス宛にまなびポケットサービスデスクよりアカウント通知書、お申し込み受領のご連絡を送付いたします。"]
[]
[]
[]
[]
[]
[]
[]
[null,{"$f":"B100+1","v":5},".","アカウント通知書 解凍パスワードを入力します"]
[null,null,null,"まなびポケットの新規申し込み／学校追加を含む変更申し込みの場合にご入力ください。"]
[null,null,null,"まなびポケットサービスデスクより送付されたアカウント通知書（Zipファイル）を解凍（展開）するためのパスワードです。"]
[null,null,null,"・","パスワード",null,null,null,"設定可能文字数：半角英数記号7～16文字。"]
[null,null,null,null,null,null,null,null,"パスワードには半角英数字記号が使用できます。"]
[null,null,null,null,null,null,null,null,"利用可能記号　：　@ # $ % ^ & * - _ + = [ ] { } | : , .? / ` ~; !"]
[]
[]
[]
[]
[null,{"$f":"B110+1","v":6},".","お支払い情報を入力します"]
[null,null,null,"・","支払方法",null,null,null,null,null,"支払方法を選択します。選択した支払方法によってお支払い情報の入力不要項目の背景色がグレーになります。"]
[null,null,null,"・","請求書送付先",null,null,null,null,null,"請求書送付先を選択します。「契約者情報と同じ」を選択した場合、入力不要項目の背景色がグレーになります。"]
[null,null,null,"・","上記以外の項目",null,null,null,null,null,"背景色がグレーの項目および任意項目以外は入力必須"]
[null,null,null,null,null,null,null,null,null,null,"（","「ご契約者住所をコピーする」をクリックすると契約情報のご契約者住所に入力した内容を請求書送付先住所に表示します）"]
[]
[]
[]
[]
[]
[]
[]
[]
[]
[]
[]
[]
[]
[]
[]
[]
[]
[null,{"$f":"B120+1","v":7},".","申込書選択のお申し込み元に「教育委員会」を選択した場合は、教育委員会情報"]
[null,null,null,"「学校単独（公立）」または「学校単独（私立国立）」を選択した場合は、学校・学校管理者情報を入力します"]
[null,null,null,"教育委員会名や管理者名、住所等は契約情報に入力した内容が表示されます。必要に応じてご変更ください。"]
[null,null,null,"・","各入力項目",null,null,null,null,"背景色がグレーの項目および任意項目以外は入力必須"]
[null,null,null,null,null,null,null,null,null,"（","「ご契約名義・責任者情報をコピーする」をクリックすると契約情報のご契約者名義に入力された内容を"]
[null,null,null,null,null,null,null,null,null,null,"お申し込み元が教育委員会の場合：教育委員会名／学校法人名に"]
[null,null,null,null,null,null,null,null,null,null,"お申し込み元が学校単独の場合：学校名に"]
[null,null,null,null,null,null,null,null,null,null,"お申し込み責任者名に入力された内容は管理者名に表示します）"]
[null,null,null,null,null,null,null,null,null,"（","「ご契約者住所をコピーする」をクリックすると契約情報のご契約者住所に入力した内容を住所に表示します）"]
[]
[null,null,null,null,null,null,null,null,null,null,null,null,null,null,null,null,null,null,null,null,null,null,null,null,null,null,null,null,null,null,null,null,null,null,null,null,null,null,null,null,"（教育委員会）"]
[]
[]
[]
[]
[]
[]
[]
[]
[]
[]
[]
[]
[]
[]
[]
[]
[]
[]
[]
[]
[]
[null,null,null,null,null,null,null,null,null,null,null,null,null,null,null,null,null,null,null,null,null,null,null,null,null,null,null,null,null,null,null,null,null,null,null,null,null,null,null,null,null,"（学校単独）"]
[]
[]
[]
[]
[]
[]
[]
[]
[]
[null,{"$f":"B142+1","v":8},".","コンテンツ申し込み欄の入力をします"]
[null,null,null,"申し込むコンテンツが11個以上の場合には、コンテンツ名の右にある「入力欄を追加する」ボタンをクリックし非表示の入力欄を表示します。"]
[null,null,null,"・","申し込み有無",null,null,null,null,null,null,"コンテンツを申し込みする場合は、申し込み有無に「申し込みする」を選択します。"]
[null,null,null,null,null,null,null,null,null,null,null,"コンテンツを申し込みしない場合は、申し込み有無に「申し込みしない」を選択します。"]
[null,null,null,null,null,null,null,null,null,null,null,"無償コンテンツの利用を終了する場合は申し込み有無に「コンテンツ利用終了（無償のみ）」を選択します。"]
[null,null,null,"・","コンテンツ名",null,null,null,null,null,null,"今回申し込むコンテンツ名を選択します。※すでにお申し込み済のコンテンツを選択する必要はありません。"]
[null,null,null,"・","利用月数",null,null,null,null,null,null,"申し込みするコンテンツの利用月数を入力します。",null,null,null,null,null,null,null,null,null,null,null,null,null,null,"※","無料コンテンツの場合は入力不要"]
[null,null,null,null,null,null,null,null,null,null,null,"（日単位ではなく利用開始月および利用終了月を1ヶ月とした月数・・・1月20日利用開始3月31日利用終了の場合：３）"]
[null,null,null,"・","利用期間（開始日）",null,null,null,null,null,null,"お申し込み日（受付日を0日）から５営業日目以降の日付を入力します。"]
[null,null,null,null,null,null,null,null,null,null,null,"※コンテンツによって利用開始までに要する期間が異なりますので利用開始可能な日付をご確認の上、ご入力ください。"]
[null,null,null,"・","利用期間（終了日）",null,null,null,null,null,null,"利用月数と利用期間（開始日）を入力すると、利用期間（終了日）は自動で表示されます。",null,null,null,null,null,null,null,null,null,null,null,null,null,null,null,null,null,null,null,null,null,null,null,null,null,null,null,"※","無料コンテンツの場合は入力不要"]
[null,null,null,"・","数量（課金対象）",null,null,null,null,null,null,"課金対象の数量を入力します。 トライアル利用の場合は利用数を入力します。※無料コンテンツの場合は入力不要"]
[null,null,null,null,null,null,null,null,null,null,null,"追加申し込みの場合は、追加分の数量を入力します。すでに申し込み済のIDなどの数量は含めないでください。"]
[null,null,null,"・","単位",null,null,null,null,null,null,"申し込むコンテンツに定められている単位を選択します。※無料コンテンツの場合は選択不要"]
[null,null,null,"・","単価",null,null,null,null,null,null,"申し込むコンテンツで定められている単価を入力します。単位が一式の場合には単価がないため「0」を入力します。"]
[null,null,null,null,null,null,null,null,null,null,null,"※","販売店契約によるお申し込みの場合は入力の必要はありません。"]
[null,null,null,"・","小計金額",null,null,null,null,null,null,"数量×単価で算出される値または単位が一式の場合は一式の金額を入力します。"]
[null,null,null,null,null,null,null,null,null,null,null,"※","販売店契約によるお申し込みの場合は入力の必要はありません。"]
[null,null,null,"・","注意事項",null,null,null,null,null,null,"選択したコンテンツ名によって表示される「注意事項」が異なります。表示された際にはご確認ください。"]
[]
[]
[]
[]
[]
[]
[]
[]
[]
[]
[]
[]
[]
[]
[]
[]
[]
[]
[null,{"$f":"B184+1","v":9},".","申し込むコンテンツに初期費用等がある場合は費用に関する情報を入力します（初期費用などがない場合には入力不要です）"]
[null,null,null,"・","コンテンツ名",null,null,null,null,"今回申し込むコンテンツの中で初期費用や研修費用、設定費用等があるコンテンツ名を選択します。"]
[null,null,null,"・","費用分類",null,null,null,null,"どのような主旨の費用であるかを入力します。　例：初期費用、研修費用、設定費用、管理費用…"]
[null,null,null,"・","単位",null,null,null,null,"申し込むコンテンツに定められている単位を選択します。"]
[null,null,null,"・","小計金額",null,null,null,null,"数量×単価で算出される値または単位が一式の場合は一式の金額を入力します。"]
[null,null,null,null,null,null,null,null,null,"※","販売店契約によるお申し込みの場合は入力の必要はありません。"]
[]
[]
[]
[]
[]
[]
[]
[]
[]
[]
[]
[null,{"$f":"B221+1","v":10},".","コンテンツの学年別表示設定の申し込み有無を入力します"]
[null,null,null,"コンテンツの学年別表示設定については、下記URLの【コンテンツの学年別表示設定について】をご覧ください。"]
[null,null,null,"https://manabipocket.ed-cl.com/wp/wp-content/uploads/2024/02/content_grade_display_setting.pdf"]
[null,null,null,"・","申し込み有無",null,null,null,null,"コンテンツの学年別表示設定を申し込みする場合は申し込み有無に「申し込みする」を選択します。"]
[null,null,null,null,null,null,null,null,null,"申し込みをしない場合は申し込み有無に「申し込みしない」を選択します。"]
[null,null,null,null,null,null,null,null,null,"すでにご利用中の場合や期間を空けず継続して利用する場合には申し込むことができません。申し込み有無に「申し込み済み」を選択します。"]
[null,null,null,"※","（教育委員会等で）複数校を申し込みの際に「申し込みする／申し込みしない／申し込み済み」が学校によって異なる場合は以下を参考に選択してください。"]
[null,null,null,null,"・","１校でも「申し込みする」学校があれば「申し込みする」を選択します。"]
[null,null,null,null,"・","今回の申し込みでは新しく「申し込みする」学校がなく「申し込みしない／申し込み済み」が混在する場合は「申し込み済み」を選択します。"]
[]
[]
[]
[]
[null,{"$f":"B238+1","v":11},".","「まなホーダイ」をお申し込みの場合に入力します"]
[null,null,null,"・","申し込み有無",null,null,null,null,null,null,"申し込みする場合は、申し込み有無に「申し込みする」を選択します。"]
[null,null,null,null,null,null,null,null,null,null,null,"申し込みしない場合は、申し込み有無に「申し込みしない」を選択します。"]
[null,null,null,"・","月数",null,null,null,null,null,null,"利用月数を入力します。"]
[null,null,null,null,null,null,null,null,null,null,null,"（日単位ではなく利用開始月および利用終了月を1ヶ月とした月数・・・1月20日利用開始3月10日利用終了の場合：３）"]
[null,null,null,"・","利用期間（開始日）",null,null,null,null,null,null,"お申し込み日（受付日を0日）から５営業日目以降の日付を入力します。"]
[null,null,null,"・","利用期間（終了日）",null,null,null,null,null,null,"利用月数と利用期間（開始日）を入力すると、利用期間（終了日）は自動で表示されます。"]
[null,null,null,"・","数量",null,null,null,null,null,null,"課金対象の数量を入力します。"]
[null,null,null,null,null,null,null,null,null,null,null,"追加申し込みの場合は、追加分の数量を入力します。すでに申し込み済のID数は含めないでください。"]
[null,null,null,"・","単位",null,null,null,null,null,null,"（「ID」固定）"]
[null,null,null,"・","単価",null,null,null,null,null,null,"単価を入力します。"]
[null,null,null,null,null,null,null,null,null,null,null,"※","販売店契約によるお申し込みの場合は入力の必要はありません。"]
[null,null,null,"・","合計金額",null,null,null,null,null,null,"数量×単価で算出される値または単位が一式の場合は一式の金額を入力します。"]
[null,null,null,null,null,null,null,null,null,null,null,"※","販売店契約によるお申し込みの場合は入力の必要はありません。"]
[]
[]
[]
[]
[]
[null,{"$f":"B251+1","v":12},".","「まなぴポケットたんぽくん」をお申し込みの場合に入力します"]
[null,null,null,"・","申し込み有無",null,null,null,null,null,null,"申し込みする場合は申し込み有無に「申し込みする」を選択します。"]
[null,null,null,null,null,null,null,null,null,null,null,"申し込みしない場合や申し込み済の場合は申し込み有無に「申し込みしない」を選択します。入力不要項目の背景色がグレーになります。"]
[null,null,null,"・","サービスプラン名",null,null,null,null,null,null,"申し込みをするサービスプラン名を選択します。"]
[null,null,null,"・","アドミスキーム",null,null,null,null,null,null,"申し込みする場合は申し込み有無に「申し込みする」を選択します。"]
[null,null,null,null,null,null,null,null,null,null,null,"申し込みしない場合や申し込み済の場合は申し込み有無に「申し込みしない」を選択します。入力不要項目の背景色がグレーになります。"]
[null,null,null,"・","月数",null,null,null,null,null,null,"まなぴポケットたんぽくんの利用月数を入力します。"]
[null,null,null,null,null,null,null,null,null,null,null,"（日単位ではなく利用開始月および利用終了月を1ヶ月とした月数・・・1月20日利用開始3月10日利用終了の場合：３）"]
[null,null,null,"・","利用期間（開始日）",null,null,null,null,null,null,"お申し込み日（受付日を0日）から10営業日目以降の日付利用開始希望日を入力します。"]
[null,null,null,"・","利用期間（終了日）",null,null,null,null,null,null,"利用月数と利用期間（開始日）を入力すると、利用期間（終了日）は自動で表示されます。"]
[null,null,null,"・","数量",null,null,null,null,null,null,"課金対象の数量を入力します。"]
[null,null,null,"・","単位",null,null,null,null,null,null,"（「台」固定）"]
[null,null,null,"・","単価",null,null,null,null,null,null,"申し込むサービスプラン／アドミスキームの単価を入力します。"]
[null,null,null,null,null,null,null,null,null,null,null,"※","販売店契約によるお申し込みの場合は入力の必要はありません。"]
[null,null,null,"・","小計金額",null,null,null,null,null,null,"数量×単価で算出される値を入力します。"]
[null,null,null,null,null,null,null,null,null,null,null,"※","販売店契約によるお申し込みの場合は入力の必要はありません。"]
[null,null,null,"・","上記以外の項目",null,null,null,null,null,null,"入力必須"]
[null,null,null,"・","ご担当者情報",null,null,null,null,null,null,"必要に応じてご入力ください。"]
[null,null,null,null,null,null,null,null,null,null,null,"（","「ご契約者住所をコピーする」をクリックすると契約情報のご契約者住所に入力した内容を住所に表示します）"]
[]
[]
[]
[]
[]
[]
[]
[]
[]
[]
[]
[]
[]
[]
[]
[]
[]
[]
[]
[]
[]
[]
[]
[]
[]
[]
[]
[null,{"$f":"B270+1","v":13},".","「まなぴポケット　多要素認証サービス」をお申し込みの場合に入力します"]
[null,null,null,"・","申し込み有無",null,null,null,null,null,null,"申し込みする場合は申し込み有無に「申し込みする」を選択し、申し込み情報を入力します。"]
[null,null,null,null,null,null,null,null,null,null,null,"申し込みしない場合や申し込み済の場合は申し込み有無に「申し込みしない」を選択します。"]
[null,null,null,"・","月数",null,null,null,null,null,null,"申し込みするコンテンツの利用月数を入力します。"]
[null,null,null,null,null,null,null,null,null,null,null,"（日単位ではなく利用開始月および利用終了月を1ヶ月とした月数・・・1月20日利用開始3月31日利用終了の場合：３）"]
[null,null,null,"・","利用期間（開始日）",null,null,null,null,null,null,"お申し込み日（受付日を0日）から5営業日目以降の日付利用開始希望日を入力します。"]
[null,null,null,null,null,null,null,null,null,null,null,"※校校務支援システムの利用開始日はお申し込みいただいた校務支援システム提供元事業者よりご連絡いたします。"]
[null,null,null,"・","利用期間（終了日）",null,null,null,null,null,null,"利用月数と利用期間（開始日）を入力すると、利用期間（終了日）は自動で表示されます。"]
[null,null,null,"・","数量",null,null,null,null,null,null,"課金対象の数量を入力します。"]
[null,null,null,"・","単位",null,null,null,null,null,null,"（「ID」固定）"]
[null,null,null,"・","単価",null,null,null,null,null,null,"申し込む校務支援システムの単価を入力します。"]
[null,null,null,null,null,null,null,null,null,null,null,"※","販売店契約によるお申し込みの場合は入力の必要はありません。"]
[null,null,null,"・","小計金額",null,null,null,null,null,null,"数量×単価で算出される値を入力します。"]
[null,null,null,null,null,null,null,null,null,null,null,"※","販売店契約によるお申し込みの場合は入力の必要はありません。"]
[]
[]
[]
[]
[]
[]
[]
[]
[]
[null,{"$f":"B316+1","v":14},".","お申し込み合計金額を確認します"]
[null,null,null,"各申し込み情報に入力した金額の合計値の税抜金額と税込金額が表示されます。"]
[]
[]
[]
[]
[]
[]
[null,{"$f":"B339+1","v":15},".","お客さまご要望記事欄を入力します"]
[null,null,null,"・","お客さまご要望記事欄",null,null,null,null,null,null,null,"変更内容の詳細など、必要に応じてご入力ください。"]
[]
[]
[]
[]
[]
[]
[]
[null,"学校情報シート"]
[]
[null,null,"ボタン"]
[null,null,"学校情報シートの左上部のボタンは使用する項目（お申し込みコンテンツ欄）で説明しています。"]
[null,null,"詳細は",null,null,"こちら",null,"をご確認ください。"]
[]
[]
[]
[]
[null,1,".","学校情報を入力します"]
[null,null,null,"・","まなびポケット",null,null,null,null,"対象の学校のまなびポケットの環境をプルダウンリストから選択します。"]
[null,null,null,"・","学校コード",null,null,null,null,"まなびポケットの学校コード(5桁)を入力します。まなびポケットが既存環境無し（新規申し込み）の場合は入力不要です。"]
[null,null,null,"・","文科省コード",null,null,null,null,"文部科学省から発行されている学校コード(13桁)を入力します。（申し込むコンテンツによっては非表示）"]
[null,null,null,"・","学校種",null,null,null,null,"学校種を選択します。（教育委員会学校の学校種は小学校または中学校のいずれかを選択します）"]
[null,null,null,"・","学校名",null,null,null,null,"学校名を入力します。"]
[null,null,null,"・","学校住所",null,null,null,null,"郵便番号、住所、電話番号を入力します。郵便番号および電話番号はハイフン（-）あり、なしどちらでも構いません。"]
[]
[]
[]
[]
[]
[]
[]
[]
[]
[]
[]
[null,{"$f":"B365+1","v":2},".","外部IdP連携オプションの情報を入力します"]
[null,null,null,"外部IdP連携オプションの概要についてはご入力にあたってシートの「外部IdP連携オプションについて」をご確認ください"]
[null,null,null,"・","外部IdP連携オプション"]
[null,null,null,null,"※まなびポケットの既存環境がすでにある場合にも選択してください"]
[null,null,null,null,null,null,"\"外部IdP種別\"を申し込む",null,null,null,null,null,null,null,null,null,null,null,null,null,null,null,"外部IdP連携オプションの新規申込の場合に選択します。"]
[null,null,null,null,null,null,null,null,null,null,null,null,null,null,null,null,null,null,null,null,null,null,"申し込みにあたってはメタデータのご送付が必要です。"]
[null,null,null,null,null,null,"利用中（\"外部IdP種別\"、外部認証ID変更あり）",null,null,null,null,null,null,null,null,null,null,null,null,null,null,null,"ご利用中かつ学校管理者アカウントの外部認証IDを変更する場合に選択します。"]
[null,null,null,null,null,null,null,null,null,null,null,null,null,null,null,null,null,null,null,null,null,null,"※まなびポケット利用開始当初に配布された学校管理者アカウントの外部認証ID変更の場合のみ"]
[null,null,null,null,null,null,null,null,null,null,null,null,null,null,null,null,null,null,null,null,null,null,null,"それ以外の学校管理者アカウントの外部認証IDはユーザー管理画面で変更可能なため申請不要"]
[null,null,null,null,null,null,null,null,null,null,null,null,null,null,null,null,null,null,null,null,null,null,"※変更後の外部認証IDのドメインが登録済のドメインとは異なる場合、メタデータのご送付が必要です。"]
[null,null,null,null,null,null,"利用中（\"外部IdP種別\"、外部認証ID変更なし）",null,null,null,null,null,null,null,null,null,null,null,null,null,null,null,"ご利用中かつ学校管理者アカウントの外部認証IDに変更がない場合に選択します。"]
[null,null,null,null,null,null,"申し込みしない",null,null,null,null,null,null,null,null,null,null,null,null,null,null,null,"外部IdP連携オプションを申し込みしない場合に選択します。"]
[null,null,null,null,null,null,"利用停止",null,null,null,null,null,null,null,null,null,null,null,null,null,null,null,"外部IdP連携をやめる場合に選択（まなびポケットのユーザー情報を使用したログイン方法へ変更）"]
[null,null,null,null,null,null,null,null,null,null,null,null,null,null,null,null,null,null,null,null,null,null,"アカウント通知書を再度発行するため、申込書シートのアカウント通知書 解凍パスワードをご入力ください。"]
[null,null,null,"・","学校管理者アカウント（外部認証ID）",null,null,null,null,null,null,null,null,null,null,null,null,"外部IdP連携オプションの新規申込または外部認証IDを変更する場合に設定する外部認証IDを入力します。"]
[null,null,null,null,null,null,null,null,null,null,null,null,null,null,null,null,null,"Google Workspace/Microsoft  Entra ID（旧Azure AD）にて作成したアカウントのメールアドレスを入力します。"]
[null,null,null,"・","外部IdP連携オプション設定希望日",null,null,null,null,null,null,null,null,null,null,null,null,"まなびポケットご利用開始後の外部IdP連携オプションの新規申込、外部認証ID変更、利用停止の場合に入力します。"]
[null,null,null,null,null,null,null,null,null,null,null,null,null,null,null,null,null,"※まなびポケットご利用開始後に設定変更した場合、保護者以外のユーザーはログイン手順が変更になります。"]
[null,null,null,null,null,null,null,null,null,null,null,null,null,null,null,null,null,"設定希望日はお申し込み日（受付日を0日）から５営業日目以降の日付を入力します。"]
[null,null,null,null,null,null,null,null,null,null,null,null,null,null,null,null,null,"（土日祝日や年末年始の休業期間は設定指定外日付）"]
[]
[]
[]
[]
[]
[]
[]
[]
[]
[]
[]
[]
[]
[null,{"$f":"B383+1","v":3},".","まなびポケットご利用ID数（総数）を入力します"]
[null,null,null,"・","児童・生徒ID数",null,null,null,null,null,"まなびポケットを利用する児童・生徒ID数を入力します。",null,null,null,null,null,null,null,null,null,null,null,null,null,null,null,null,"※","コンテンツ利用ID数ではありません"]
[null,null,null,"・","教職員ID数",null,null,null,null,null,"まなびポケットを利用する教職員ID数を入力します。",null,null,null,null,null,null,null,null,null,null,null,null,null,null,null,"※","コンテンツ利用ID数ではありません"]
[]
[]
[]
[]
[]
[]
[]
[null,{"$f":"B416+1","v":4},".","グローバルIPアドレスによるアクセス制限の情報を入力します"]
[null,null,null,"グローバルIPによるアクセス制限についてはご記入にあたってシートの「■その他」に記載の「グローバルIPアドレスによるアクセス制限について」をご確認ください"]
[null,null,null,"・","申し込み有無",null,null,null,null,null,null,null,null,null,null,null,"申し込みの有無を選択します。申し込みしない／申し込み済みを選択すると入力不要項目の背景色がグレーになります。"]
[null,null,null,"・","アクセス許可するグローバルIPアドレス",null,null,null,null,null,null,null,null,null,null,null,"アクセス許可するグローバルIPアドレスは「xxx.xxx.xxx.xxx/yy」の形式で入力します。"]
[null,null,null,"・","アクセス制限対象",null,null,null,null,null,null,null,null,null,null,null,"アクセス制限対象を選択します。"]
[]
[]
[]
[]
[]
[]
[]
[]
[]
[]
[null,{"$f":"B426+1","v":5},".","ご利用中の端末を選択します"]
[null,null,null,"・","該当する端末に○を選択します。"]
[]
[]
[]
[]
[]
[]
[null,{"$f":"B441+1","v":6},".","まなホーダイ　・　まなびポケットたんぽくん　・　まなびポケット　多要素認証サービスの申し込み有無を選択します"]
[null,null,null,"・","申し込み有無",null,null,null,null,"申し込みの有無を選択します。"]
[null,null,null,null,null,null,null,null,null,"申込書シートの申し込み有無に「申し込みしない」を選択した場合、入力不要項目となり背景色がグレーになるため再度選択する必要はありません。"]
[]
[]
[]
[]
[]
[]
[]
[]
[]
[null,{"$f":"B449+1","v":7},".","お申し込みコンテンツに関わる情報を入力します"]
[null,null,null,"申込書シートの申し込みコンテンツ欄で選択したコンテンツによっては入力不要項目があります。入力不要な場合は背景色がグレー／非表示になります。"]
[null,null,null,"・","コンテンツ名",null,null,null,null,null,null,null,null,"申込書シートの申し込みコンテンツ欄で選択したコンテンツ名が表示されます。"]
[null,null,null,"・","ご利用開始日",null,null,null,null,null,null,null,null,"利用期間（開始日）を入力　または　「申込書シートからコンテンツ情報反映」ボタンをクリックし、"]
[null,null,null,null,null,null,null,null,null,null,null,null,null,"表示される画面でご利用開始日と利用月数を申込書シートからコピーします。（操作手順：",null,null,null,null,null,null,null,null,null,null,null,null,null,null,null,null,null,null,null,null,null,null,null,null,null,null,"申込書シートからコンテンツ情報反映",null,null,null,null,null,null,null,null,null,null,"）"]
[null,null,null,"・","利用月数",null,null,null,null,null,null,null,null,"利用月数を入力します（無料コンテンツの場合は空白（入力不要））"]
[null,null,null,"・","ID数（児童・生徒、教職員）",null,null,null,null,null,null,null,null,"対象コンテンツを利用する児童・生徒の課金対象のID数を入力します。追加申し込みの場合は、追加分のID数を入力します。"]
[null,null,null,null,null,null,null,null,null,null,null,null,null,"無料コンテンツまたはトライアル利用の場合は利用ID数を入力します。"]
[null,null,null,"・","学年別表示設定",null,null,null,null,null,null,null,null,"対象コンテンツのの学年別表示設定の申し込み有無を入力　または「コンテンツ学年別表示設定」ボタンをクリックし、表示される画面で"]
[null,null,null,null,null,null,null,null,null,null,null,null,null,"学校種や学校別にコンテンツを利用する学年を設定できます。",null,null,null,null,null,null,null,null,null,null,null,null,null,null,null,null,null,"（操作手順：",null,null,null,null,"コンテンツ学年別表示設定",null,null,null,null,null,null,null,null,"）"]
[null,null,null,null,null,null,null,null,null,null,null,null,null,"申込書シートのコンテンツの学年別表示設定の申し込み有無に「申し込みしない」を選択すると入力不要項目の背景色がグレーになります。"]
[null,null,null,"・","対象学年",null,null,null,null,null,null,null,null,"コンテンツ表示を設定する対象学年を入力します。"]
[null,null,null,null,null,null,null,null,null,null,null,null,null,"※　まなびポケットサービスデスクでは学年別表示設定は行いません。開通後、学校管理者アカウントで設定を行ってください。"]
[null,null,null,null,null,null,null,null,null,null,null,null,null,"コンテンツの学年別表示設定については、下記URLの【コンテンツの学年別表示設定について】をご覧ください。"]
[null,null,null,null,null,null,null,null,null,null,null,null,null,"https://manabipocket.ed-cl.com/wp/wp-content/uploads/2024/02/content_grade_display_setting.pdf"]
[null,null,null,"・","継続の有無",null,null,null,null,null,null,null,null,"コンテンツ利用履歴（新規／新規（切替）／継続）を選択します。"]
[null,null,null,null,null,null,null,null,null,null,null,null,null,"対象コンテンツの初回申し込みまたは契約期間終了後の再申し込みの場合は「新規」、契約期間を空けずに申し込む場合は「継続」"]
[null,null,null,null,null,null,null,null,null,null,null,null,null,"まなびポケット経由以外で利用しているコンテンツをまなびポケット経由のSSO接続方式へ切り替える場合は「新規（切替）」を選択します。"]
[]
[]
[]
[]
[]
[]
[]
[]
[]
[]
[]
[null,{"$f":"B461+1","v":8},".","備考欄を入力します"]
[null,null,null,"必要に応じてご入力ください。"]
[]
[]
[]
[]
[]
[null,"入力完了後の申込内容チェック　→　ファイル出力"]
[]
[null,null,"申し込み内容を入力後、申し込み内容チェックボタンをクリックし、入力状態に不備がないかチェックを行います。"]
[null,null,"申込書シートの入力チェック状況と学校情報シートの入力チェック状況が「OK」であれば申込書の完成です。「NG」でとなった場合には修正を行います。"]
[]
[null,1,".","申し込み内容チェックボタンをクリックします"]
[]
[]
[]
[null,{"$f":"B502+1","v":2},".","チェック開始のメッセージボックスの「はい」をクリックします"]
[]
[]
[]
[]
[]
[]
[]
[]
[]
[]
[null,{"$f":"B506+1","v":3},".","申込書シートおよび学校情報シートに不備がない場合は入力チェック状況が「OK」となり、完了です。この状態でファイルを保存しファイル出力を行います",null,null,null,null,null,null,null,null,null,null,null,null,null,null,null,null,null,null,null,null,null,null,null,null,null,null,null,null,null,null,null,null,null,null,null,null,null,null,null,null,null,null,null,null,null,"7に進みます"]
[null,null,null,"入力チェック状況が「NG」の場合は　４　へ進みます"]
[]
[]
[]
[]
[null,{"$f":"B517+1","v":4},".","入力内容に不備があった場合、エラーメッセージと入力チェック状況に「NG」が表示されます"]
[null,null,null,"エラーメッセージの「OK」をクリックするとエラー一覧シートに遷移します"]
[]
[]
[]
[]
[]
[]
[]
[]
[]
[]
[]
[]
[]
[null,{"$f":"B523+1","v":5},".","エラー一覧には不備のあるシート名、セル、エラー内容が表示されます。表示されているセルの青字のリンクをクリックすることで対象セルへ移動します。"]
[]
[]
[]
[]
[]
[]
[]
[]
[]
[]
[]
[]
[]
[null,{"$f":"B538+1","v":6},".","不備のあるセルはエラー内容のコメントと共に色付きでマークされます。"]
[null,null,null,"対象箇所を更新後、再度「申し込み内容チェック」ボタンをクリックします。",null,null,null,null,null,null,null,null,null,null,null,null,null,null,null,null,null,null,null,null,null,"１に戻ります。"]
[]
[]
[]
[]
[]
[]
[]
[]
[null,{"$f":"B552+1","v":7},".","押印／署名を行う印刷用ファイルを出力するため、印刷用ファイル出力ボタンをクリックします。"]
[]
[]
[]
[]
[null,{"$f":"B562+1","v":8},".","作成完了のメッセージボックスの「OK」をクリックします。"]
[]
[]
[]
[]
[]
[]
[]
[]
[]
[]
[null,{"$f":"B567+1","v":9},".","申込書シートと学校情報シートのみのファイルが作成されます。"]
[null,null,null,"申込書シートの用紙サイズはA4で印刷範囲はお支払い情報のメールアドレス①までに設定されています。印刷範囲の縮小拡大の必要があれば調整してください。"]
[null,null,null,"学校情報シートの用紙サイズはA3で印刷範囲はすべての列を1ページに印刷されるように設定されています。印刷範囲の縮小拡大の必要があれば調整してください。"]
[null,null,null,"（GIGAスクールパック申込別紙シートは印刷用ファイルには含まれません）"]
[]
[]
[]
[]
[]
[]
[]
[]
[]
[]
[]
[]
[]
[]
[null,{"$f":"B578+1","v":10},".","申込書シートを印刷し、提出用に押印（個人印不可）／署名したものをPDFファイルで保存します。"]
[]
[]
[]
[null,"申込書シートからコンテンツ情報反映"]
[]
[null,null,null,null,null,null,null,null,null,null,null,"申込書シートのコンテンツ利用料欄の申し込み有無に「申し込みする」を選択し、1つ以上のコンテンツを選択した場合に表示されるボタンです。"]
[null,null,null,null,null,null,null,null,null,null,null,"申込書シートに入力したコンテンツの利用月数と利用期間（開始日）をお申し込みコンテンツの利用月数とご利用開始日に反映します。"]
[]
[]
[null,1,".","申込書シートに入力したコンテンツの利用月数と利用期間（開始日）を反映する対象学校または学校種を選択します"]
[null,null,null,"・","対象学校",null,null,null,null,null,"利用月数と利用期間（開始日）を反映する学校を選択します(複数選択可)。"]
[null,null,null,null,null,null,null,null,null,null,"学校名の列に入力済の学校名のみが対象学校欄に表示されます。"]
[null,null,null,"・","学校種",null,null,null,null,null,"利用月数と利用期間（開始日）を反映する学校種を選択します(複数選択可)。"]
[null,null,null,null,null,null,null,null,null,null,"学校種を選択する場合は学校名の選択は不要です。選択した学校種に対して情報反映がされます。"]
[]
[]
[]
[]
[]
[]
[]
[]
[]
[]
[]
[]
[]
[]
[]
[]
[]
[]
[]
[]
[null,{"$f":"B606+1","v":2},".","コンテンツの利用月数と利用期間（開始日）を反映するコンテンツ名を選択します"]
[null,null,null,"・","コンテンツ名",null,null,null,"申込書シートのコンテンツ申し込みで選択したコンテンツ名が表示されます。"]
[null,null,null,null,null,null,null,null,"申込書シートに入力したコンテンツの利用月数と利用期間（開始日）を反映したいコンテンツを選択します。"]
[]
[null,null,null,null,null,null,null,null,null,null,null,null,null,null,null,null,null,null,null,null,null,null,null,null,null,null,null,null,"選択例①）"]
[null,null,null,null,null,null,null,null,null,null,null,null,null,null,null,null,null,null,null,null,null,null,null,null,null,null,null,null,"対象学校：1校選択"]
[null,null,null,null,null,null,null,null,null,null,null,null,null,null,null,null,null,null,null,null,null,null,null,null,null,null,null,null,"2コンテンツ選択"]
[null,null,null,null,null,null,null,null,null,null,null,null,null,null,null,null,null,null,null,null,null,null,null,null,null,null,null,null,"1コンテンツ未選択"]
[]
[null,null,null,null,null,null,null,null,null,null,null,null,null,null,null,null,null,null,null,null,null,null,null,null,null,null,null,null,"この設定で反映した場合、選択した学校（1校）に対して"]
[null,null,null,null,null,null,null,null,null,null,null,null,null,null,null,null,null,null,null,null,null,null,null,null,null,null,null,null,"申込書シートに入力した2コンテンツの利用月数と利用期間（開始日）が"]
[null,null,null,null,null,null,null,null,null,null,null,null,null,null,null,null,null,null,null,null,null,null,null,null,null,null,null,null,"学校情報シートの利用月数とご利用開始日に反映されます。"]
[]
[null,null,null,null,null,null,null,null,null,null,null,null,null,null,null,null,null,null,null,null,null,null,null,null,null,null,null,null,"未選択の学校にはいずれのコンテンツの利用月数とご利用開始日は反映されず"]
[null,null,null,null,null,null,null,null,null,null,null,null,null,null,null,null,null,null,null,null,null,null,null,null,null,null,null,null,"未選択の1コンテンツはどの学校にも反映されません。"]
[]
[]
[]
[]
[]
[]
[null,null,null,null,null,null,null,null,null,null,null,null,null,null,null,null,null,null,null,null,null,null,null,null,null,null,null,null,"選択例②）"]
[null,null,null,null,null,null,null,null,null,null,null,null,null,null,null,null,null,null,null,null,null,null,null,null,null,null,null,null,"学校種：中学校選択"]
[null,null,null,null,null,null,null,null,null,null,null,null,null,null,null,null,null,null,null,null,null,null,null,null,null,null,null,null,"全コンテンツ選択"]
[]
[null,null,null,null,null,null,null,null,null,null,null,null,null,null,null,null,null,null,null,null,null,null,null,null,null,null,null,null,"この設定で反映した場合、選択した学校種（中学校）に対して"]
[null,null,null,null,null,null,null,null,null,null,null,null,null,null,null,null,null,null,null,null,null,null,null,null,null,null,null,null,"申込書シートに入力した全コンテンツの利用月数と利用期間（開始日）が"]
[null,null,null,null,null,null,null,null,null,null,null,null,null,null,null,null,null,null,null,null,null,null,null,null,null,null,null,null,"学校情報シートの利用月数とご利用開始日に反映されます。"]
[]
[null,null,null,null,null,null,null,null,null,null,null,null,null,null,null,null,null,null,null,null,null,null,null,null,null,null,null,null,"未選択の学校種にはいずれのコンテンツの利用月数とご利用開始日は反映されません。"]
[]
[]
[]
[]
[]
[]
[]
[]
[]
[null,{"$f":"B631+1","v":3},".","「反映する」ボタンをクリックします"]
[null,null,null,"選択した学校・学校種・コンテンツの条件に該当する学校やコンテンツにご利用開始日・利用月数が反映されます。"]
[null,null,null,"※","「反映する」ボタンクリック後も画面は閉じず、設定を続けられます。（例：小学校にAコンテンツを反映した後、続けて中学校にBコンテンツを反映）"]
[]
[null,null,null,null,null,null,null,null,null,null,null,null,null,null,null,null,null,null,null,null,null,null,null,null,null,null,null,null,"選択例③）"]
[null,null,null,null,null,null,null,null,null,null,null,null,null,null,null,null,null,null,null,null,null,null,null,null,null,null,null,null,"対象学校：全校選択"]
[null,null,null,null,null,null,null,null,null,null,null,null,null,null,null,null,null,null,null,null,null,null,null,null,null,null,null,null,"全コンテンツ選択"]
[]
[null,null,null,null,null,null,null,null,null,null,null,null,null,null,null,null,null,null,null,null,null,null,null,null,null,null,null,null,"この設定で反映した場合、選択した全校に対して"]
[null,null,null,null,null,null,null,null,null,null,null,null,null,null,null,null,null,null,null,null,null,null,null,null,null,null,null,null,"申込書シートに入力した全コンテンツの利用月数と利用期間（開始日）が"]
[null,null,null,null,null,null,null,null,null,null,null,null,null,null,null,null,null,null,null,null,null,null,null,null,null,null,null,null,"学校情報シートの利用月数とご利用開始日に反映されます。"]
[]
[]
[]
[]
[]
[]
[]
[]
[]
[null,null,"反映前"]
[]
[]
[]
[]
[]
[]
[]
[]
[]
[null,null,"反映後"]
[]
[]
[]
[]
[]
[]
[]
[]
[]
[null,"コンテンツ学年別表示設定"]
[]
[null,null,null,null,null,null,null,null,null,null,null,"申込書シートのコンテンツの学年別表示設定の申し込み有無に「申し込みする」を選択した場合に表示されるボタンです。"]
[null,null,null,null,null,null,null,null,null,null,null,"学年ごとにコンテンツの表示／非表示を学校側で設定する場合に、表示する学年を申請するための項目に一括で情報を入力します。"]
[]
[]
[null,1,".","コンテンツ表示する学年を制限する対象学校または学校種を選択します。"]
[null,null,null,"・","対象学校",null,null,null,null,null,"コンテンツ表示する学年を制限する学校を選択します(複数選択可)。"]
[null,null,null,null,null,null,null,null,null,null,"学校名の列に入力済の学校名のみが対象学校欄に表示されます。"]
[null,null,null,"・","学校種",null,null,null,null,null,"コンテンツ表示する学年を制限する学校種を選択します(複数選択可)。"]
[null,null,null,null,null,null,null,null,null,null,"学校種を選択する場合は学校名の選択は不要です。選択した学校種に対して情報反映がされます。"]
[]
[]
[]
[]
[]
[]
[]
[]
[]
[]
[]
[]
[]
[]
[]
[]
[]
[]
[]
[null,{"$f":"B716+1","v":2},".","対象学年に設定する学年を選択します"]
[null,null,null,"・","学年選択",null,null,null,"対象学年に設定したい学年を選択します。"]
[null,null,null,null,null,null,null,null,"学年選択の項目に該当する学年がない場合は、その他に適切な学年名を入力すると入力した学年が対象学年へ反映されます。"]
[]
[]
[]
[]
[]
[]
[]
[]
[]
[]
[]
[]
[]
[]
[]
[]
[]
[]
[]
[]
[null,{"$f":"B740+1","v":3},".","コンテンツ表示する学年を制限するコンテンツ名を選択します"]
[null,null,null,"・","コンテンツ名",null,null,null,"申込書シートのコンテンツ申し込みで選択したコンテンツ名が表示されます。"]
[null,null,null,null,null,null,null,null,"コンテンツ表示する学年を制限するコンテンツを選択します。"]
[null,null,null,null,null,null,null,null,"（学年別表示設定の必要がないコンテンツは表示されません）"]
[]
[]
[]
[]
[]
[]
[]
[]
[]
[]
[]
[]
[]
[]
[]
[]
[]
[]
[]
[]
[null,4,".","「反映する」ボタンをクリックします。"]
[null,null,null,"選択した学校・学校種・コンテンツの条件に該当する学校やコンテンツの学年別表示設定欄に「申し込みする」と選択した対象学年が反映されます。"]
[null,null,null,"※","「反映する」ボタンクリック後も画面は閉じず、設定を続けられます。（例：小学校の5，6年にコンテンツAを反映した後、続けて中学校の2年にコンテンツBを反映）"]
[null,null,null,null,"設定が完了後は「キャンセル」ボタンもしくはフォーム右上の「×」ボタンで画面を閉じてください。"]
[]
[]
[]
[]
[]
[]
[]
[]
[]
[]
[]
[]
[]
[]
[]
[]
[]
[]
[]
[]
[null,null,"反映前"]
[]
[]
[]
[]
[]
[]
[]
[]
[null,null,"反映後"]
[]
[]
[]
[]
[]
[]
[]
[]
[]
[null,"GIGAスクールパック申込別紙シート"]
[]
[null,"■","GIGAスクールパック　ご利用端末およびコンテンツ情報"]
[null,null,"GIGAスクールパックをお申し込みの場合には、ご入力が必要です。"]
[]
[null,1,".","GIGAスクールパック契約内容を入力します"]
[null,null,null,"・","契約パッケージ",null,null,null,null,"申込書シートのお申し込み種類で選択したパッケージ名が表示されます。"]
[null,null,null,"・","契約端末数",null,null,null,null,"児童・生徒および教職員が使用する契約端末数を入力します。"]
[null,null,null,"・","端末種別",null,null,null,null,"ご契約の端末種別を選択します。"]
[null,null,null,"・","メーカー",null,null,null,null,"ご契約のメーカーを選択します。選択した端末種別とメーカーを選択することによりGIGAスクールパック コンテンツの一覧が自動で表示されます。"]
[null,null,null,"・","型番",null,null,null,null,"ご契約の型番を選択します。"]
[]
[]
[]
[]
[]
[]
[]
[]
[]
[]
[]
[]
[null,{"$f":"B835+1","v":2},".","GIGAスクールパック　コンテンツおよびポータル機能の利用開始希望日の入力と表示内容を確認します。"]
[null,null,null,"・","コンテンツ・ポータル機能　利用開始希望日",null,null,null,null,null,null,null,null,null,null,null,null,null,"お申し込み日（受付日を0日）から５営業日目以降の日付を選択します。"]
[null,null,null,null,null,null,null,null,null,null,null,null,null,null,null,null,null,null,"選択した年月日が利用期間の開始日に表示されます。"]
[null,null,null,"【コンテンツ】"]
[null,null,null,"・","コンテンツ名",null,null,null,null,"GIGAスクールパック契約内容の端末種別とメーカーを選択すると表示されます。選択内容によって表示されるコンテンツが異なります。"]
[null,null,null,null,null,null,null,null,null,"変更はできません。"]
[null,null,null,null,null,null,null,null,null,"GIGAスクールパック　応用パッケージをお申し込みで他コンテンツをお申し込みされる場合は申込書のコンテンツ申し込み利用料欄にご入力ください。"]
[null,null,null,"・","利用月数",null,null,null,null,"GIGAスクールパック契約内容の端末種別とメーカーを選択すると表示されます。"]
[null,null,null,null,null,null,null,null,null,"GIGAスクールパックのパッケージとして提供する期間です。空欄は利用期限がないコンテンツです。"]
[null,null,null,null,null,null,null,null,null,"変更はできません。"]
[null,null,null,"・","利用期間",null,null,null,null,"選択した利用開始希望日を開始日に表示します。終了日は利用月数の最終月の末日が表示されます。"]
[null,null,null,null,null,null,null,null,null,"すでにお申し込み済のコンテンツは既存の契約期間を優先します。"]
[null,null,null,null,null,null,null,null,null,"変更はできません。"]
[null,null,null,"・","備考",null,null,null,null,"コンテンツに関する注意事項などが表示されますので、ご確認ください。"]
[null,null,null,"【ポータル機能】"]
[null,null,null,"・","機能名",null,null,null,null,"GIGAスクールパックでご提供するポータルの機能名です。"]
[null,null,null,"・","利用期間",null,null,null,null,"選択した利用開始希望日を開始日に表示します。終了日は利用開始日の年度を初年度として5年度目の年度末（3月31日）が表示されます。"]
[null,null,null,null,null,null,null,null,null,"（例：2025/05/15を利用開始日とした場合、29年度末の2030/03/31日が終了日です）"]
[null,null,null,null,null,null,null,null,null,"GIGAスクールパックのパッケージとして提供する期間です。"]
[null,null,null,null,null,null,null,null,null,"変更はできません。"]
[null,null,null,"・","備考",null,null,null,null,"ポータル機能に関する注意事項などが表示されますので、ご確認ください。"]
[]
[]
[]
[]
[]
[]
[]
[]
[]
[]
[]
[]
[]
[]
[]
[]
[]
[null,{"$f":"B853+1","v":3},".","GIGAスクールパックお申し込みに関わるご要望記事欄を入力します"]
[null,null,null,"・","お客さまご要望記事欄",null,null,null,null,null,null,"必要に応じてご入力ください。"]
[]
[]
[]
[]
[]
[]
[]
[null,"■","まなびポケット研修に関する希望調書"]
[null,null,"ポータル機能やコンテンツについてのオンライン研修をご希望の場合にご入力ください。"]
[]
[null,1,".","研修に関する連絡先"]
[null,null,null,"研修に関わるご担当者の情報を入力します。"]
[null,null,null,"メールアドレス②を除くすべての項目が入力必須です。"]
[]
[]
[]
[]
[]
[]
[]
[]
[]
[]
[]
[]
[]
[]
[]
[]
[]
[]
[]
[]
[]
[]
[null,2,".","研修申し込みヒアリング"]
[null,null,null,"研修に関する事前説明のご希望期間および教職員向け研修会ご希望時期間を選択します。"]
[null,null,null,"すべての項目が入力必須です。"]
[]
[]
[]
[]
[]
[]
[]
[null,3,".","研修に関わるご要望記事欄を入力します"]
[null,null,null,"必要に応じてご入力ください。"]
[]
[]
[]
[]
[]
[]
[]
[null,"【社内用】社内受付情報シート（お客さまによる入力は不要です）"]
[]
[null,{"$f":"1","v":1},".","お客さま受付部門を入力します"]
[null,null,null,"アカウント通知書、お申し込み受領のご連絡をこの欄に入力されたメールアドレス宛（担当者）に送付いたします。"]
[null,null,null,"メールアドレス②、営業卸見積番号を除く枠内すべての項目が入力必須です。"]
[]
[]
[]
[]
[]
[]
[]
[]
[]
[]
[]
[]
[]
[null,{"$f":"B949 +1","v":2},".","お客さま対応部門を入力します"]
[null,null,null,"・","お客さま受付部門に記入の販売方法が代理店（手数料）の場合に記入します。"]
[]
[]
[]
[]
[]
[]
[]
[]
[]
[]
[]
[]
[]
[]
[null,{"$f":"B965 +1","v":3},".","スマートエデュケーション推進室およびまなびポケットサービスデスク間の情報共有欄です。"]
[]
[]
[]
[]
[]
[]
[]
[]
[]
[]
[]
[]
[]
[]
[]
[]
[]
[]
[]
[]
[]
[]
[]
[]
[]
[]
[]
[]
[]
[]
[]
[]
[null,null,null,null,null,null,null,null,null,null,null,null,null,null,null,null,null,null,null,null,null,null,null,null,null,null,null,null,null,null,null,null,null,null,null,null,null,null,null,null,null,null,null,null,null,null,null,null,null,"以上"]

{"sheet":"申込書","index":2,"n_rows":192,"n_cols":51,"rows_kept":192,"cut":false,"hidden":true,"merged":[[191,1,191,50],[185,1,185,50],[186,1,186,45],[186,46,186,50],[141,2,141,11],[141,33,141,37],[141,38,141,50],[141,27,141,32],[141,12,141,26],[157,22,157,33],[187,1,187,45],[187,46,187,50],[174,1,174,9],[174,10,174,38],[174,39,174,50],[175,1,175,9],[175,10,175,38],[175,39,175,50],[172,1,172,9],[172,10,172,38],[172,39,172,50],[173,1,173,9],[173,10,173,38],[173,39,173,50],[140,2,140,11],[140,33,140,37],[140,38,140,50],[140,27,140,32],[140,12,140,26],[143,2,143,11],[143,33,143,37],[143,38,143,50],[143,27,143,32],[143,12,143,26],[142,2,142,11],[142,33,142,37],[142,38,142,50],[142,27,142,32],[142,12,142,26],[139,2,139,11],[139,33,139,37],[139,38,139,50],[139,27,139,32],[139,12,139,26],[138,2,138,11],[138,33,138,37],[138,38,138,50],[138,27,138,32],[138,12,138,26],[137,2,137,11],[137,33,137,37],[137,38,137,50],[137,27,137,32],[137,12,137,26],[136,2,136,11],[136,33,136,37],[136,38,136,50],[136,27,136,32],[136,12,136,26],[135,12,135,26],[134,27,134,32],[134,12,134,26],[132,1,132,50],[129,2,129,11],[129,12,129,14],[129,15,129,18],[129,20,129,23],[129,24,129,26],[129,27,129,28],[129,29,129,32],[129,33,129,37],[129,38,129,50],[130,1,130,45],[133,38,133,50],[133,33,133,37],[133,2,133,11],[133,27,133,32],[133,12,133,26],[130,46,130,50],[135,2,135,11],[135,33,135,37],[128,2,128,11],[128,12,128,14],[128,15,128,18],[128,20,128,23],[128,24,128,26],[128,27,128,28],[128,29,128,32],[128,33,128,37],[128,38,128,50],[169,5,169,9],[159,38,159,41],[159,42,159,45],[169,10,169,38],[161,46,161,50],[160,34,160,37],[160,38,160,41],[160,42,160,45],[160,46,160,50],[168,1,168,9],[168,10,168,38],[168,39,168,50],[127,2,127,11],[127,12,127,14],[127,15,127,18],[127,20,127,23],[127,24,127,26],[127,27,127,28],[127,29,127,32],[127,33,127,37],[127,38,127,50],[126,2,126,11],[126,12,126,14],[126,15,126,18],[126,20,126,23],[126,24,126,26],[126,27,126,28],[126,29,126,32],[126,33,126,37],[126,38,126,50],[125,2,125,11],[125,12,125,14],[125,15,125,18],[125,20,125,23],[125,24,125,26],[125,27,125,28],[125,29,125,32],[125,33,125,37],[125,38,125,50],[124,2,124,11],[124,12,124,14],[124,15,124,18],[124,20,124,23],[124,24,124,26],[124,27,124,28],[124,29,124,32],[124,33,124,37],[124,38,124,50],[123,2,123,11],[123,12,123,14],[123,15,123,18],[123,20,123,23],[123,24,123,26],[123,27,123,28],[123,29,123,32],[123,33,123,37],[123,38,123,50],[122,2,122,11],[122,12,122,14],[122,15,122,18],[122,20,122,23],[122,24,122,26],[122,27,122,28],[122,29,122,32],[122,33,122,37],[122,38,122,50],[121,2,121,11],[121,12,121,14],[121,15,121,18],[121,20,121,23],[121,24,121,26],[121,27,121,28],[121,29,121,32],[121,33,121,37],[121,38,121,50],[119,38,119,50],[120,2,120,11],[120,12,120,14],[120,15,120,18],[120,20,120,23],[120,24,120,26],[120,27,120,28],[120,29,120,32],[120,33,120,37],[120,38,120,50],[118,2,118,11],[118,12,118,14],[118,15,118,18],[118,20,118,23],[118,24,118,26],[118,27,118,28],[118,29,118,32],[118,33,118,37],[119,2,119,11],[119,12,119,14],[119,15,119,18],[119,20,119,23],[119,24,119,26],[119,27,119,28],[119,29,119,32],[119,33,119,37],[116,33,116,37],[117,2,117,11],[117,12,117,14],[117,15,117,18],[117,20,117,23],[117,24,117,26],[117,27,117,28],[117,29,117,32],[117,33,117,37],[158,34,158,37],[159,1,159,17],[159,18,159,21],[159,22,159,33],[159,34,159,37],[161,39,161,45],[161,1,161,38],[189,1,189,50],[190,1,190,9],[190,10,190,50],[160,1,160,17],[160,18,160,21],[160,22,160,26],[160,27,160,28],[160,29,160,33],[158,18,158,21],[158,22,158,26],[158,27,158,28],[158,29,158,33],[182,20,182,23],[182,34,182,37],[167,1,167,9],[167,10,167,38],[167,39,167,50],[157,38,157,41],[157,42,157,45],[157,46,157,50],[147,1,147,9],[147,10,147,50],[146,1,146,50],[134,2,134,11],[134,33,134,37],[134,38,134,50],[151,1,151,50],[152,1,152,17],[152,18,152,21],[152,22,152,33],[152,34,152,37],[152,38,152,41],[152,42,152,45],[152,46,152,50],[153,1,153,17],[155,1,155,50],[156,1,156,9],[156,10,156,50],[157,1,157,17],[157,18,157,21],[135,27,135,32],[114,2,114,11],[114,12,114,14],[114,15,114,18],[114,20,114,23],[114,24,114,26],[114,27,114,28],[114,29,114,32],[114,33,114,37],[157,34,157,37],[115,2,115,11],[115,12,115,14],[115,15,115,18],[115,20,115,23],[115,24,115,26],[115,27,115,28],[115,29,115,32],[115,33,115,37],[116,2,116,11],[116,12,116,14],[116,15,116,18],[116,20,116,23],[116,24,116,26],[116,27,116,28],[116,29,116,32],[100,33,100,37],[101,33,101,37],[104,20,104,23],[104,24,104,26],[104,27,104,28],[104,29,104,32],[104,33,104,37],[107,2,107,11],[107,12,107,14],[107,15,107,18],[107,20,107,23],[107,24,107,26],[107,27,107,28],[107,29,107,32],[107,33,107,37],[106,20,106,23],[106,24,106,26],[106,27,106,28],[106,29,106,32],[106,33,106,37],[104,2,104,11],[104,12,104,14],[104,15,104,18],[105,2,105,11],[100,12,100,14],[101,15,101,18],[101,20,101,23],[101,24,101,26],[101,27,101,28],[101,29,101,32],[99,2,99,11],[99,12,99,14],[99,15,99,23],[99,24,99,26],[99,27,99,28],[99,29,99,32],[100,2,100,11],[100,15,100,18],[100,20,100,23],[100,24,100,26],[100,27,100,28],[100,29,100,32],[101,2,101,11],[101,12,101,14],[97,1,97,50],[93,1,93,9],[93,10,93,38],[93,39,93,50],[94,1,94,9],[94,39,94,50],[98,1,98,9],[98,10,98,50],[99,38,99,50],[99,33,99,37],[92,1,92,9],[92,39,92,50],[47,1,47,9],[47,10,47,38],[47,39,47,50],[48,1,48,9],[48,10,48,38],[48,39,48,50],[88,1,88,9],[88,10,88,38],[88,39,88,50],[77,10,77,38],[77,39,77,50],[78,1,78,9],[78,10,78,38],[78,39,78,50],[74,1,74,9],[74,10,74,38],[74,39,74,50],[79,1,79,9],[79,10,79,38],[79,39,79,50],[80,1,80,9],[80,10,80,38],[80,39,80,50],[77,5,77,9],[90,1,90,50],[91,1,91,9],[91,39,91,50],[86,1,86,9],[86,10,86,38],[86,39,86,50],[87,1,87,9],[87,10,87,38],[87,39,87,50],[83,1,83,50],[84,1,84,9],[84,10,84,38],[84,39,84,50],[85,1,85,9],[85,10,85,38],[85,39,85,50],[81,1,81,9],[82,1,82,9],[81,10,81,38],[82,10,82,38],[91,10,91,14],[76,39,76,50],[72,1,72,9],[72,10,72,38],[72,39,72,50],[73,1,73,9],[73,10,73,38],[73,39,73,50],[75,1,77,4],[75,5,75,9],[75,10,75,38],[75,39,75,50],[76,5,76,9],[76,10,76,38],[71,39,71,50],[66,1,66,9],[66,10,66,38],[66,39,66,50],[69,1,69,9],[69,10,69,38],[69,39,69,50],[62,5,62,9],[62,10,62,38],[62,39,62,50],[63,1,63,9],[63,10,63,38],[63,39,63,50],[64,1,64,9],[64,10,64,38],[64,39,64,50],[65,1,65,9],[65,10,65,38],[65,39,65,50],[70,1,70,9],[70,10,70,38],[70,39,70,50],[71,1,71,9],[71,10,71,38],[59,1,59,9],[59,10,59,38],[59,39,59,50],[60,1,62,4],[60,5,60,9],[60,10,60,38],[60,39,60,50],[61,5,61,9],[61,10,61,38],[61,39,61,50],[57,1,57,9],[57,10,57,38],[57,39,57,50],[58,1,58,9],[58,10,58,38],[58,39,58,50],[55,1,55,9],[55,10,55,38],[55,39,55,50],[56,1,56,9],[56,10,56,38],[56,39,56,50],[43,1,43,9],[43,10,43,38],[43,39,43,50],[53,1,53,50],[54,1,54,9],[54,10,54,38],[54,39,54,50],[41,1,41,9],[41,10,41,38],[41,39,41,50],[42,1,42,9],[42,10,42,38],[42,39,42,50],[45,1,45,50],[46,1,46,9],[46,10,46,38],[46,39,46,50],[50,1,50,50],[51,1,51,9],[51,10,51,38],[51,39,51,50],[39,1,39,9],[39,10,39,38],[39,39,39,50],[40,1,40,9],[40,10,40,38],[40,39,40,50],[36,1,38,4],[36,5,36,9],[36,10,36,38],[36,39,36,50],[37,5,37,9],[37,10,37,38],[37,39,37,50],[38,5,38,9],[38,10,38,38],[38,39,38,50],[34,1,34,9],[34,10,34,33],[34,34,34,38],[34,39,34,50],[35,1,35,9],[35,10,35,33],[35,34,35,38],[35,39,35,50],[32,1,32,9],[32,10,32,38],[32,39,32,50],[33,1,33,9],[33,10,33,38],[33,39,33,50],[30,1,30,9],[30,10,30,38],[30,39,30,50],[23,10,23,50],[24,10,24,50],[25,10,25,50],[26,1,26,50],[31,1,31,9],[31,10,31,38],[31,39,31,50],[27,1,27,50],[28,1,28,9],[28,10,28,38],[28,39,28,50],[29,1,29,9],[29,10,29,38],[29,39,29,50],[0,35,0,40],[0,43,0,48],[0,49,0,50],[0,41,0,42],[10,1,10,50],[11,1,11,9],[11,10,11,50],[12,10,12,50],[13,10,13,50],[14,10,14,50],[5,1,5,50],[6,1,6,9],[6,10,6,21],[6,22,6,32],[6,33,6,50],[8,1,8,50],[21,10,21,50],[22,10,22,50],[9,1,9,50],[15,10,15,50],[16,10,16,50],[17,10,17,50],[18,10,18,50],[19,10,19,50],[20,10,20,50],[102,2,102,11],[102,12,102,14],[102,15,102,18],[102,20,102,23],[102,24,102,26],[102,27,102,28],[102,29,102,32],[102,33,102,37],[103,2,103,11],[103,12,103,14],[103,15,103,18],[103,20,103,23],[103,24,103,26],[103,27,103,28],[103,29,103,32],[103,33,103,37],[105,20,105,23],[105,24,105,26],[105,27,105,28],[105,29,105,32],[105,33,105,37],[108,2,108,11],[108,12,108,14],[108,15,108,18],[108,20,108,23],[108,24,108,26],[108,27,108,28],[108,29,108,32],[108,33,108,37],[106,2,106,11],[106,12,106,14],[106,15,106,18],[105,12,105,14],[105,15,105,18],[110,27,110,28],[110,29,110,32],[110,33,110,37],[111,2,111,11],[111,20,111,23],[111,24,111,26],[111,27,111,28],[111,29,111,32],[111,33,111,37],[109,38,109,50],[110,38,110,50],[111,38,111,50],[112,38,112,50],[159,46,159,50],[118,38,118,50],[135,38,135,50],[144,1,144,45],[144,46,144,50],[109,2,109,11],[109,12,109,14],[109,15,109,18],[109,20,109,23],[109,24,109,26],[109,27,109,28],[109,29,109,32],[109,33,109,37],[111,12,111,14],[111,15,111,18],[110,2,110,11],[110,12,110,14],[110,15,110,18],[110,20,110,23],[110,24,110,26],[100,38,100,50],[101,38,101,50],[102,38,102,50],[103,38,103,50],[104,38,104,50],[105,38,105,50],[106,38,106,50],[107,38,107,50],[108,38,108,50],[112,2,112,11],[112,12,112,14],[112,15,112,18],[112,20,112,23],[112,24,112,26],[112,27,112,28],[112,29,112,32],[112,33,112,37],[166,1,166,50],[163,1,163,9],[163,10,163,38],[163,39,163,50],[164,1,164,50],[165,1,165,9],[165,10,165,38],[165,39,165,50],[113,2,113,11],[113,12,113,14],[113,15,113,18],[113,20,113,23],[113,24,113,26],[113,27,113,28],[113,29,113,32],[113,33,113,37],[68,1,68,50],[182,38,182,41],[113,38,113,50],[114,38,114,50],[115,38,115,50],[116,38,116,50],[117,38,117,50],[183,1,183,50],[182,42,182,45],[182,46,182,50],[177,1,177,50],[178,1,178,9],[178,10,178,50],[179,1,179,19],[179,24,179,33],[179,20,179,23],[179,34,179,37],[179,38,179,41],[179,42,179,45],[179,46,179,50],[182,1,182,19],[182,24,182,27],[182,28,182,29],[182,30,182,33],[180,30,180,33],[180,34,180,37],[180,38,180,41],[180,42,180,45],[180,46,180,50],[169,1,171,4],[153,18,153,21],[153,22,153,26],[153,27,153,28],[153,29,153,33],[170,5,170,9],[170,10,170,38],[170,39,170,50],[171,5,171,9],[171,10,171,38],[171,39,171,50],[158,38,158,41],[158,42,158,45],[158,46,158,50],[162,1,162,9],[162,10,162,38],[162,39,162,50],[158,1,158,17],[169,39,169,50],[92,10,92,38],[94,10,94,38],[91,24,91,28],[91,15,91,23],[91,29,91,38],[81,39,81,50],[82,39,82,50],[181,1,181,19],[181,20,181,23],[181,24,181,27],[181,28,181,29],[181,30,181,33],[181,34,181,37],[181,38,181,41],[181,42,181,45],[181,46,181,50],[153,34,153,37],[153,38,153,41],[153,42,153,45],[153,46,153,50],[180,1,180,19],[180,20,180,23],[180,24,180,27],[180,28,180,29]]}
[null,null,null,null,null,null,null,null,null,null,null,null,null,null,null,null,null,null,null,null,null,null,null,null,null,null,null,null,null,null,null,null,null,null,null,"申込書シートの\n入力チェック状況",null,null,null,null,null,"未",null,"学校情報シートの\n入力チェック状況",null,null,null,null,null,"未"]
[]
[]
[]
[]
[null,"申込書選択"]
[null,"お申し込み元",null,null,null,null,null,null,null,null,null,null,null,null,null,null,null,null,null,null,null,null,"お申し込み種類"]
[]
[null,{"$f":"K7","v":0}]
[null,"■　背景色がグレー以外の入力欄に変更後の情報をご記入ください。"]
[null,"承諾項目"]
[null,"チェック項目"]
[]
[null,null,null,null,null,null,null,null,null,null,"       "]
[]
[]
[]
[]
[]
[]
[]
[]
[]
[]
[]
[]
[]
[null,"契約情報"]
[null,"申込区分",null,null,null,null,null,null,null,null,"▼プルダウンより選択してください",null,null,null,null,null,null,null,null,null,null,null,null,null,null,null,null,null,null,null,null,null,null,null,null,null,null,null,null,"申込区分(新規/変更/廃止)を選択してください。"]
[null,"申込内容詳細",null,null,null,null,null,null,null,null,null,null,null,null,null,null,null,null,null,null,null,null,null,null,null,null,null,null,null,null,null,null,null,null,null,null,null,null,null,"申込区分が変更の場合は、変更箇所をご記入ください。\n(例)外部IdP連携申し込み、〇〇コンテンツ申し込み"]
[null,"お申し込み年月日",null,null,null,null,null,null,null,null,null,null,null,null,null,null,null,null,null,null,null,null,null,null,null,null,null,null,null,null,null,null,null,null,null,null,null,null,null,"YYYY/MM/DD（半角)の形式でご記入ください。\n（例）2020年1月1日→2020/1/1"]
[null,{"$f":"IF(K29=\"廃止\",\"廃止希望年月日\",\"利用開始希望年月日\")","v":"利用開始希望年月日"},null,null,null,null,null,null,null,null,null,null,null,null,null,null,null,null,null,null,null,null,null,null,null,null,null,null,null,null,null,null,null,null,null,null,null,null,null,"お申し込み日より5営業日以降をご指定ください。\nYYYY/MM/DD（半角)の形式でご記入ください。\n（注意）本項目は開通日をお約束するものではございません。"]
[null,"ご契約者様名義（ふりがな）"]
[null,"ご契約者様名義",null,null,null,null,null,null,null,null,null,null,null,null,null,null,null,null,null,null,null,null,null,null,null,null,null,null,null,null,null,null,null,null,null,null,null,null,null,"教育委員会名等をご記入ください。"]
[null,"お申し込み責任者名(ふりがな)",null,null,null,null,null,null,null,null,null,null,null,null,null,null,null,null,null,null,null,null,null,null,null,null,null,null,null,null,null,null,null,null,"印または署名"]
[null,"お申し込み責任者名",null,null,null,null,null,null,null,null,null,null,null,null,null,null,null,null,null,null,null,null,null,null,null,null,null,null,null,null,null,null,null,null,null,null,null,null,null,"・個人印は不可。\n・署名の場合はお申し込み責任者のサインをお願いします。"]
[null,"ご契約者\n住所",null,null,null,"郵便番号",null,null,null,null,null,null,null,null,null,null,null,null,null,null,null,null,null,null,null,null,null,null,null,null,null,null,null,null,null,null,null,null,null,"数字とハイフンのみ可。"]
[null,null,null,null,null,"都道府県",null,null,null,null,"▼プルダウンより選択してください"]
[null,null,null,null,null,"住所",null,null,null,null,null,null,null,null,null,null,null,null,null,null,null,null,null,null,null,null,null,null,null,null,null,null,null,null,null,null,null,null,null,"ご契約者の住所をご記入ください。（都道府県を除く）"]
[null,"電話番号",null,null,null,null,null,null,null,null,null,null,null,null,null,null,null,null,null,null,null,null,null,null,null,null,null,null,null,null,null,null,null,null,null,null,null,null,null,"数字とハイフンのみ可。\n（ハイフン付き）"]
[null,"メールアドレス①",null,null,null,null,null,null,null,null,null,null,null,null,null,null,null,null,null,null,null,null,null,null,null,null,null,null,null,null,null,null,null,null,null,null,null,null,null,"半角英数字記号のみ可。"]
[null,"メールアドレス②　※任意",null,null,null,null,null,null,null,null,null,null,null,null,null,null,null,null,null,null,null,null,null,null,null,null,null,null,null,null,null,null,null,null,null,null,null,null,null,"上記同様。"]
[null,"メールアドレス③　※任意",null,null,null,null,null,null,null,null,null,null,null,null,null,null,null,null,null,null,null,null,null,null,null,null,null,null,null,null,null,null,null,null,null,null,null,null,null,"上記同様。"]
[null,"販売店名",null,null,null,null,null,null,null,null,null,null,null,null,null,null,null,null,null,null,null,null,null,null,null,null,null,null,null,null,null,null,null,null,null,null,null,null,null,"販売店経由でご契約している場合は販売店名ご記入ください。"]
[]
[null,"アカウント通知書 送付先情報"]
[null,"アカウント送付先\nメールアドレス①",null,null,null,null,null,null,null,null,null,null,null,null,null,null,null,null,null,null,null,null,null,null,null,null,null,null,null,null,null,null,null,null,null,null,null,null,null,"半角英数字記号のみ可。\nご入力のメールアドレスに教育委員会アカウントと学校管理者アカウントのご案内をいたします。※変更申込の場合は、ご入力のメールアドレスに作業完了連絡を致します。"]
[null,"アカウント送付先\nメールアドレス②\n※任意",null,null,null,null,null,null,null,null,null,null,null,null,null,null,null,null,null,null,null,null,null,null,null,null,null,null,null,null,null,null,null,null,null,null,null,null,null,"上記同様。"]
[null,"アカウント送付先\nメールアドレス③\n※任意",null,null,null,null,null,null,null,null,null,null,null,null,null,null,null,null,null,null,null,null,null,null,null,null,null,null,null,null,null,null,null,null,null,null,null,null,null,"上記同様。"]
[]
[null,"アカウント通知書 解凍パスワード　　※新規申し込み／学校追加を含む変更申し込みの場合にご記入ください"]
[null,"パスワード",null,null,null,null,null,null,null,null,null,null,null,null,null,null,null,null,null,null,null,null,null,null,null,null,null,null,null,null,null,null,null,null,null,null,null,null,null,"アカウント送付先メールアドレス宛に送付されるアカウント通知書を展開(解凍)するパスワードをご記入ください。 \n設定可能文字数：半角英数記号7～16文字\n（利用可能記号）@ # $ % ^ & * - _ + = [ ] { } | : , .? / ` ~; !"]
[]
[null,"お支払い情報"]
[null,"支払方法",null,null,null,null,null,null,null,null,"▼プルダウンより選択してください",null,null,null,null,null,null,null,null,null,null,null,null,null,null,null,null,null,null,null,null,null,null,null,null,null,null,null,null,{"$f":"IF(AND(AH7 <> \"GIGAスクールパック（基本パッケージ）\", AH7 <> \"GIGAスクールパック（基本パッケージ）\"), \"支払方法を選択してください。\", \"支払いなし（GIGA端末費用に含む）を選択してください。\")","v":"支払方法を選択してください。"}]
[null,"※その他の場合、詳細記載",null,null,null,null,null,null,null,null,""]
[null,"請求書送付先",null,null,null,null,null,null,null,null,"▼プルダウンより選択してください"]
[null,"所属・部署名",null,null,null,null,null,null,null,null,"",null,null,null,null,null,null,null,null,null,null,null,null,null,null,null,null,null,null,null,null,null,null,null,null,null,null,null,null,"所属・部署名等までご記入ください。"]
[null,"ご担当者名（ふりがな）",null,null,null,null,null,null,null,null,""]
[null,"ご担当者名",null,null,null,null,null,null,null,null,"",null,null,null,null,null,null,null,null,null,null,null,null,null,null,null,null,null,null,null,null,null,null,null,null,null,null,null,null,"請求書送付先の宛名をご記入ください。"]
[null,"請求書\n送付先\n住所",null,null,null,"郵便番号",null,null,null,null,"",null,null,null,null,null,null,null,null,null,null,null,null,null,null,null,null,null,null,null,null,null,null,null,null,null,null,null,null,"数字とハイフンのみ可。"]
[null,null,null,null,null,"都道府県",null,null,null,null,"▼プルダウンより選択してください"]
[null,null,null,null,null,"住所",null,null,null,null,"",null,null,null,null,null,null,null,null,null,null,null,null,null,null,null,null,null,null,null,null,null,null,null,null,null,null,null,null,"請求書の送付先をご記入ください。（都道府県を除く）"]
[null,"電話番号",null,null,null,null,null,null,null,null,"",null,null,null,null,null,null,null,null,null,null,null,null,null,null,null,null,null,null,null,null,null,null,null,null,null,null,null,null,"数字とハイフンのみ可。\n（ハイフン付き）"]
[null,"メールアドレス①",null,null,null,null,null,null,null,null,"",null,null,null,null,null,null,null,null,null,null,null,null,null,null,null,null,null,null,null,null,null,null,null,null,null,null,null,null,"半角英数字記号のみ可。"]
[null,"メールアドレス②　※任意",null,null,null,null,null,null,null,null,"",null,null,null,null,null,null,null,null,null,null,null,null,null,null,null,null,null,null,null,null,null,null,null,null,null,null,null,null,"半角英数字記号のみ可。"]
[null,"メールアドレス③　※任意",null,null,null,null,null,null,null,null,"",null,null,null,null,null,null,null,null,null,null,null,null,null,null,null,null,null,null,null,null,null,null,null,null,null,null,null,null,"半角英数字記号のみ可。"]
[]
[null,{"$f":"IF(K7=\"教育委員会\",\"教育委員会情報\"&CHAR(10)&\"※教育委員会管理者とご担当者が違う場合は、両方ご記入ください。\"&CHAR(10)&\"   契約者情報と同一の場合は管理者のご記入は必要ありません｡ \",\"学校・学校管理者情報\")","v":"学校・学校管理者情報"}]
[null,"教育委員会名（ふりがな）／\n学校法人名（ふりがな）"]
[null,"教育委員会名／学校法人名"]
[null,"学校名（ふりがな）"]
[null,"学校名"]
[null,"管理者名（ふりがな）"]
[null,"管理者名"]
[null,"住所",null,null,null,"郵便番号",null,null,null,null,null,null,null,null,null,null,null,null,null,null,null,null,null,null,null,null,null,null,null,null,null,null,null,null,null,null,null,null,null,"数字とハイフンのみ可。"]
[null,null,null,null,null,"都道府県"]
[null,null,null,null,null,"住所",null,null,null,null,null,null,null,null,null,null,null,null,null,null,null,null,null,null,null,null,null,null,null,null,null,null,null,null,null,null,null,null,null,"請求書の送付先をご記入ください。（都道府県を除く）"]
[null,"電話番号（管理者）",null,null,null,null,null,null,null,null,null,null,null,null,null,null,null,null,null,null,null,null,null,null,null,null,null,null,null,null,null,null,null,null,null,null,null,null,null,"数字とハイフンのみ可。\n（ハイフン付き）"]
[null,"メールアドレス①（管理者）",null,null,null,null,null,null,null,null,null,null,null,null,null,null,null,null,null,null,null,null,null,null,null,null,null,null,null,null,null,null,null,null,null,null,null,null,null,"半角英数字記号のみ可。"]
[null,"メールアドレス②（管理者）\n　※任意",null,null,null,null,null,null,null,null,null,null,null,null,null,null,null,null,null,null,null,null,null,null,null,null,null,null,null,null,null,null,null,null,null,null,null,null,null,"半角英数字記号のみ可。\n２以上の場合は；（セミコロン）区切りで記入。"]
[]
[]
[null,"※管理者とご担当者が異なる場合のみ下記をご記入ください。"]
[null,"ご担当者名（ふりがな）"]
[null,"ご担当者名"]
[null,"電話番号（ご担当者）",null,null,null,null,null,null,null,null,null,null,null,null,null,null,null,null,null,null,null,null,null,null,null,null,null,null,null,null,null,null,null,null,null,null,null,null,null,"数字とハイフンのみ可。\n（ハイフン付き）"]
[null,"メールアドレス①（ご担当者）",null,null,null,null,null,null,null,null,null,null,null,null,null,null,null,null,null,null,null,null,null,null,null,null,null,null,null,null,null,null,null,null,null,null,null,null,null,"半角英数字記号のみ可。"]
[null,"メールアドレス②（ご担当者）\n　※任意",null,null,null,null,null,null,null,null,"",null,null,null,null,null,null,null,null,null,null,null,null,null,null,null,null,null,null,null,null,null,null,null,null,null,null,null,null,"半角英数字記号のみ可。"]
[]
[null,"GIGAスクールパック契約内容"]
[null,"契約端末数",null,null,null,null,null,null,null,null,"児童・生徒",null,null,null,null,null,null,null,null,null,null,null,null,null,"教職員",null,null,null,null,null,null,null,null,null,null,null,null,null,null,"契約端末数をご記入ください。"]
[null,"端末種別",null,null,null,null,null,null,null,null,"▼プルダウンより選択してください",null,null,null,null,null,null,null,null,null,null,null,null,null,null,null,null,null,null,null,null,null,null,null,null,null,null,null,null,"GIGAスクールパックの端末種別を選択してください。"]
[null,"契約パッケージ",null,null,null,null,null,null,null,null,"応用パッケージ"]
[null,"契約開始日",null,null,null,null,null,null,null,null,"YYYY/MM/DD",null,null,null,null,null,null,null,null,null,null,null,null,null,null,null,null,null,null,null,null,null,null,null,null,null,null,null,null,"契約開始日はYYYY/MM/DDで記載してください。\nGIGAスクールパックのコンテンツの利用開始日をご記載ください。"]
[null,null,null,null,null,null,null,null,null,null,null,null,null,null,null,null,null,null,null,null,null,null,null,null,null,null,null,"YYYY/MM/DD"]
[]
[null,"コンテンツ申し込み 利用料"]
[null,"申し込み有無",null,null,null,null,null,null,null,null,"▼プルダウンより選択してください"]
[null,"No","コンテンツ名",null,null,null,null,null,null,null,null,null,"利用月数",null,null,"利用期間",null,null,null,null,null,null,null,null,"数量\n（課金対象）",null,null,"単位",null,"単価",null,null,null,"小計金額（税抜）",null,null,null,null,"注意事項"]
[null,1,"▼プルダウンより選択してください",null,null,null,null,null,null,null,null,null,null,null,null,"YYYY/MM/DD",null,null,null,"～","YYYY/MM/DD",null,null,null,0,null,null,"▼選択",null,0,null,null,null,0]
[null,2,"▼プルダウンより選択してください",null,null,null,null,null,null,null,null,null,null,null,null,"YYYY/MM/DD",null,null,null,"～","YYYY/MM/DD",null,null,null,0,null,null,"▼選択",null,0,null,null,null,0]
[null,3,"▼プルダウンより選択してください",null,null,null,null,null,null,null,null,null,null,null,null,"YYYY/MM/DD",null,null,null,"～","YYYY/MM/DD",null,null,null,0,null,null,"▼選択",null,0,null,null,null,0]
[null,4,"▼プルダウンより選択してください",null,null,null,null,null,null,null,null,null,null,null,null,"YYYY/MM/DD",null,null,null,"～","YYYY/MM/DD",null,null,null,0,null,null,"▼選択",null,0,null,null,null,0]
[null,5,"▼プルダウンより選択してください",null,null,null,null,null,null,null,null,null,null,null,null,"YYYY/MM/DD",null,null,null,"～","YYYY/MM/DD",null,null,null,0,null,null,"▼選択",null,0,null,null,null,0]
[null,6,"▼プルダウンより選択してください",null,null,null,null,null,null,null,null,null,null,null,null,"YYYY/MM/DD",null,null,null,"～","YYYY/MM/DD",null,null,null,0,null,null,"▼選択",null,0,null,null,null,0]
[null,7,"▼プルダウンより選択してください",null,null,null,null,null,null,null,null,null,null,null,null,"YYYY/MM/DD",null,null,null,"～","YYYY/MM/DD",null,null,null,0,null,null,"▼選択",null,0,null,null,null,0]
[null,8,"▼プルダウンより選択してください",null,null,null,null,null,null,null,null,null,null,null,null,"YYYY/MM/DD",null,null,null,"～","YYYY/MM/DD",null,null,null,0,null,null,"▼選択",null,0,null,null,null,0]
[null,9,"▼プルダウンより選択してください",null,null,null,null,null,null,null,null,null,null,null,null,"YYYY/MM/DD",null,null,null,"～","YYYY/MM/DD",null,null,null,0,null,null,"▼選択",null,0,null,null,null,0]
[null,10,"▼プルダウンより選択してください",null,null,null,null,null,null,null,null,null,null,null,null,"YYYY/MM/DD",null,null,null,"～","YYYY/MM/DD",null,null,null,0,null,null,"▼選択",null,0,null,null,null,0]
[null,11,"▼プルダウンより選択してください",null,null,null,null,null,null,null,null,null,null,null,null,"YYYY/MM/DD",null,null,null,"～","YYYY/MM/DD",null,null,null,0,null,null,"▼選択",null,0,null,null,null,0]
[null,12,"▼プルダウンより選択してください",null,null,null,null,null,null,null,null,null,null,null,null,"YYYY/MM/DD",null,null,null,"～","YYYY/MM/DD",null,null,null,0,null,null,"▼選択",null,0,null,null,null,0]
[null,13,"▼プルダウンより選択してください",null,null,null,null,null,null,null,null,null,null,null,null,"YYYY/MM/DD",null,null,null,"～","YYYY/MM/DD",null,null,null,0,null,null,"▼選択",null,0,null,null,null,0]
[null,14,"▼プルダウンより選択してください",null,null,null,null,null,null,null,null,null,null,null,null,"YYYY/MM/DD",null,null,null,"～","YYYY/MM/DD",null,null,null,0,null,null,"▼選択",null,0,null,null,null,0]
[null,15,"▼プルダウンより選択してください",null,null,null,null,null,null,null,null,null,null,null,null,"YYYY/MM/DD",null,null,null,"～","YYYY/MM/DD",null,null,null,0,null,null,"▼選択",null,0,null,null,null,0]
[null,16,"▼プルダウンより選択してください",null,null,null,null,null,null,null,null,null,null,null,null,"YYYY/MM/DD",null,null,null,"～","YYYY/MM/DD",null,null,null,0,null,null,"▼選択",null,0,null,null,null,0]
[null,17,"▼プルダウンより選択してください",null,null,null,null,null,null,null,null,null,null,null,null,"YYYY/MM/DD",null,null,null,"～","YYYY/MM/DD",null,null,null,0,null,null,"▼選択",null,0,null,null,null,0]
[null,18,"▼プルダウンより選択してください",null,null,null,null,null,null,null,null,null,null,null,null,"YYYY/MM/DD",null,null,null,"～","YYYY/MM/DD",null,null,null,0,null,null,"▼選択",null,0,null,null,null,0]
[null,19,"▼プルダウンより選択してください",null,null,null,null,null,null,null,null,null,null,null,null,"YYYY/MM/DD",null,null,null,"～","YYYY/MM/DD",null,null,null,0,null,null,"▼選択",null,0,null,null,null,0]
[null,20,"▼プルダウンより選択してください",null,null,null,null,null,null,null,null,null,null,null,null,"YYYY/MM/DD",null,null,null,"～","YYYY/MM/DD",null,null,null,0,null,null,"▼選択",null,0,null,null,null,0]
[null,21,"▼プルダウンより選択してください",null,null,null,null,null,null,null,null,null,null,null,null,"YYYY/MM/DD",null,null,null,"～","YYYY/MM/DD",null,null,null,0,null,null,"▼選択",null,0,null,null,null,0]
[null,22,"▼プルダウンより選択してください",null,null,null,null,null,null,null,null,null,null,null,null,"YYYY/MM/DD",null,null,null,"～","YYYY/MM/DD",null,null,null,0,null,null,"▼選択",null,0,null,null,null,0]
[null,23,"▼プルダウンより選択してください",null,null,null,null,null,null,null,null,null,null,null,null,"YYYY/MM/DD",null,null,null,"～","YYYY/MM/DD",null,null,null,0,null,null,"▼選択",null,0,null,null,null,0]
[null,24,"▼プルダウンより選択してください",null,null,null,null,null,null,null,null,null,null,null,null,"YYYY/MM/DD",null,null,null,"～","YYYY/MM/DD",null,null,null,0,null,null,"▼選択",null,0,null,null,null,0]
[null,25,"▼プルダウンより選択してください",null,null,null,null,null,null,null,null,null,null,null,null,"YYYY/MM/DD",null,null,null,"～","YYYY/MM/DD",null,null,null,0,null,null,"▼選択",null,0,null,null,null,0]
[null,26,"▼プルダウンより選択してください",null,null,null,null,null,null,null,null,null,null,null,null,"YYYY/MM/DD",null,null,null,"～","YYYY/MM/DD",null,null,null,0,null,null,"▼選択",null,0,null,null,null,0]
[null,27,"▼プルダウンより選択してください",null,null,null,null,null,null,null,null,null,null,null,null,"YYYY/MM/DD",null,null,null,"～","YYYY/MM/DD",null,null,null,0,null,null,"▼選択",null,0,null,null,null,0]
[null,28,"▼プルダウンより選択してください",null,null,null,null,null,null,null,null,null,null,null,null,"YYYY/MM/DD",null,null,null,"～","YYYY/MM/DD",null,null,null,0,null,null,"▼選択",null,0,null,null,null,0]
[null,29,"▼プルダウンより選択してください",null,null,null,null,null,null,null,null,null,null,null,null,"YYYY/MM/DD",null,null,null,"～","YYYY/MM/DD",null,null,null,0,null,null,"▼選択",null,0,null,null,null,0]
[null,30,"▼プルダウンより選択してください",null,null,null,null,null,null,null,null,null,null,null,null,"YYYY/MM/DD",null,null,null,"～","YYYY/MM/DD",null,null,null,0,null,null,"▼選択",null,0,null,null,null,0]
[null,"コンテンツ合計金額（税抜）",null,null,null,null,null,null,null,null,null,null,null,null,null,null,null,null,null,null,null,null,null,null,null,null,null,null,null,null,null,null,null,null,null,null,null,null,null,null,null,null,null,null,null,null,{"$f":"SUM(AH101:AL130)","v":0}]
[]
[null,"コンテンツ申し込み　その他費用 "]
[null,"No","コンテンツ名",null,null,null,null,null,null,null,null,null,"費用分類",null,null,null,null,null,null,null,null,null,null,null,null,null,null,"単位",null,null,null,null,null,"小計金額（税抜）",null,null,null,null,"備考"]
[null,1,"▼プルダウンより選択してください",null,null,null,null,null,null,null,null,null,null,null,null,null,null,null,null,null,null,null,null,null,null,null,null,"▼選択",null,null,null,null,null,0]
[null,2,"▼プルダウンより選択してください",null,null,null,null,null,null,null,null,null,null,null,null,null,null,null,null,null,null,null,null,null,null,null,null,"▼選択",null,null,null,null,null,0]
[null,3,"▼プルダウンより選択してください",null,null,null,null,null,null,null,null,null,null,null,null,null,null,null,null,null,null,null,null,null,null,null,null,"▼選択",null,null,null,null,null,0]
[null,4,"▼プルダウンより選択してください",null,null,null,null,null,null,null,null,null,null,null,null,null,null,null,null,null,null,null,null,null,null,null,null,"▼選択",null,null,null,null,null,0]
[null,5,"▼プルダウンより選択してください",null,null,null,null,null,null,null,null,null,null,null,null,null,null,null,null,null,null,null,null,null,null,null,null,"▼選択",null,null,null,null,null,0]
[null,6,"▼プルダウンより選択してください",null,null,null,null,null,null,null,null,null,null,null,null,null,null,null,null,null,null,null,null,null,null,null,null,"▼選択",null,null,null,null,null,0]
[null,7,"▼プルダウンより選択してください",null,null,null,null,null,null,null,null,null,null,null,null,null,null,null,null,null,null,null,null,null,null,null,null,"▼選択",null,null,null,null,null,0]
[null,8,"▼プルダウンより選択してください",null,null,null,null,null,null,null,null,null,null,null,null,null,null,null,null,null,null,null,null,null,null,null,null,"▼選択",null,null,null,null,null,0]
[null,9,"▼プルダウンより選択してください",null,null,null,null,null,null,null,null,null,null,null,null,null,null,null,null,null,null,null,null,null,null,null,null,"▼選択",null,null,null,null,null,0]
[null,10,"▼プルダウンより選択してください",null,null,null,null,null,null,null,null,null,null,null,null,null,null,null,null,null,null,null,null,null,null,null,null,"▼選択",null,null,null,null,null,0]
[null,"コンテンツその他費用合計金額（税抜）",null,null,null,null,null,null,null,null,null,null,null,null,null,null,null,null,null,null,null,null,null,null,null,null,null,null,null,null,null,null,null,null,null,null,null,null,null,null,null,null,null,null,null,null,{"$f":"SUM(AH135:AL144)","v":0}]
[]
[null,"コンテンツの学年別表示設定の申し込み"]
[null,"申し込み有無",null,null,null,null,null,null,null,null,"申し込みしない"]
[null,"※コンテンツの学年別表示設定はコンテンツの表示を学年ごとに制限する機能です。詳細は",null,null,null,null,null,null,null,null,null,null,null,null,null,null,null,null,null,null,null,null,null,null,null,"https://manabipocket.ed-cl.com/wp/wp-content/uploads/2024/02/content_grade_display_setting.pdf",null,null,null,null,null,null,null,null,null,null,null,null,null,null,null,null,null,null,null,null,null,null,null,null,"を"]
[null,"　 ご確認ください。お申し込みする場合はプルダウンから「申し込みする」を選択し、学校情報シートで設定してください。"]
[]
[null,"まなホーダイ"]
[null,"申し込み有無",null,null,null,null,null,null,null,null,null,null,null,null,null,null,null,null,"月数",null,null,null,"利用期間",null,null,null,null,null,null,null,null,null,null,null,"数量",null,null,null,"単位",null,null,null,"単価",null,null,null,"合計金額（税抜）"]
[null,"申し込みしない",null,null,null,null,null,null,null,null,null,null,null,null,null,null,null,null,0,null,null,null,"YYYY/MM/DD",null,null,null,null,"～",null,"YYYY/MM/DD",null,null,null,null,0,null,null,null,"ID",null,null,null,0,null,null,null,0]
[]
[null,"まなびポケット たんぽくん申し込み"]
[null,"申し込み有無",null,null,null,null,null,null,null,null,"申し込みしない"]
[null,"サービスプラン名",null,null,null,null,null,null,null,null,null,null,null,null,null,null,null,null,"月数",null,null,null,"利用期間",null,null,null,null,null,null,null,null,null,null,null,"数量",null,null,null,"単位",null,null,null,"単価",null,null,null,"小計金額（税抜）"]
[null,"▼プルダウンより選択してください",null,null,null,null,null,null,null,null,null,null,null,null,null,null,null,null,0,null,null,null,"YYYY/MM/DD",null,null,null,null,"～",null,"YYYY/MM/DD",null,null,null,null,0,null,null,null,"台",null,null,null,0,null,null,null,0]
[null,"まなびポケット たんぽくん アドミスキーム",null,null,null,null,null,null,null,null,null,null,null,null,null,null,null,null,"月数",null,null,null,"利用期間",null,null,null,null,null,null,null,null,null,null,null,"数量",null,null,null,"単位",null,null,null,"単価",null,null,null,"小計金額（税抜）"]
[null,"▼プルダウンより選択してください",null,null,null,null,null,null,null,null,null,null,null,null,null,null,null,null,0,null,null,null,"YYYY/MM/DD",null,null,null,null,"～",null,"YYYY/MM/DD",null,null,null,null,0,null,null,null,{"$f":"AM159","v":"台"},null,null,null,0,null,null,null,0]
[null,null,null,null,null,null,null,null,null,null,null,null,null,null,null,null,null,null,null,null,null,null,null,null,null,null,null,null,null,null,null,null,null,null,null,null,null,null,null,"合計金額（税抜）",null,null,null,null,null,null,{"$f":"SUM(AU159,AU161)","v":0}]
[null,"端末所有者名（被保険者名）",null,null,null,null,null,null,null,null,null,null,null,null,null,null,null,null,null,null,null,null,null,null,null,null,null,null,null,null,null,null,null,null,null,null,null,null,null,"自治体名またはリース契約の場合はリース会社名をご記入ください。"]
[null,"端末使用者",null,null,null,null,null,null,null,null,"▼プルダウンより選択してください"]
[null,"動産総合保険の保険金請求に関する覚書の送付先（端末所有者、リースの場合：リース会社）"]
[null,"所属・部署名",null,null,null,null,null,null,null,null,null,null,null,null,null,null,null,null,null,null,null,null,null,null,null,null,null,null,null,null,null,null,null,null,null,null,null,null,null,"覚書送付先の所属・部署名等をご記入ください。"]
[null,"※契約情報のご担当者と異なる場合のみ下記をご記入ください。"]
[null,"ご担当者名（ふりがな）"]
[null,"ご担当者名",null,null,null,null,null,null,null,null,null,null,null,null,null,null,null,null,null,null,null,null,null,null,null,null,null,null,null,null,null,null,null,null,null,null,null,null,null,"覚書送付先の宛名をご記入ください。"]
[null,"覚書\n送付先\n住所",null,null,null,"郵便番号",null,null,null,null,null,null,null,null,null,null,null,null,null,null,null,null,null,null,null,null,null,null,null,null,null,null,null,null,null,null,null,null,null,"数字とハイフンのみ可。"]
[null,null,null,null,null,"都道府県",null,null,null,null,"▼プルダウンより選択してください"]
[null,null,null,null,null,"住所",null,null,null,null,null,null,null,null,null,null,null,null,null,null,null,null,null,null,null,null,null,null,null,null,null,null,null,null,null,null,null,null,null,"覚書の送付先をご記入ください。\n（都道府県を除く）"]
[null,"電話番号",null,null,null,null,null,null,null,null,null,null,null,null,null,null,null,null,null,null,null,null,null,null,null,null,null,null,null,null,null,null,null,null,null,null,null,null,null,"数字とハイフンのみ可。\n（ハイフン付き）"]
[null,"メールアドレス①",null,null,null,null,null,null,null,null,null,null,null,null,null,null,null,null,null,null,null,null,null,null,null,null,null,null,null,null,null,null,null,null,null,null,null,null,null,"半角英数字記号のみ可。"]
[null,"メールアドレス②　※任意入力",null,null,null,null,null,null,null,null,null,null,null,null,null,null,null,null,null,null,null,null,null,null,null,null,null,null,null,null,null,null,null,null,null,null,null,null,null,"半角英数字記号のみ可。"]
[null,"メールアドレス③　※任意入力",null,null,null,null,null,null,null,null,null,null,null,null,null,null,null,null,null,null,null,null,null,null,null,null,null,null,null,null,null,null,null,null,null,null,null,null,null,"半角英数字記号のみ可。"]
[]
[null,"統合認証メニュー申し込み"]
[null,"申し込み有無",null,null,null,null,null,null,null,null,"申し込みしない"]
[null,"統合認証メニュー　サービス名",null,null,null,null,null,null,null,null,null,null,null,null,null,null,null,null,null,null,"月数",null,null,null,"利用期間",null,null,null,null,null,null,null,null,null,"数量",null,null,null,"単位",null,null,null,"単価",null,null,null,"小計金額（税抜）"]
[null,"▼プルダウンより選択してください",null,null,null,null,null,null,null,null,null,null,null,null,null,null,null,null,null,null,0,null,null,null,"YYYY/MM/DD",null,null,null,"～",null,"YYYY/MM/DD",null,null,null,0,null,null,null,"ID",null,null,null,0,null,null,null,0]
[null,"▼プルダウンより選択してください",null,null,null,null,null,null,null,null,null,null,null,null,null,null,null,null,null,null,0,null,null,null,"YYYY/MM/DD",null,null,null,"～",null,"YYYY/MM/DD",null,null,null,0,null,null,null,"ID",null,null,null,0,null,null,null,0]
[null,"▼プルダウンより選択してください",null,null,null,null,null,null,null,null,null,null,null,null,null,null,null,null,null,null,0,null,null,null,"YYYY/MM/DD",null,null,null,"～",null,"YYYY/MM/DD",null,null,null,0,null,null,null,"ID",null,null,null,0,null,null,null,0]
[null,"※「校務支援システム名」にはまなびポケットと認証連携する校務支援システムをご選択ください。"]
[]
[null,"お申し込み合計金額"]
[null,"合計金額（税抜）",null,null,null,null,null,null,null,null,null,null,null,null,null,null,null,null,null,null,null,null,null,null,null,null,null,null,null,null,null,null,null,null,null,null,null,null,null,null,null,null,null,null,null,null,{"$f":"SUM(AU131,AU145,AU154,AU162,AU181:AY183)","v":0}]
[null,"合計金額（税込）",null,null,null,null,null,null,null,null,null,null,null,null,null,null,null,null,null,null,null,null,null,null,null,null,null,null,null,null,null,null,null,null,null,null,null,null,null,null,null,null,null,null,null,null,{"$f":"AU187+ROUNDDOWN(AU187*0.1,0)","v":0}]
[]
[null,"お客さまご要望記事欄"]
[null,"お客さまご要望記事欄",null,null,null,null,null,null,null,null,""]
[null,"※「お客さまご要望記事欄」に記載された事項については、当社が明示的に承諾しない限り、当社とお客さまとの間の契約条件等として両者を拘束するものではありません。"]

{"sheet":"学校情報","index":3,"n_rows":505,"n_cols":237,"rows_kept":505,"cut":false,"hidden":true,"merged":[[1,33,1,39],[1,40,1,46],[2,33,2,39],[2,40,2,46],[1,47,1,53],[1,54,1,60],[1,61,1,67],[1,68,1,74],[1,75,1,81],[1,82,1,88],[1,89,1,95],[2,89,2,95],[2,82,2,88],[2,47,2,53],[2,54,2,60],[2,61,2,67],[2,68,2,74],[2,75,2,81],[1,4,3,4],[1,18,1,22],[0,10,0,12],[0,15,0,17],[1,1,3,1],[1,2,3,2],[1,3,3,3],[1,5,3,5],[1,6,3,6],[1,10,3,10],[1,11,3,11],[1,12,3,12],[1,15,1,17],[1,7,2,9],[2,13,3,13],[2,14,3,14],[1,13,1,14],[1,236,3,236],[2,166,2,172],[1,229,1,235],[2,229,2,235],[1,222,1,228],[2,222,2,228],[1,215,1,221],[2,215,2,221],[1,208,1,214],[2,208,2,214],[1,201,1,207],[2,201,2,207],[1,194,1,200],[2,194,2,200],[1,187,1,193],[2,187,2,193],[1,180,1,186],[2,180,2,186],[1,173,1,179],[2,173,2,179],[1,166,1,172],[1,145,1,151],[1,152,1,158],[1,159,1,165],[1,96,1,102],[1,103,1,109],[1,110,1,116],[1,117,1,123],[1,124,1,130],[2,145,2,151],[2,152,2,158],[2,159,2,165],[2,96,2,102],[2,103,2,109],[2,110,2,116],[2,117,2,123],[2,124,2,130],[2,131,2,137],[2,138,2,144],[1,131,1,137],[1,138,1,144],[0,26,0,32],[2,24,3,24],[2,15,3,15],[2,16,3,16],[2,17,3,17],[2,22,3,22],[2,21,3,21],[2,20,3,20],[2,19,3,19],[2,18,3,18],[1,26,1,32],[2,26,2,32],[2,25,3,25],[2,23,3,23],[0,68,0,74],[0,75,0,81],[0,82,0,88],[0,89,0,95],[0,96,0,102],[0,33,0,39],[0,40,0,46],[0,47,0,53],[0,54,0,60],[0,61,0,67],[0,138,0,144],[0,145,0,151],[0,152,0,158],[0,159,0,165],[0,166,0,172],[0,103,0,109],[0,110,0,116],[0,117,0,123],[0,124,0,130],[0,131,0,137],[0,208,0,214],[0,215,0,221],[0,222,0,228],[0,229,0,235],[0,173,0,179],[0,180,0,186],[0,187,0,193],[0,194,0,200],[0,201,0,207]]}
[null,"※行が足りない場合は追加して記入をしてください",null,null,null,null,null,null,null,null,"外部IdP連携オプションについての詳細は「ご記入にあたって」シート参照",null,null,null,null,"詳細は「ご記入にあたって」シート参照"]
[null,"No.","まなびポケット","学校コード\n※「既存環境なし」は記入不要","文科省コード","学校種","学校名","学校住所",null,null,"外部IdP連携オプション\nまなびポケットの既存環境がすでにある場合にも選択してください","学校管理者アカウント（外部認証ID）\nGoogle Workspace/Microsoft  Entra ID（旧Azure AD）にて作成した\nアカウントのメールアドレスを記入します。\n※外部IdP連携オプションを新規で「申し込む」／\n「外部認証IDの変更あり」の場合にご記入ください。","外部IdP連携オプション設定希望日\n※まなびポケット「既存環境あり」/「既存環境なし」で\n外部IdP連携オプションを新規で「申し込みする」／\n「外部認証IDの変更あり」／「利用停止」の場合に\nご記入ください。","まなびポケットご利用ID数【総数】",null,"グローバルIPアドレスによるアクセス制限",null,null,"ご利用中の端末",null,null,null,null,"まなホーダイ","まなびポケット たんぽくん","統合認証メニュー","お申し込みコンテンツ 1",null,null,null,null,null,null,"お申し込みコンテンツ 2",null,null,null,null,null,null,"お申し込みコンテンツ 3",null,null,null,null,null,null,"お申し込みコンテンツ 4",null,null,null,null,null,null,"お申し込みコンテンツ 5",null,null,null,null,null,null,"お申し込みコンテンツ 6",null,null,null,null,null,null,"お申し込みコンテンツ 7",null,null,null,null,null,null,"お申し込みコンテンツ 8",null,null,null,null,null,null,"お申し込みコンテンツ 9",null,null,null,null,null,null,"お申し込みコンテンツ 10",null,null,null,null,null,null,"お申し込みコンテンツ 11",null,null,null,null,null,null,"お申し込みコンテンツ 12",null,null,null,null,null,null,"お申し込みコンテンツ 13",null,null,null,null,null,null,"お申し込みコンテンツ 14",null,null,null,null,null,null,"お申し込みコンテンツ 15",null,null,null,null,null,null,"お申し込みコンテンツ 16",null,null,null,null,null,null,"お申し込みコンテンツ 17",null,null,null,null,null,null,"お申し込みコンテンツ 18",null,null,null,null,null,null,"お申し込みコンテンツ 19",null,null,null,null,null,null,"お申し込みコンテンツ 20",null,null,null,null,null,null,"お申し込みコンテンツ 21",null,null,null,null,null,null,"お申し込みコンテンツ 22",null,null,null,null,null,null,"お申し込みコンテンツ 23",null,null,null,null,null,null,"お申し込みコンテンツ 24",null,null,null,null,null,null,"お申し込みコンテンツ 25",null,null,null,null,null,null,"お申し込みコンテンツ 26",null,null,null,null,null,null,"お申し込みコンテンツ 27",null,null,null,null,null,null,"お申し込みコンテンツ 28",null,null,null,null,null,null,"お申し込みコンテンツ 29",null,null,null,null,null,null,"お申し込みコンテンツ 30",null,null,null,null,null,null,"備考欄"]
[null,null,null,null,null,null,null,null,null,null,null,null,null,"児童・生徒ID数","教職員ID数","申し込み有無","アクセス許可するグローバルIPアドレス\n※「xxx.xxx.xxx.xxx/yy」の形式でご記入ください","アクセス制限対象","Chromebook","iPad","Windows","Android","その他\n端末名を記入してください","申し込み有無","申し込み有無","申し込み有無"]
[null,null,null,null,null,null,null,"郵便番号","住所","電話番号",null,null,null,null,null,null,null,null,null,null,null,null,null,null,null,null,"ご利用\n開始日","利用月数","ID数\n（児童・生徒）","ID数\n（教職員）","学年別表示設定","対象学年","継続の有無","ご利用\n開始日","利用月数","ID数\n（児童・生徒）","ID数\n（教職員）","学年別表示設定","対象学年","継続の有無","ご利用\n開始日","利用月数","ID数\n（児童・生徒）","ID数\n（教職員）","学年別表示設定","対象学年","継続の有無","ご利用\n開始日","利用月数","ID数\n（児童・生徒）","ID数\n（教職員）","学年別表示設定","対象学年","継続の有無","ご利用\n開始日","利用月数","ID数\n（児童・生徒）","ID数\n（教職員）","学年別表示設定","対象学年","継続の有無","ご利用\n開始日","利用月数","ID数\n（児童・生徒）","ID数\n（教職員）","学年別表示設定","対象学年","継続の有無","ご利用\n開始日","利用月数","ID数\n（児童・生徒）","ID数\n（教職員）","学年別表示設定","対象学年","継続の有無","ご利用\n開始日","利用月数","ID数\n（児童・生徒）","ID数\n（教職員）","学年別表示設定","対象学年","継続の有無","ご利用\n開始日","利用月数","ID数\n（児童・生徒）","ID数\n（教職員）","学年別表示設定","対象学年","継続の有無","ご利用\n開始日","利用月数","ID数\n（児童・生徒）","ID数\n（教職員）","学年別表示設定","対象学年","継続の有無","ご利用\n開始日","利用月数","ID数\n（児童・生徒）","ID数\n（教職員）","学年別表示設定","対象学年","継続の有無","ご利用\n開始日","利用月数","ID数\n（児童・生徒）","ID数\n（教職員）","学年別表示設定","対象学年","継続の有無","ご利用\n開始日","利用月数","ID数\n（児童・生徒）","ID数\n（教職員）","学年別表示設定","対象学年","継続の有無","ご利用\n開始日","利用月数","ID数\n（児童・生徒）","ID数\n（教職員）","学年別表示設定","対象学年","継続の有無","ご利用\n開始日","利用月数","ID数\n（児童・生徒）","ID数\n（教職員）","学年別表示設定","対象学年","継続の有無","ご利用\n開始日","利用月数","ID数\n（児童・生徒）","ID数\n（教職員）","学年別表示設定","対象学年","継続の有無","ご利用\n開始日","利用月数","ID数\n（児童・生徒）","ID数\n（教職員）","学年別表示設定","対象学年","継続の有無","ご利用\n開始日","利用月数","ID数\n（児童・生徒）","ID数\n（教職員）","学年別表示設定","対象学年","継続の有無","ご利用\n開始日","利用月数","ID数\n（児童・生徒）","ID数\n（教職員）","学年別表示設定","対象学年","継続の有無","ご利用\n開始日","利用月数","ID数\n（児童・生徒）","ID数\n（教職員）","学年別表示設定","対象学年","継続の有無","ご利用\n開始日","利用月数","ID数\n（児童・生徒）","ID数\n（教職員）","学年別表示設定","対象学年","継続の有無","ご利用\n開始日","利用月数","ID数\n（児童・生徒）","ID数\n（教職員）","学年別表示設定","対象学年","継続の有無","ご利用\n開始日","利用月数","ID数\n（児童・生徒）","ID数\n（教職員）","学年別表示設定","対象学年","継続の有無","ご利用\n開始日","利用月数","ID数\n（児童・生徒）","ID数\n（教職員）","学年別表示設定","対象学年","継続の有無","ご利用\n開始日","利用月数","ID数\n（児童・生徒）","ID数\n（教職員）","学年別表示設定","対象学年","継続の有無","ご利用\n開始日","利用月数","ID数\n（児童・生徒）","ID数\n（教職員）","学年別表示設定","対象学年","継続の有無","ご利用\n開始日","利用月数","ID数\n（児童・生徒）","ID数\n（教職員）","学年別表示設定","対象学年","継続の有無","ご利用\n開始日","利用月数","ID数\n（児童・生徒）","ID数\n（教職員）","学年別表示設定","対象学年","継続の有無","ご利用\n開始日","利用月数","ID数\n（児童・生徒）","ID数\n（教職員）","学年別表示設定","対象学年","継続の有無","ご利用\n開始日","利用月数","ID数\n（児童・生徒）","ID数\n（教職員）","学年別表示設定","対象学年","継続の有無"]
[null,"（例）","既存環境あり","12345",null,"小学校","大手町小学校","123-4567","東京都千代田区大手町1-1-1","03-1234-5678","Google Workspace連携を申し込む","ootemachi-admin@ootemachi.ed.jp","2025-01-01",1500,150,"申し込みする","xxx.xxx.xxx.xxx/yy","児童・生徒のみ","○",null,null,null,null,null,null,null,"2023-04-01",12,160,20,"申し込みする","1年、2年","新規","2023-04-01",12,160,20,"申し込みする","1年、2年","新規","2023-04-01",12,160,20,"申し込みする","1年、2年","新規","2023-04-01",12,160,20,"申し込みする","1年、2年","新規","2023-04-01",12,160,20,"申し込みする","1年、2年","新規","2023-04-01",12,160,20,"申し込みする","1年、2年","新規","2023-04-01",12,160,20,"申し込みする","1年、2年","新規","2023-04-01",12,160,20,"申し込みする","1年、2年","新規","2023-04-01",12,160,20,"申し込みする","1年、2年","新規","2023-04-01",12,160,20,"申し込みする","1年、2年","新規","2023-04-01",12,160,20,"申し込みする","1年、2年","新規","2023-04-01",12,160,20,"申し込みする","1年、2年","新規","2023-04-01",12,160,20,"申し込みする","1年、2年","新規","2023-04-01",12,160,20,"申し込みする","1年、2年","新規","2023-04-01",12,160,20,"申し込みする","1年、2年","新規","2023-04-01",12,160,20,"申し込みする","1年、2年","新規","2023-04-01",12,160,20,"申し込みする","1年、2年","新規","2023-04-01",12,160,20,"申し込みする","1年、2年","新規","2023-04-01",12,160,20,"申し込みする","1年、2年","新規","2023-04-01",12,160,20,"申し込みする","1年、2年","新規","2023-04-01",12,160,20,"申し込みする","1年、2年","新規","2023-04-01",12,160,20,"申し込みする","1年、2年","新規","2023-04-01",12,160,20,"申し込みする","1年、2年","新規","2023-04-01",12,160,20,"申し込みする","1年、2年","新規","2023-04-01",12,160,20,"申し込みする","1年、2年","新規","2023-04-01",12,160,20,"申し込みする","1年、2年","新規","2023-04-01",12,160,20,"申し込みする","1年、2年","新規","2023-04-01",12,160,20,"申し込みする","1年、2年","新規","2023-04-01",12,160,20,"申し込みする","1年、2年","新規","2023-04-01",12,160,20,"申し込みする","1年、2年","新規"]
[null,{"$f":"ROW()-5","v":1}]
[null,{"$f":"ROW()-5","v":2}]
[null,3]
[null,4]
[null,5]
[null,6]
[null,7]
[null,8]
[null,9]
[null,10]
[null,11]
[null,12]
[null,13]
[null,14]
[null,15]
[null,16]
[null,17]
[null,18]
[null,19]
[null,20]
[null,21]
[null,22]
[null,23]
[null,24]
[null,25]
[null,26]
[null,27]
[null,28]
[null,29]
[null,30]
[null,31]
[null,32]
[null,33]
[null,34]
[null,35]
[null,36]
[null,37]
[null,38]
[null,39]
[null,40]
[null,41]
[null,42]
[null,43]
[null,44]
[null,45]
[null,46]
[null,47]
[null,48]
[null,49]
[null,50]
[null,51]
[null,52]
[null,53]
[null,54]
[null,55]
[null,56]
[null,57]
[null,58]
[null,59]
[null,60]
[null,61]
[null,62]
[null,63]
[null,64]
[null,65]
[null,{"$f":"ROW()-5","v":66}]
[null,67]
[null,68]
[null,69]
[null,70]
[null,71]
[null,72]
[null,73]
[null,74]
[null,75]
[null,76]
[null,77]
[null,78]
[null,79]
[null,80]
[null,81]
[null,82]
[null,83]
[null,84]
[null,85]
[null,86]
[null,87]
[null,88]
[null,89]
[null,90]
[null,91]
[null,92]
[null,93]
[null,94]
[null,95]
[null,96]
[null,97]
[null,98]
[null,99]
[null,100]
[null,101]
[null,102]
[null,103]
[null,104]
[null,105]
[null,106]
[null,107]
[null,108]
[null,109]
[null,110]
[null,111]
[null,112]
[null,113]
[null,114]
[null,115]
[null,116]
[null,117]
[null,118]
[null,119]
[null,120]
[null,121]
[null,122]
[null,123]
[null,124]
[null,125]
[null,126]
[null,127]
[null,128]
[null,129]
[null,{"$f":"ROW()-5","v":130}]
[null,131]
[null,132]
[null,133]
[null,134]
[null,135]
[null,136]
[null,137]
[null,138]
[null,139]
[null,140]
[null,141]
[null,142]
[null,143]
[null,144]
[null,145]
[null,146]
[null,147]
[null,148]
[null,149]
[null,150]
[null,151]
[null,152]
[null,153]
[null,154]
[null,155]
[null,156]
[null,157]
[null,158]
[null,159]
[null,160]
[null,161]
[null,162]
[null,163]
[null,164]
[null,165]
[null,166]
[null,167]
[null,168]
[null,169]
[null,170]
[null,171]
[null,172]
[null,173]
[null,174]
[null,175]
[null,176]
[null,177]
[null,178]
[null,179]
[null,180]
[null,181]
[null,182]
[null,183]
[null,184]
[null,185]
[null,186]
[null,187]
[null,188]
[null,189]
[null,190]
[null,191]
[null,192]
[null,193]
[null,{"$f":"ROW()-5","v":194}]
[null,195]
[null,196]
[null,197]
[null,198]
[null,199]
[null,200]
[null,201]
[null,202]
[null,203]
[null,204]
[null,205]
[null,206]
[null,207]
[null,208]
[null,209]
[null,210]
[null,211]
[null,212]
[null,213]
[null,214]
[null,215]
[null,216]
[null,217]
[null,218]
[null,219]
[null,220]
[null,221]
[null,222]
[null,223]
[null,224]
[null,225]
[null,226]
[null,227]
[null,228]
[null,229]
[null,230]
[null,231]
[null,232]
[null,233]
[null,234]
[null,235]
[null,236]
[null,237]
[null,238]
[null,239]
[null,240]
[null,241]
[null,242]
[null,243]
[null,244]
[null,245]
[null,246]
[null,247]
[null,248]
[null,249]
[null,250]
[null,251]
[null,252]
[null,253]
[null,254]
[null,255]
[null,256]
[null,257]
[null,{"$f":"ROW()-5","v":258}]
[null,259]
[null,260]
[null,261]
[null,262]
[null,263]
[null,264]
[null,265]
[null,266]
[null,267]
[null,268]
[null,269]
[null,270]
[null,271]
[null,272]
[null,273]
[null,274]
[null,275]
[null,276]
[null,277]
[null,278]
[null,279]
[null,280]
[null,281]
[null,282]
[null,283]
[null,284]
[null,285]
[null,286]
[null,287]
[null,288]
[null,289]
[null,290]
[null,291]
[null,292]
[null,293]
[null,294]
[null,295]
[null,296]
[null,297]
[null,298]
[null,299]
[null,300]
[null,301]
[null,302]
[null,303]
[null,304]
[null,305]
[null,306]
[null,307]
[null,308]
[null,309]
[null,310]
[null,311]
[null,312]
[null,313]
[null,314]
[null,315]
[null,316]
[null,317]
[null,318]
[null,319]
[null,320]
[null,321]
[null,{"$f":"ROW()-5","v":322}]
[null,323]
[null,324]
[null,325]
[null,326]
[null,327]
[null,328]
[null,329]
[null,330]
[null,331]
[null,332]
[null,333]
[null,334]
[null,335]
[null,336]
[null,337]
[null,338]
[null,339]
[null,340]
[null,341]
[null,342]
[null,343]
[null,344]
[null,345]
[null,346]
[null,347]
[null,348]
[null,349]
[null,350]
[null,351]
[null,352]
[null,353]
[null,354]
[null,355]
[null,356]
[null,357]
[null,358]
[null,359]
[null,360]
[null,361]
[null,362]
[null,363]
[null,364]
[null,365]
[null,366]
[null,367]
[null,368]
[null,369]
[null,370]
[null,371]
[null,372]
[null,373]
[null,374]
[null,375]
[null,376]
[null,377]
[null,378]
[null,379]
[null,380]
[null,381]
[null,382]
[null,383]
[null,384]
[null,385]
[null,{"$f":"ROW()-5","v":386}]
[null,387]
[null,388]
[null,389]
[null,390]
[null,391]
[null,392]
[null,393]
[null,394]
[null,395]
[null,396]
[null,397]
[null,398]
[null,399]
[null,400]
[null,401]
[null,402]
[null,403]
[null,404]
[null,405]
[null,406]
[null,407]
[null,408]
[null,409]
[null,410]
[null,411]
[null,412]
[null,413]
[null,414]
[null,415]
[null,416]
[null,417]
[null,418]
[null,419]
[null,420]
[null,421]
[null,422]
[null,423]
[null,424]
[null,425]
[null,426]
[null,427]
[null,428]
[null,429]
[null,430]
[null,431]
[null,432]
[null,433]
[null,434]
[null,435]
[null,436]
[null,437]
[null,438]
[null,439]
[null,440]
[null,441]
[null,442]
[null,443]
[null,444]
[null,445]
[null,446]
[null,447]
[null,448]
[null,449]
[null,{"$f":"ROW()-5","v":450}]
[null,451]
[null,452]
[null,453]
[null,454]
[null,455]
[null,456]
[null,457]
[null,458]
[null,459]
[null,460]
[null,461]
[null,462]
[null,463]
[null,464]
[null,465]
[null,466]
[null,467]
[null,468]
[null,469]
[null,470]
[null,471]
[null,472]
[null,473]
[null,474]
[null,475]
[null,476]
[null,477]
[null,478]
[null,479]
[null,480]
[null,481]
[null,482]
[null,483]
[null,484]
[null,485]
[null,486]
[null,487]
[null,488]
[null,489]
[null,490]
[null,491]
[null,492]
[null,493]
[null,494]
[null,495]
[null,496]
[null,497]
[null,498]
[null,499]
[null,500]

{"sheet":"GIGAスクールパック申込別紙","index":4,"n_rows":80,"n_cols":53,"rows_kept":80,"cut":false,"hidden":true,"merged":[[79,1,79,9],[79,10,79,38],[79,39,79,50],[77,1,77,9],[77,10,77,38],[77,39,77,50],[78,1,78,9],[78,10,78,38],[78,39,78,50],[75,1,75,9],[75,10,75,38],[75,39,75,50],[76,1,76,9],[76,10,76,38],[76,39,76,50],[71,1,71,50],[72,1,72,50],[73,1,73,50],[74,1,74,9],[74,10,74,38],[74,39,74,50],[66,2,66,11],[66,12,66,30],[66,31,66,50],[67,1,67,50],[69,1,69,50],[70,1,70,9],[70,10,70,50],[61,39,61,50],[63,1,63,50],[64,2,64,11],[64,12,64,30],[64,31,64,50],[65,2,65,11],[65,12,65,30],[65,31,65,50],[61,1,61,9],[61,10,61,13],[61,14,61,17],[61,18,61,21],[61,22,61,28],[61,29,61,38],[59,1,59,9],[59,10,59,38],[59,39,59,50],[60,1,60,9],[60,10,60,38],[60,39,60,50],[57,5,57,9],[57,10,57,38],[57,39,57,50],[58,1,58,9],[58,10,58,38],[58,39,58,50],[54,1,54,9],[54,10,54,38],[54,39,54,50],[55,1,57,4],[55,5,55,9],[55,10,55,38],[55,39,55,50],[56,5,56,9],[56,10,56,38],[56,39,56,50],[52,1,52,9],[52,10,52,38],[52,39,52,50],[53,1,53,9],[53,10,53,38],[53,39,53,50],[43,0,46,50],[49,1,49,50],[50,1,50,9],[50,10,50,38],[50,39,50,50],[51,1,51,9],[51,10,51,38],[51,39,51,50],[35,1,35,50],[36,1,36,9],[36,10,36,50],[37,1,37,50],[40,1,40,50],[42,1,42,50],[32,1,32,2],[32,3,32,14],[32,15,32,18],[32,20,32,23],[32,24,32,50],[33,1,33,2],[33,3,33,14],[33,15,33,18],[33,20,33,23],[33,24,33,50],[29,1,29,50],[30,1,30,2],[30,3,30,14],[30,15,30,23],[30,24,30,50],[31,1,31,2],[31,3,31,14],[31,15,31,18],[31,20,31,23],[31,24,31,50],[27,3,27,11],[27,12,27,14],[27,15,27,18],[27,20,27,23],[27,24,27,50],[28,3,28,11],[28,12,28,14],[28,15,28,18],[28,20,28,23],[28,24,28,50],[25,3,25,11],[25,12,25,14],[25,15,25,18],[25,20,25,23],[25,24,25,50],[26,3,26,11],[26,12,26,14],[26,15,26,18],[26,20,26,23],[26,24,26,50],[23,3,23,11],[23,12,23,14],[23,15,23,18],[23,20,23,23],[23,24,23,50],[24,3,24,11],[24,12,24,14],[24,15,24,18],[24,20,24,23],[24,24,24,50],[21,3,21,11],[21,12,21,14],[21,15,21,18],[21,20,21,23],[21,24,21,50],[22,3,22,11],[22,12,22,14],[22,15,22,18],[22,20,22,23],[22,24,22,50],[19,3,19,11],[19,12,19,14],[19,15,19,18],[19,20,19,23],[19,24,19,50],[20,3,20,11],[20,12,20,14],[20,15,20,18],[20,20,20,23],[20,24,20,50],[17,3,17,11],[17,12,17,14],[17,15,17,18],[17,20,17,23],[17,24,17,50],[18,3,18,11],[18,12,18,14],[18,15,18,18],[18,20,18,23],[18,24,18,50],[15,1,15,2],[15,3,15,11],[15,12,15,14],[15,15,15,23],[15,24,15,50],[16,3,16,11],[16,12,16,14],[16,15,16,18],[16,20,16,23],[16,24,16,50],[11,1,11,8],[11,9,11,26],[11,27,11,50],[13,1,13,50],[14,1,14,14],[14,15,14,17],[14,19,14,20],[14,22,14,23],[14,24,14,50],[10,1,10,8],[10,9,10,26],[10,27,10,50],[8,1,8,8],[8,9,8,13],[8,14,8,17],[8,18,8,22],[8,23,8,26],[8,27,8,50],[2,1,2,50],[3,1,3,50],[4,24,4,35],[6,1,6,50],[7,1,7,8],[7,9,7,26],[7,27,7,50],[9,1,9,8],[9,9,9,26],[9,27,9,50]]}
[]
[]
[null,"GIGAスクールパック　ご利用端末およびコンテンツ情報"]
[null,"GIGAスクールパックでお申し込みされる端末の情報およびコンテンツやポータル機能開始希望日をご記入ください。"]
[null,null,null,null,null,null,null,null,null,null,null,"まなびポケット研修をご希望の場合は下に続く　",null,null,null,null,null,null,null,null,null,null,null,null,"まなびポケット研修に関する希望調書",null,null,null,null,null,null,null,null,null,null,null,"へもご記入ください。"]
[]
[null,"GIGAスクールパック契約内容"]
[null,"契約パッケージ",null,null,null,null,null,null,null,{"$f":"IF(申込書!AH7=\"GIGAスクールパック（基本パッケージ）\",\"基本パッケージ\",IF(申込書!AH7=\"GIGAスクールパック（応用パッケージ）\",\"応用パッケージ\",\"\"))","v":""}]
[null,"契約端末数",null,null,null,null,null,null,null,"児童・生徒",null,null,null,null,null,null,null,null,"教職員",null,null,null,null,null,null,null,null,"契約端末数をご記入ください。\n入力必須"]
[null,"端末種別",null,null,null,null,null,null,null,"▼プルダウンより選択してください",null,null,null,null,null,null,null,null,null,null,null,null,null,null,null,null,null,"GIGAスクールパックの端末の種別を選択してください。\n入力必須"]
[null,"メーカー",null,null,null,null,null,null,null,"▼プルダウンより選択してください",null,null,null,null,null,null,null,null,null,null,null,null,null,null,null,null,null,"GIGAスクールパックの端末のメーカーを選択してください。\n入力必須"]
[null,"型番",null,null,null,null,null,null,null,null,null,null,null,null,null,null,null,null,null,null,null,null,null,null,null,null,null,"GIGAスクールパックの端末の型番を入力してください。\n入力必須"]
[]
[null,"GIGAスクールパック　コンテンツ\n※応用パッケージをお申し込み かつ GIGAスクールパック以外のコンテンツをお申し込みの場合は申込書シートの「コンテンツ申し込み　利用料」欄へご入力ください。"]
[null," コンテンツ・ポータル機能 利用開始希望日",null,null,null,null,null,null,null,null,null,null,null,null,null,"年 ▼",null,null,"/","月▼",null,"/","日 ▼",null,"GIGAスクールパック コンテンツおよびポータル機能の利用開始希望年月日を選択してください。\n入力必須"]
[null,"No.",null,"コンテンツ名",null,null,null,null,null,null,null,null,"利用月数",null,null,"利用期間",null,null,null,null,null,null,null,null,"備考"]
[null,{"$f":"_xlfn.XLOOKUP($J$10&$J$11,'GIGAスクールパック（コンテンツ）'!$F$15:$F$36&'GIGAスクールパック（コンテンツ）'!$G$15:$G$36,'GIGAスクールパック（コンテンツ）'!$E$15:$E$36,\"\")","v":""},{"$f":"IF(B17=\"\",\"\",C16+1)","v":""},{"$f":"IF(B17=\"\",\"\",VLOOKUP(B17&C17,'GIGAスクールパック（コンテンツ）'!$C$40:$H$80,2,FALSE))","v":""},null,null,null,null,null,null,null,null,{"$f":"IF(B17=\"\",\"\",VLOOKUP(B17&C17,'GIGAスクールパック（コンテンツ）'!$C$40:$H$80,3,FALSE))","v":""},null,null,{"$f":"IF(D17=\"\",\"\",IF(LENB($P$15&$T$15&$W$15)=8,DATE($P$15,$T$15,$W$15),\"\"))","v":""},null,null,null,{"$f":"IF(P17=\"\",\"\",\"～\")","v":""},{"$f":"IF(OR(M17=\"\",P17=\"\",P17=\"YYYY/MM/DD\")=TRUE,\"\",IF(M17=1,EOMONTH(P17,0),EOMONTH(P17,M17-1)))","v":""},null,null,null,""]
[null,{"$f":"IF(COUNTIFS('GIGAスクールパック（コンテンツ）'!$B$40:$B$80,B17)=C17,\"\",B17)","v":""},{"$f":"IF(B18=\"\",\"\",C17+1)","v":""},{"$f":"IF(B18=\"\",\"\",VLOOKUP(B18&C18,'GIGAスクールパック（コンテンツ）'!$C$40:$H$80,2,FALSE))","v":""},null,null,null,null,null,null,null,null,{"$f":"IF(B18=\"\",\"\",VLOOKUP(B18&C18,'GIGAスクールパック（コンテンツ）'!$C$40:$H$80,3,FALSE))","v":""},null,null,{"$f":"IF(D18=\"\",\"\",IF(LENB($P$15&$T$15&$W$15)=8,DATE($P$15,$T$15,$W$15),\"\"))","v":""},null,null,null,{"$f":"IF(P18=\"\",\"\",\"～\")","v":""},"",null,null,null,""]
[null,{"$f":"IF(COUNTIFS('GIGAスクールパック（コンテンツ）'!$B$40:$B$80,B18)=C18,\"\",B18)","v":""},"",{"$f":"IF(B19=\"\",\"\",VLOOKUP(B19&C19,'GIGAスクールパック（コンテンツ）'!$C$40:$H$80,2,FALSE))","v":""},null,null,null,null,null,null,null,null,{"$f":"IF(B19=\"\",\"\",VLOOKUP(B19&C19,'GIGAスクールパック（コンテンツ）'!$C$40:$H$80,3,FALSE))","v":""},null,null,"",null,null,null,"","",null,null,null,""]
[null,{"$f":"IF(COUNTIFS('GIGAスクールパック（コンテンツ）'!$B$40:$B$80,B19)=C19,\"\",B19)","v":""},"",{"$f":"IF(B20=\"\",\"\",VLOOKUP(B20&C20,'GIGAスクールパック（コンテンツ）'!$C$40:$H$80,2,FALSE))","v":""},null,null,null,null,null,null,null,null,{"$f":"IF(B20=\"\",\"\",VLOOKUP(B20&C20,'GIGAスクールパック（コンテンツ）'!$C$40:$H$80,3,FALSE))","v":""},null,null,"",null,null,null,"","",null,null,null,""]
[null,{"$f":"IF(COUNTIFS('GIGAスクールパック（コンテンツ）'!$B$40:$B$80,B20)=C20,\"\",B20)","v":""},"",{"$f":"IF(B21=\"\",\"\",VLOOKUP(B21&C21,'GIGAスクールパック（コンテンツ）'!$C$40:$H$80,2,FALSE))","v":""},null,null,null,null,null,null,null,null,{"$f":"IF(B21=\"\",\"\",VLOOKUP(B21&C21,'GIGAスクールパック（コンテンツ）'!$C$40:$H$80,3,FALSE))","v":""},null,null,"",null,null,null,"","",null,null,null,""]
[null,{"$f":"IF(COUNTIFS('GIGAスクールパック（コンテンツ）'!$B$40:$B$80,B21)=C21,\"\",B21)","v":""},"",{"$f":"IF(B22=\"\",\"\",VLOOKUP(B22&C22,'GIGAスクールパック（コンテンツ）'!$C$40:$H$80,2,FALSE))","v":""},null,null,null,null,null,null,null,null,{"$f":"IF(B22=\"\",\"\",VLOOKUP(B22&C22,'GIGAスクールパック（コンテンツ）'!$C$40:$H$80,3,FALSE))","v":""},null,null,"",null,null,null,"","",null,null,null,""]
[null,{"$f":"IF(COUNTIFS('GIGAスクールパック（コンテンツ）'!$B$40:$B$80,B22)=C22,\"\",B22)","v":""},"",{"$f":"IF(B23=\"\",\"\",VLOOKUP(B23&C23,'GIGAスクールパック（コンテンツ）'!$C$40:$H$80,2,FALSE))","v":""},null,null,null,null,null,null,null,null,{"$f":"IF(B23=\"\",\"\",VLOOKUP(B23&C23,'GIGAスクールパック（コンテンツ）'!$C$40:$H$80,3,FALSE))","v":""},null,null,"",null,null,null,"","",null,null,null,""]
[null,{"$f":"IF(COUNTIFS('GIGAスクールパック（コンテンツ）'!$B$40:$B$80,B23)=C23,\"\",B23)","v":""},"",{"$f":"IF(B24=\"\",\"\",VLOOKUP(B24&C24,'GIGAスクールパック（コンテンツ）'!$C$40:$H$80,2,FALSE))","v":""},null,null,null,null,null,null,null,null,{"$f":"IF(B24=\"\",\"\",VLOOKUP(B24&C24,'GIGAスクールパック（コンテンツ）'!$C$40:$H$80,3,FALSE))","v":""},null,null,"",null,null,null,"","",null,null,null,""]
[null,{"$f":"IF(COUNTIFS('GIGAスクールパック（コンテンツ）'!$B$40:$B$80,B24)=C24,\"\",B24)","v":""},"",{"$f":"IF(B25=\"\",\"\",VLOOKUP(B25&C25,'GIGAスクールパック（コンテンツ）'!$C$40:$H$80,2,FALSE))","v":""},null,null,null,null,null,null,null,null,{"$f":"IF(B25=\"\",\"\",VLOOKUP(B25&C25,'GIGAスクールパック（コンテンツ）'!$C$40:$H$80,3,FALSE))","v":""},null,null,"",null,null,null,"","",null,null,null,""]
[null,{"$f":"IF(COUNTIFS('GIGAスクールパック（コンテンツ）'!$B$40:$B$80,B25)=C25,\"\",B25)","v":""},"",{"$f":"IF(B26=\"\",\"\",VLOOKUP(B26&C26,'GIGAスクールパック（コンテンツ）'!$C$40:$H$80,2,FALSE))","v":""},null,null,null,null,null,null,null,null,{"$f":"IF(B26=\"\",\"\",VLOOKUP(B26&C26,'GIGAスクールパック（コンテンツ）'!$C$40:$H$80,3,FALSE))","v":""},null,null,"",null,null,null,"","",null,null,null,""]
[null,{"$f":"IF(COUNTIFS('GIGAスクールパック（コンテンツ）'!$B$40:$B$80,B26)=C26,\"\",B26)","v":""},"",{"$f":"IF(B27=\"\",\"\",VLOOKUP(B27&C27,'GIGAスクールパック（コンテンツ）'!$C$40:$H$80,2,FALSE))","v":""},null,null,null,null,null,null,null,null,{"$f":"IF(B27=\"\",\"\",VLOOKUP(B27&C27,'GIGAスクールパック（コンテンツ）'!$C$40:$H$80,3,FALSE))","v":""},null,null,"",null,null,null,"","",null,null,null,""]
[null,{"$f":"IF(COUNTIFS('GIGAスクールパック（コンテンツ）'!$B$40:$B$80,B27)=C27,\"\",B27)","v":""},"",{"$f":"IF(B28=\"\",\"\",VLOOKUP(B28&C28,'GIGAスクールパック（コンテンツ）'!$C$40:$H$80,2,FALSE))","v":""},null,null,null,null,null,null,null,null,{"$f":"IF(B28=\"\",\"\",VLOOKUP(B28&C28,'GIGAスクールパック（コンテンツ）'!$C$40:$H$80,3,FALSE))","v":""},null,null,"",null,null,null,"","",null,null,null,""]
[null,{"$f":"IF(COUNTIFS('GIGAスクールパック（コンテンツ）'!$B$40:$B$80,B28)=C28,\"\",B28)","v":""},"",{"$f":"IF(B29=\"\",\"\",VLOOKUP(B29&C29,'GIGAスクールパック（コンテンツ）'!$C$40:$H$80,2,FALSE))","v":""},null,null,null,null,null,null,null,null,{"$f":"IF(B29=\"\",\"\",VLOOKUP(B29&C29,'GIGAスクールパック（コンテンツ）'!$C$40:$H$80,3,FALSE))","v":""},null,null,"",null,null,null,"","",null,null,null,""]
[null,"ポータル機能"]
[null,"No.",null,"機能名",null,null,null,null,null,null,null,null,null,null,null,"利用期間",null,null,null,null,null,null,null,null,"備考"]
[null,1,null,"AARポータル",null,null,null,null,null,null,null,null,null,null,null,{"$f":"IF(LENB($P$15&$T$15&$W$15)<>8,\"\",IF(DATE($P$15,$T$15,$W$15)>=DATEVALUE(\"2025/04/01\"),DATE($P$15,$T$15,$W$15),\"2025/04/01\"))","v":""},null,null,null,{"$f":"IF(P32=\"\",\"\",\"～\")","v":""},{"$f":"IF(P32=\"\",\"\",IF(MONTH(P32)=4,EOMONTH(P32,59),IF(MONTH(P32)>4,YEAR(P32)+6&\"/03/31\",IF(MONTH(P32)<4,YEAR(P32)+5&\"/03/31\"))))","v":""},null,null,null,"無料提供期間：利用開始日から5年後の年度末（3月31日）までの期間",null,null,null,null,null,null,null,null,null,null,null,null,null,null,null,null,null,null,null,null,null,null,null,null,null,null,null,{"$f":"MID(P32,6,2)","v":""}]
[null,2,null,"心の健康観察",null,null,null,null,null,null,null,null,null,null,null,{"$f":"IF(D33=\"\",\"\",IF(LENB($P$15&$T$15&$W$15)=8,DATE($P$15,$T$15,$W$15),\"\"))","v":""},null,null,null,{"$f":"IF(P33=\"\",\"\",\"～\")","v":""},{"$f":"IF(P33=\"\",\"\",IF(MONTH(P33)=4,EOMONTH(P33,59),IF(MONTH(P33)>4,YEAR(P33)+6&\"/03/31\",IF(MONTH(P33)<4,YEAR(P33)+5&\"/03/31\"))))","v":""},null,null,null,"無料提供期間：利用開始日から5年後の年度末（3月31日）までの期間"]
[null,3,null,"ダッシュボード（活用状況可視化機能）",null,null,null,null,null,null,null,null,null,null,null,{"$f":"IF(LENB($P$15&$T$15&$W$15)<>8,\"\",IF(DATE($P$15,$T$15,$W$15)>=DATEVALUE(\"2025/04/01\"),DATE($P$15,$T$15,$W$15),\"2025/04/01\"))","v":""},null,null,null,"",{"$f":"IF(P34=\"\",\"\",IF(MONTH(P34)=4,EOMONTH(P34,59),IF(MONTH(P34)>4,YEAR(P34)+6&\"/03/31\",IF(MONTH(P34)<4,YEAR(P34)+5&\"/03/31\"))))","v":""},null,null,null,"無料提供期間：利用開始日から5年後の年度末（3月31日）までの期間"]
[]
[null,"GIGAスクールパックお申し込みに関わるご要望記事欄"]
[null,"お客さまご要望記事欄"]
[null,"※「お客さまご要望記事欄」に記載された事項については、当社が明示的に承諾しない限り、当社とお客さまとの間の契約条件等として両者を拘束するものではありません。"]
[]
[]
[null,"-------------------------------------------------------------------------------------------------------------------------------------------------"]
[]
[null,"まなびポケット研修に関する希望調書"]
["【学校向け研修実施までの流れ】\n　①教育委員会より本申込書をご提出いただきます。\n　②NTTドコモビジネスより記載いただいたご連絡先にご連絡いたします。\n　③教育委員会と研修内容・日程の調整後、研修会を実施いたします。"]
[]
[]
[]
[]
[]
[null,"研修に関する連絡先"]
[null,"教育委員会名（ふりがな）／\n学校法人名（ふりがな）",null,null,null,null,null,null,null,null,{"$f":"IF(申込書!K70<>\"\",申込書!K70,\"\")","v":""},null,null,null,null,null,null,null,null,null,null,null,null,null,null,null,null,null,null,null,null,null,null,null,null,null,null,null,null,"入力必須"]
[null,"教育委員会名／学校法人名",null,null,null,null,null,null,null,null,{"$f":"IF(申込書!K71<>\"\",申込書!K71,\"\")","v":""},null,null,null,null,null,null,null,null,null,null,null,null,null,null,null,null,null,null,null,null,null,null,null,null,null,null,null,null,"入力必須"]
[null,"所属・部署名",null,null,null,null,null,null,null,null,null,null,null,null,null,null,null,null,null,null,null,null,null,null,null,null,null,null,null,null,null,null,null,null,null,null,null,null,null,"入力必須"]
[null,"ご担当者名（ふりがな）",null,null,null,null,null,null,null,null,"　",null,null,null,null,null,null,null,null,null,null,null,null,null,null,null,null,null,null,null,null,null,null,null,null,null,null,null,null,"必ず学校向け研修を担当する方のお名前をご記入ください。\n入力必須"]
[null,"ご担当者名",null,null,null,null,null,null,null,null,"　",null,null,null,null,null,null,null,null,null,null,null,null,null,null,null,null,null,null,null,null,null,null,null,null,null,null,null,null,"必ず学校向け研修を担当する方のお名前をご記入ください。\n入力必須"]
[null,"住所",null,null,null,"郵便番号",null,null,null,null," ",null,null,null,null,null,null,null,null,null,null,null,null,null,null,null,null,null,null,null,null,null,null,null,null,null,null,null,null,"半角数字と半角ハイフンのみ可。\n入力必須"]
[null,null,null,null,null,"都道府県",null,null,null,null,"　",null,null,null,null,null,null,null,null,null,null,null,null,null,null,null,null,null,null,null,null,null,null,null,null,null,null,null,null,"入力必須"]
[null,null,null,null,null,"住所",null,null,null,null,"　",null,null,null,null,null,null,null,null,null,null,null,null,null,null,null,null,null,null,null,null,null,null,null,null,null,null,null,null,"入力必須"]
[null,"電話番号（ご担当者）",null,null,null,null,null,null,null,null,null,null,null,null,null,null,null,null,null,null,null,null,null,null,null,null,null,null,null,null,null,null,null,null,null,null,null,null,null,"半角数字と半角ハイフンのみ可。\n（ハイフン付き）\n入力必須"]
[null,"メールアドレス①（ご担当者）",null,null,null,null,null,null,null,null,null,null,null,null,null,null,null,null,null,null,null,null,null,null,null,null,null,null,null,null,null,null,null,null,null,null,null,null,null,"半角英数字記号のみ可。\n入力必須"]
[null,"メールアドレス②（ご担当者）\n　※任意",null,null,null,null,null,null,null,null,null,null,null,null,null,null,null,null,null,null,null,null,null,null,null,null,null,null,null,null,null,null,null,null,null,null,null,null,null,"半角英数字記号のみ可。\n２以上の場合は；（セミコロン）区切りで記入。"]
[null,"連絡手段のご要望",null,null,null,null,null,null,null,null,null,null,null,null,null,null,null,null,"　",null,null,null,"その他ご要望　（連絡時間帯等）",null,null,null,null,null,null,null,null,null,null,null,null,null,null,null,null,"連絡手段のご要望について記載してください。\n入力必須"]
[]
[null,"研修申し込みヒアリング"]
[null,"No","項目",null,null,null,null,null,null,null,null,null,"期間",null,null,null,null,null,null,null,null,null,null,null,null,null,null,null,null,null,null,"注意事項"]
[null,1,"教育委員会向け事前説明ご希望期間",null,null,null,null,null,null,null,null,null,"▼プルダウンより選択してください",null,null,null,null,null,null,null,null,null,null,null,null,null,null,null,null,null,null,"教育委員会向けに事前説明を行います。ご希望の期間を選択してください。\n入力必須"]
[null,2,"教職員向け研修会ご希望期間",null,null,null,null,null,null,null,null,null,"▼プルダウンより選択してください",null,null,null,null,null,null,null,null,null,null,null,null,null,null,null,null,null,null,"希望する研修期間を選択してください。\n入力必須"]
[null,"※申込書受領後、NTTドコモビジネスの担当者よりご連絡し、日程調整となります。"]
[]
[null,"研修に関わるご要望記事欄"]
[null,"お客さまご要望記事欄"]
[null,"※「お客さまご要望記事欄」に記載された事項については、当社が明示的に承諾しない限り、当社とお客さまとの間の契約条件等として両者を拘束するものではありません。"]
[null,"-------------------------------------　　弊社記入欄 （お客さまによる記入は不要です）　　-------------------------------------"]
[null,"お客さま受付部門（NTTドコモビジネス営業担当者）　※営業担当の情報は申込書シートへ記入された情報を表示しています"]
[null,"組織名",null,null,null,null,null,null,null,null,""]
[null,"部課名",null,null,null,null,null,null,null,null,""]
[null,"担当者名",null,null,null,null,null,null,null,null,""]
[null,"電話番号",null,null,null,null,null,null,null,null,"",null,null,null,null,null,null,null,null,null,null,null,null,null,null,null,null,null,null,null,null,null,null,null,null,null,null,null,null,"半角数字と半角ハイフンのみ可。\n（ハイフン付き）"]
[null,"メールアドレス①",null,null,null,null,null,null,null,null,"",null,null,null,null,null,null,null,null,null,null,null,null,null,null,null,null,null,null,null,null,null,null,null,null,null,null,null,null,"こちらに入力されたメールアドレスはアカウント送付先メールアドレスに追加されます。メールの受領が必要な場合は必ずご記入ください。"]
[null,"メールアドレス②",null,null,null,null,null,null,null,null,"",null,null,null,null,null,null,null,null,null,null,null,null,null,null,null,null,null,null,null,null,null,null,null,null,null,null,null,null,"上記同様。\n２以上の場合は；（セミコロン）区切りで記入。"]

{"sheet":"【社内用】社内受付情報","index":5,"n_rows":27,"n_cols":40,"rows_kept":27,"cut":false,"hidden":true,"merged":[[24,1,24,9],[24,10,24,50],[25,1,25,9],[25,10,25,50],[26,1,26,9],[26,10,26,50],[20,1,20,9],[20,10,20,38],[20,39,20,50],[22,1,22,50],[23,1,23,9],[23,10,23,50],[18,1,18,9],[18,10,18,38],[18,39,18,50],[19,1,19,9],[19,10,19,38],[19,39,19,50],[16,1,16,9],[16,10,16,38],[16,39,16,50],[17,1,17,9],[17,10,17,38],[17,39,17,50],[14,1,14,9],[14,10,14,38],[14,39,14,50],[15,1,15,9],[15,10,15,38],[15,39,15,50],[11,1,11,50],[12,1,12,9],[12,10,12,38],[12,39,12,50],[13,1,13,9],[13,10,13,38],[13,39,13,50],[9,1,9,9],[9,10,9,38],[9,39,9,50],[6,1,6,9],[6,10,6,38],[6,39,6,50],[7,1,7,9],[7,10,7,38],[7,39,7,50],[8,1,8,9],[8,10,8,18],[8,19,8,28],[8,29,8,38],[8,39,8,50],[4,1,4,9],[4,10,4,38],[4,39,4,50],[5,1,5,9],[5,10,5,38],[5,39,5,50],[3,1,3,9],[3,10,3,38],[3,39,3,50],[0,1,0,50],[1,1,1,50],[2,1,2,9],[2,10,2,38],[2,39,2,50]]}
[null,"-------------------------------------　　弊社記入欄 （お客さまによる記入は不要です）　　-------------------------------------"]
[null,"→　お客さま受付部門（NTTドコモビジネス株式会社記入欄）　※営業担当者の情報をご記入ください。"]
[null,"組織名"]
[null,"部課名"]
[null,"担当者名"]
[null,"電話番号",null,null,null,null,null,null,null,null,null,null,null,null,null,null,null,null,null,null,null,null,null,null,null,null,null,null,null,null,null,null,null,null,null,null,null,null,null,"数字とハイフンのみ可。\n（ハイフン付き）"]
[null,"メールアドレス①",null,null,null,null,null,null,null,null,null,null,null,null,null,null,null,null,null,null,null,null,null,null,null,null,null,null,null,null,null,null,null,null,null,null,null,null,null,"こちらに入力されたメールアドレスはアカウント送付先メールアドレスに追加されます。メールの受領が必要な場合は必ずご記入ください。"]
[null,"メールアドレス②",null,null,null,null,null,null,null,null,null,null,null,null,null,null,null,null,null,null,null,null,null,null,null,null,null,null,null,null,null,null,null,null,null,null,null,null,null,"こちらに入力されたメールアドレスはアカウント送付先メールアドレスに追加されます。メールの受領が必要な場合は必ずご記入ください。"]
[null,"販売方法",null,null,null,null,null,null,null,null,null,null,null,null,null,null,null,null,null,null,null,null,null,null,null,null,null,null,null,null,null,null,null,null,null,null,null,null,null,"いずれか必ずチェックを入れてください。"]
[null,"営業卸見積番号",null,null,null,null,null,null,null,null,null,null,null,null,null,null,null,null,null,null,null,null,null,null,null,null,null,null,null,null,null,null,null,null,null,null,null,null,null,"SMEDより提出された見積番号の記載をお願いします。"]
[]
[null,"お客さま対応部門　※こちらの欄はお客さま受付部門に記入の販売方法が代理店（手数料）の場合にご記入ください。"]
[null,"販売チャネルコード",null,null,null,null,null,null,null,null,null,null,null,null,null,null,null,null,null,null,null,null,null,null,null,null,null,null,null,null,null,null,null,null,null,null,null,null,null,"半角英数字記号8桁"]
[null,"販売チャネル名",null,null,null,null,null,null,null,null,null,null,null,null,null,null,null,null,null,null,null,null,null,null,null,null,null,null,null,null,null,null,null,null,null,null,null,null,null,"全角16桁以内"]
[null,"部課名",null,null,null,null,null,null,null,null,null,null,null,null,null,null,null,null,null,null,null,null,null,null,null,null,null,null,null,null,null,null,null,null,null,null,null,null,null,"全角16桁以内"]
[null,"社員コード＋担当者名",null,null,null,null,null,null,null,null,null,null,null,null,null,null,null,null,null,null,null,null,null,null,null,null,null,null,null,null,null,null,null,null,null,null,null,null,null,"社員コードが7桁の場合、\n社員コード＋0＋担当者名としてください。"]
[null,"組織区分",null,null,null,null,null,null,null,null,null,null,null,null,null,null,null,null,null,null,null,null,null,null,null,null,null,null,null,null,null,null,null,null,null,null,null,null,null,"例：NTT東日本"]
[null,"電話番号",null,null,null,null,null,null,null,null,null,null,null,null,null,null,null,null,null,null,null,null,null,null,null,null,null,null,null,null,null,null,null,null,null,null,null,null,null,"数字とハイフンのみ可。\n（ハイフン付き）"]
[null,"FAX番号",null,null,null,null,null,null,null,null,null,null,null,null,null,null,null,null,null,null,null,null,null,null,null,null,null,null,null,null,null,null,null,null,null,null,null,null,null,"数字とハイフンのみ可。\n（ハイフン付き）"]
[null,"メールアドレス①",null,null,null,null,null,null,null,null,null,null,null,null,null,null,null,null,null,null,null,null,null,null,null,null,null,null,null,null,null,null,null,null,null,null,null,null,null,"半角英数字記号のみ可。"]
[null,"メールアドレス②",null,null,null,null,null,null,null,null,null,null,null,null,null,null,null,null,null,null,null,null,null,null,null,null,null,null,null,null,null,null,null,null,null,null,null,null,null,"半角英数字記号のみ可。"]
[]
[null,"スマートエデュケーション推進事業室　記事欄"]
[null,"担当者"]
[null,"受付種別",null,null,null,null,null,null,null,null,"▼プルダウンより選択してください"]
[null,"修正箇所・内容\n(担当名記載)",null,null,null,null,null,null,null,null,"・\n・\n・\n・\n・"]
[null,"連絡/注意事項",null,null,null,null,null,null,null,null,"・\n・\n・\n・\n・"]

{"sheet":"休日一覧","index":6,"n_rows":73,"n_cols":1,"rows_kept":73,"cut":false,"hidden":true,"merged":[]}
["2025-01-01"]
["2025-01-02"]
["2025-01-03"]
["2025-01-13"]
["2025-02-11"]
["2025-02-23"]
["2025-02-24"]
["2025-03-20"]
["2025-04-29"]
["2025-05-03"]
["2025-05-04"]
["2025-05-05"]
["2025-05-06"]
["2025-07-21"]
["2025-08-11"]
["2025-09-15"]
["2025-09-23"]
["2025-10-13"]
["2025-11-03"]
["2025-11-23"]
["2025-11-24"]
["2025-12-29"]
["2025-12-30"]
["2025-12-31"]
["2026-01-01"]
["2026-01-02"]
["2026-01-03"]
["2026-01-12"]
["2026-02-11"]
["2026-02-23"]
["2026-03-20"]
["2026-04-29"]
["2026-05-03"]
["2026-05-04"]
["2026-05-05"]
["2026-05-06"]
["2026-07-20"]
["2026-08-11"]
["2026-09-21"]
["2026-09-22"]
["2026-09-23"]
["2026-10-12"]
["2026-11-03"]
["2026-11-23"]
["2026-12-29"]
["2026-12-30"]
["2026-12-31"]
["2027-01-01"]
["2027-01-02"]
["2027-01-03"]
["2027-01-01"]
["2027-01-11"]
["2027-02-11"]
["2027-02-23"]
["2027-03-21"]
["2027-03-22"]
["2027-04-29"]
["2027-05-03"]
["2027-05-04"]
["2027-05-05"]
["2027-07-19"]
["2027-08-11"]
["2027-09-20"]
["2027-09-23"]
["2027-10-11"]
["2027-11-03"]
["2027-11-23"]
["2027-12-29"]
["2027-12-30"]
["2027-12-31"]
["2028-01-01"]
["2028-01-02"]
["2028-01-03"]

{"sheet":"GIGAスクールパック（コンテンツ）","index":7,"n_rows":93,"n_cols":8,"rows_kept":93,"cut":false,"hidden":true,"merged":[[12,5,12,6],[7,5,7,6],[8,5,8,6],[9,5,9,6],[10,5,10,6],[11,5,11,6]]}
[null,null,"資料：GIGAスクールパック"]
[null,null,null,"https://teams.microsoft.com/l/message/19:meeting_MmI4YWNmNWMtNjFiNy00OWFiLWJkZDUtNjAzMDQzOGFlNzRm@thread.v2/1747114542503?context=%7B%22contextType%22%3A%22chat%22%7D"]
[]
[null,null,"コンテンツ",null,null,null,null,"備考"]
[null,null,1,"eboard"]
[null,null,2,"バンショット"]
[null,null,3,"防災学習ポータル"]
[null,null,4,"まなびスタンプGIGA版",24,"GIGAスクールパック契約に限る（2年間）。"]
[null,null,5,"まなびスタンププログラミングGIGA版",24,"GIGAスクールパック契約及びiPad(LTE)利用に限る（2年間）。"]
[null,null,6,"事例で学ぶ Netモラル トライアル",24,"GIGAスクールパック契約に限る（2年間）。",null,"現在「事例で学ぶNetモラル for まなびポケット」または「事例で学ぶNetモラル（eラーニング） for まなびポケット」をご契約の場合、本申し込みの利用期間は無効とし、既存契約の有効期間を優先いたします。"]
[null,null,7,"ブリタニカ・エントリーエディション",12,"GIGAスクールパック契約に限る（1年間）。",null,"現在「ブリタニカ・スクールエディション」または「ブリタニカ　クエスト＆サーチ」をご契約の場合、本申し込みの利用期間は無効とし、既存契約の有効期間を優先いたします。"]
[null,null,8,"オンライン学習プログラムG-COS",60,"GIGAスクールパック契約およびChromebookに限る。"]
[null,null,9,"Sagasokka!",24,"GIGAスクールパック契約に限る（2年間）。",null,"現在「Sagasokka!」をご契約の場合、本申し込みの利用期間は無効とし、既存契約の有効期間を優先いたします。"]
[]
[null,null,null,null,"No.","端末種別","メーカー"]
[null,null,null,null,null,"▼プルダウンより選択してください"]
[null,null,null,null,"CW","Chromebook_Wifi","ASUS"]
[null,null,null,null,"CW","Chromebook_Wifi","dynabook"]
[null,null,null,null,"CW","Chromebook_Wifi","Lenovo"]
[null,null,null,null,"CW","Chromebook_Wifi","HP"]
[null,null,null,null,"CW","Chromebook_Wifi","NEC"]
[null,null,null,null,"CL","Chromebook_LTE","ASUS"]
[null,null,null,null,"CL","Chromebook_LTE","dynabook"]
[null,null,null,null,"CL","Chromebook_LTE","Lenovo"]
[null,null,null,null,"CL","Chromebook_LTE","HP"]
[null,null,null,null,"CL","Chromebook_LTE","NEC"]
[null,null,null,null,"WW","Windows_Wifi","ASUS"]
[null,null,null,null,"WW","Windows_Wifi","dynabook"]
[null,null,null,null,"WW","Windows_Wifi","Lenovo"]
[null,null,null,null,"WW","Windows_Wifi","Microsoft"]
[null,null,null,null,"WL","Windows_LTE","ASUS"]
[null,null,null,null,"WL","Windows_LTE","dynabook"]
[null,null,null,null,"WL","Windows_LTE","Lenovo"]
[null,null,null,null,"WL","Windows_LTE","Microsoft"]
[null,null,null,null,"iW","iPad_Wifi","Apple"]
[null,null,null,null,"iL","iPad_LTE","Apple"]
[]
[]
[]
[null,"No.","No.","コンテンツ","月数★","端末種別","メーカー","備考★"]
[null,"CW",{"$f":"B41&COUNTIF($B$41:B41,B41)","v":"CW1"},"eboard",{"$f":"IF(B41=\"\",\"\",VLOOKUP(D41,$D$5:$H$13,2,FALSE))&\"\"","v":""},"Chromebook_Wifi",null,{"$f":"IF(B41=\"\",\"\",VLOOKUP(D41,$D$5:$H$13,5,FALSE))&\"\"","v":""}]
[null,"CW",{"$f":"B42&COUNTIF($B$41:B42,B42)","v":"CW2"},"バンショット","","Chromebook_Wifi",null,""]
[null,"CW",{"$f":"B43&COUNTIF($B$41:B43,B43)","v":"CW3"},"防災学習ポータル","","Chromebook_Wifi",null,""]
[null,"CW",{"$f":"B44&COUNTIF($B$41:B44,B44)","v":"CW4"},"事例で学ぶ Netモラル トライアル","24","Chromebook_Wifi",null,"現在「事例で学ぶNetモラル for まなびポケット」または「事例で学ぶNetモラル（eラーニング） for まなびポケット」をご契約の場合、本申し込みの利用期間は無効とし、既存契約の有効期間を優先いたします。"]
[null,"CW",{"$f":"B45&COUNTIF($B$41:B45,B45)","v":"CW5"},"ブリタニカ・エントリーエディション","12","Chromebook_Wifi",null,"現在「ブリタニカ・スクールエディション」または「ブリタニカ　クエスト＆サーチ」をご契約の場合、本申し込みの利用期間は無効とし、既存契約の有効期間を優先いたします。"]
[null,"CW",{"$f":"B46&COUNTIF($B$41:B46,B46)","v":"CW6"},"オンライン学習プログラムG-COS","60","Chromebook_Wifi",null,""]
[null,"CW",{"$f":"B47&COUNTIF($B$41:B47,B47)","v":"CW7"},"Sagasokka!","24","Chromebook_Wifi",null,"現在「Sagasokka!」をご契約の場合、本申し込みの利用期間は無効とし、既存契約の有効期間を優先いたします。"]
[null,"CL",{"$f":"B48&COUNTIF($B$41:B48,B48)","v":"CL1"},"eboard","","Chromebook_LTE",null,""]
[null,"CL",{"$f":"B49&COUNTIF($B$41:B49,B49)","v":"CL2"},"バンショット","","Chromebook_LTE",null,""]
[null,"CL",{"$f":"B50&COUNTIF($B$41:B50,B50)","v":"CL3"},"防災学習ポータル","","Chromebook_LTE",null,""]
[null,"CL",{"$f":"B51&COUNTIF($B$41:B51,B51)","v":"CL4"},"事例で学ぶ Netモラル トライアル","24","Chromebook_LTE",null,"現在「事例で学ぶNetモラル for まなびポケット」または「事例で学ぶNetモラル（eラーニング） for まなびポケット」をご契約の場合、本申し込みの利用期間は無効とし、既存契約の有効期間を優先いたします。"]
[null,"CL",{"$f":"B52&COUNTIF($B$41:B52,B52)","v":"CL5"},"ブリタニカ・エントリーエディション","12","Chromebook_LTE",null,"現在「ブリタニカ・スクールエディション」または「ブリタニカ　クエスト＆サーチ」をご契約の場合、本申し込みの利用期間は無効とし、既存契約の有効期間を優先いたします。"]
[null,"CL",{"$f":"B53&COUNTIF($B$41:B53,B53)","v":"CL6"},"オンライン学習プログラムG-COS","60","Chromebook_LTE",null,""]
[null,"CL",{"$f":"B54&COUNTIF($B$41:B54,B54)","v":"CL7"},"Sagasokka!","24","Chromebook_LTE",null,"現在「Sagasokka!」をご契約の場合、本申し込みの利用期間は無効とし、既存契約の有効期間を優先いたします。"]
[null,"WW",{"$f":"B55&COUNTIF($B$41:B55,B55)","v":"WW1"},"eboard","","Windows_Wifi",null,""]
[null,"WW",{"$f":"B56&COUNTIF($B$41:B56,B56)","v":"WW2"},"バンショット","","Windows_Wifi",null,""]
[null,"WW",{"$f":"B57&COUNTIF($B$41:B57,B57)","v":"WW3"},"防災学習ポータル","","Windows_Wifi",null,""]
[null,"WW",{"$f":"B58&COUNTIF($B$41:B58,B58)","v":"WW4"},"事例で学ぶ Netモラル トライアル","24","Windows_Wifi",null,"現在「事例で学ぶNetモラル for まなびポケット」または「事例で学ぶNetモラル（eラーニング） for まなびポケット」をご契約の場合、本申し込みの利用期間は無効とし、既存契約の有効期間を優先いたします。"]
[null,"WW",{"$f":"B59&COUNTIF($B$41:B59,B59)","v":"WW5"},"ブリタニカ・エントリーエディション","12","Windows_Wifi",null,"現在「ブリタニカ・スクールエディション」または「ブリタニカ　クエスト＆サーチ」をご契約の場合、本申し込みの利用期間は無効とし、既存契約の有効期間を優先いたします。"]
[null,"WW",{"$f":"B60&COUNTIF($B$41:B60,B60)","v":"WW6"},"Sagasokka!","24","Windows_Wifi",null,"現在「Sagasokka!」をご契約の場合、本申し込みの利用期間は無効とし、既存契約の有効期間を優先いたします。"]
[null,"WL",{"$f":"B61&COUNTIF($B$41:B61,B61)","v":"WL1"},"eboard","","Windows_LTE",null,""]
[null,"WL",{"$f":"B62&COUNTIF($B$41:B62,B62)","v":"WL2"},"バンショット","","Windows_LTE",null,""]
[null,"WL",{"$f":"B63&COUNTIF($B$41:B63,B63)","v":"WL3"},"防災学習ポータル","","Windows_LTE",null,""]
[null,"WL",{"$f":"B64&COUNTIF($B$41:B64,B64)","v":"WL4"},"事例で学ぶ Netモラル トライアル","24","Windows_LTE",null,"現在「事例で学ぶNetモラル for まなびポケット」または「事例で学ぶNetモラル（eラーニング） for まなびポケット」をご契約の場合、本申し込みの利用期間は無効とし、既存契約の有効期間を優先いたします。"]
[null,"WL",{"$f":"B65&COUNTIF($B$41:B65,B65)","v":"WL5"},"ブリタニカ・エントリーエディション","12","Windows_LTE",null,"現在「ブリタニカ・スクールエディション」または「ブリタニカ　クエスト＆サーチ」をご契約の場合、本申し込みの利用期間は無効とし、既存契約の有効期間を優先いたします。"]
[null,"WL",{"$f":"B66&COUNTIF($B$41:B66,B66)","v":"WL6"},"Sagasokka!","24","Windows_LTE",null,"現在「Sagasokka!」をご契約の場合、本申し込みの利用期間は無効とし、既存契約の有効期間を優先いたします。"]
[null,"iW",{"$f":"B67&COUNTIF($B$41:B67,B67)","v":"iW1"},"eboard","","iPad_Wifi",null,""]
[null,"iW",{"$f":"B68&COUNTIF($B$41:B68,B68)","v":"iW2"},"バンショット","","iPad_Wifi",null,""]
[null,"iW",{"$f":"B69&COUNTIF($B$41:B69,B69)","v":"iW3"},"防災学習ポータル","","iPad_Wifi",null,""]
[null,"iW",{"$f":"B70&COUNTIF($B$41:B70,B70)","v":"iW4"},"事例で学ぶ Netモラル トライアル","24","iPad_Wifi",null,"現在「事例で学ぶNetモラル for まなびポケット」または「事例で学ぶNetモラル（eラーニング） for まなびポケット」をご契約の場合、本申し込みの利用期間は無効とし、既存契約の有効期間を優先いたします。"]
[null,"iW",{"$f":"B71&COUNTIF($B$41:B71,B71)","v":"iW5"},"ブリタニカ・エントリーエディション","12","iPad_Wifi",null,"現在「ブリタニカ・スクールエディション」または「ブリタニカ　クエスト＆サーチ」をご契約の場合、本申し込みの利用期間は無効とし、既存契約の有効期間を優先いたします。"]
[null,"iW",{"$f":"B72&COUNTIF($B$41:B72,B72)","v":"iW6"},"Sagasokka!","24","iPad_Wifi",null,"現在「Sagasokka!」をご契約の場合、本申し込みの利用期間は無効とし、既存契約の有効期間を優先いたします。"]
[null,"iL",{"$f":"B73&COUNTIF($B$41:B73,B73)","v":"iL1"},"eboard","","iPad_LTE",null,""]
[null,"iL",{"$f":"B74&COUNTIF($B$41:B74,B74)","v":"iL2"},"バンショット","","iPad_LTE",null,""]
[null,"iL",{"$f":"B75&COUNTIF($B$41:B75,B75)","v":"iL3"},"防災学習ポータル","","iPad_LTE",null,""]
[null,"iL",{"$f":"B76&COUNTIF($B$41:B76,B76)","v":"iL4"},"まなびスタンプGIGA版","24","iPad_LTE",null,""]
[null,"iL",{"$f":"B77&COUNTIF($B$41:B77,B77)","v":"iL5"},"まなびスタンププログラミングGIGA版","24","iPad_LTE",null,""]
[null,"iL",{"$f":"B78&COUNTIF($B$41:B78,B78)","v":"iL6"},"事例で学ぶ Netモラル トライアル","24","iPad_LTE",null,"現在「事例で学ぶNetモラル for まなびポケット」または「事例で学ぶNetモラル（eラーニング） for まなびポケット」をご契約の場合、本申し込みの利用期間は無効とし、既存契約の有効期間を優先いたします。"]
[null,"iL",{"$f":"B79&COUNTIF($B$41:B79,B79)","v":"iL7"},"ブリタニカ・エントリーエディション","12","iPad_LTE",null,"現在「ブリタニカ・スクールエディション」または「ブリタニカ　クエスト＆サーチ」をご契約の場合、本申し込みの利用期間は無効とし、既存契約の有効期間を優先いたします。"]
[null,"iL",{"$f":"B80&COUNTIF($B$41:B80,B80)","v":"iL8"},"Sagasokka!","24","iPad_LTE",null,"現在「Sagasokka!」をご契約の場合、本申し込みの利用期間は無効とし、既存契約の有効期間を優先いたします。"]
[]
[]
[]
[null,null,null,"★GIGA研修シート"]
[null,null,null,"希望する研修期間"]
[null,null,null,"▼プルダウンより選択してください"]
[null,null,null,"今年度4～6月"]
[null,null,null,"今年度7～8月"]
[null,null,null,"今年度9月～12月"]
[null,null,null,"今年度1月～3月"]
[null,null,null,"来年度4月～6月"]
[null,null,null,"YYYY/MM/DD　～　YYYY/MM/DD"]
[null,null,null,"未定"]

{"sheet":"GIGAスクールパック（端末種別）","index":8,"n_rows":11,"n_cols":11,"rows_kept":11,"cut":false,"hidden":true,"merged":[]}
[]
[null,null,"種別","メーカー"]
[]
[null,null,"端末種別","Windows_Wifi","Windows_LTE","Chromebook_Wifi","Chromebook_LTE","iPad_Wifi","iPad_LTE","▼プルダウンより選択してください","▼プルダウンより選択してください▼プルダウンより選択してください"]
[null,null,"▼プルダウンより選択してください","ASUS","ASUS","ASUS","ASUS","Apple","Apple","▼プルダウンより選択してください","▼プルダウンより選択してください"]
[null,null,"Windows_Wifi","dynabook","dynabook","dynabook","dynabook"]
[null,null,"Windows_LTE","Lenovo","Lenovo","Lenovo","Lenovo"]
[null,null,"Chromebook_Wifi","Microsoft","Microsoft","HP","HP"]
[null,null,"Chromebook_LTE",null,null,"NEC","NEC"]
[null,null,"iPad_Wifi"]
[null,null,"iPad_LTE"]

{"sheet":"年月日","index":9,"n_rows":34,"n_cols":17,"rows_kept":34,"cut":false,"hidden":true,"merged":[]}
[]
[null,"年 ▼","月▼",null,"01","02","03","04","05","06","07","08","09","10","11","12","月▼"]
[{"$f":"TODAY()","v":"2025-07-08"},{"$f":"YEAR(A3)","v":2025},"01",null,"日 ▼","日 ▼","日 ▼","日 ▼","日 ▼","日 ▼","日 ▼","日 ▼","日 ▼","日 ▼","日 ▼","日 ▼","日 ▼"]
[null,{"$f":"B3+1","v":2026},"02",null,"01","01","01","01","01","01","01","01","01","01","01","01"]
[null,{"$f":"B4+1","v":2027},"03",null,"02","02","02","02","02","02","02","02","02","02","02","02"]
[null,2028,"04",null,"03","03","03","03","03","03","03","03","03","03","03","03"]
[null,2029,"05",null,"04","04","04","04","04","04","04","04","04","04","04","04"]
[null,2030,"06",null,"05","05","05","05","05","05","05","05","05","05","05","05"]
[null,2031,"07",null,"06","06","06","06","06","06","06","06","06","06","06","06"]
[null,2032,"08",null,"07","07","07","07","07","07","07","07","07","07","07","07"]
[null,2033,"09",null,"08","08","08","08","08","08","08","08","08","08","08","08"]
[null,2034,"10",null,"09","09","09","09","09","09","09","09","09","09","09","09"]
[null,2035,"11",null,"10","10","10","10","10","10","10","10","10","10","10","10"]
[null,2036,"12",null,"11","11","11","11","11","11","11","11","11","11","11","11"]
[null,null,null,null,"12","12","12","12","12","12","12","12","12","12","12","12"]
[null,null,null,null,"13","13","13","13","13","13","13","13","13","13","13","13"]
[null,null,null,null,"14","14","14","14","14","14","14","14","14","14","14","14"]
[null,null,null,null,"15","15","15","15","15","15","15","15","15","15","15","15"]
[null,null,null,null,"16","16","16","16","16","16","16","16","16","16","16","16"]
[null,null,null,null,"17","17","17","17","17","17","17","17","17","17","17","17"]
[null,null,null,null,"18","18","18","18","18","18","18","18","18","18","18","18"]
[null,null,null,null,"19","19","19","19","19","19","19","19","19","19","19","19"]
[null,null,null,null,"20","20","20","20","20","20","20","20","20","20","20","20"]
[null,null,null,null,"21","21","21","21","21","21","21","21","21","21","21","21"]
[null,null,null,null,"22","22","22","22","22","22","22","22","22","22","22","22"]
[null,null,null,null,"23","23","23","23","23","23","23","23","23","23","23","23"]
[null,null,null,null,"24","24","24","24","24","24","24","24","24","24","24","24"]
[null,null,null,null,"25","25","25","25","25","25","25","25","25","25","25","25"]
[null,null,null,null,"26","26","26","26","26","26","26","26","26","26","26","26"]
[null,null,null,null,"27","27","27","27","27","27","27","27","27","27","27","27"]
[null,null,null,null,"28","28","28","28","28","28","28","28","28","28","28","28"]
[null,null,null,null,"29",null,"29","29","29","29","29","29","29","29","29","29"]
[null,null,null,null,"30",null,"30","30","30","30","30","30","30","30","30","30"]
[null,null,null,null,"31",null,"31",null,"31",null,"31","31",null,"31",null,"31"]

{"sheet":"GIGA研修希望調書","index":10,"n_rows":38,"n_cols":40,"rows_kept":38,"cut":false,"hidden":true,"merged":[[1,1,1,50],[2,0,5,50],[8,1,8,50],[9,1,9,9],[9,10,9,38],[9,39,9,50],[10,1,10,9],[10,10,10,38],[10,39,10,50],[11,1,11,9],[12,1,12,9],[12,10,12,38],[12,39,12,50],[13,1,13,9],[13,10,13,38],[13,39,13,50],[14,1,16,4],[14,5,14,9],[14,10,14,38],[14,39,14,50],[15,5,15,9],[15,10,15,38],[15,39,15,50],[16,5,16,9],[16,10,16,38],[16,39,16,50],[17,1,17,9],[17,10,17,38],[17,39,17,50],[18,1,18,9],[18,10,18,38],[18,39,18,50],[19,1,19,9],[19,10,19,38],[19,39,19,50],[24,2,24,11],[24,12,24,20],[24,22,24,30],[24,31,24,50],[20,1,20,9],[20,10,20,13],[20,14,20,17],[20,18,20,21],[20,22,20,28],[20,29,20,38],[20,39,20,50],[22,1,22,50],[23,2,23,11],[23,12,23,30],[23,31,23,50],[25,2,25,11],[25,12,25,30],[25,31,25,50],[27,1,27,50],[28,1,28,9],[28,10,28,50],[29,1,29,50],[30,1,30,50],[31,1,31,50],[32,1,32,9],[32,10,32,38],[32,39,32,50],[33,1,33,9],[33,10,33,38],[33,39,33,50],[34,1,34,9],[34,10,34,38],[34,39,34,50],[37,1,37,9],[37,10,37,38],[37,39,37,50],[35,1,35,9],[35,10,35,38],[35,39,35,50],[36,1,36,9],[36,10,36,38],[36,39,36,50]]}
[]
[null,"GIGAスクールパックお申し込み\nまなびポケット研修に関する希望調書"]
["【学校向け研修実施までの流れ】\n　①教育委員会より本申込書をご提出いただきます。\n　②NTTコミュニケーションズより記載いただいたご連絡先にご連絡いたします。\n　③教育委員会と研修内容・日程の調整後、研修会を実施いたします。"]
[]
[]
[]
[]
[]
[null,"研修に関する連絡先"]
[null,"教育委員会名（ふりがな）／\n学校法人名（ふりがな）"]
[null,"教育委員会名／学校法人名"]
[null,"所属・部署名"]
[null,"お名前（担当者）（ふりがな）",null,null,null,null,null,null,null,null,"　",null,null,null,null,null,null,null,null,null,null,null,null,null,null,null,null,null,null,null,null,null,null,null,null,null,null,null,null,"必ず学校向け研修を担当する方のお名前をご記入ください。"]
[null,"お名前（担当者）",null,null,null,null,null,null,null,null,"　",null,null,null,null,null,null,null,null,null,null,null,null,null,null,null,null,null,null,null,null,null,null,null,null,null,null,null,null,"必ず学校向け研修を担当する方のお名前をご記入ください。"]
[null,"住所",null,null,null,"郵便番号",null,null,null,null," ",null,null,null,null,null,null,null,null,null,null,null,null,null,null,null,null,null,null,null,null,null,null,null,null,null,null,null,null,"半角数字と半角ハイフンのみ可。"]
[null,null,null,null,null,"都道府県",null,null,null,null,"　"]
[null,null,null,null,null,"住所",null,null,null,null,"　"]
[null,"電話番号（担当者）",null,null,null,null,null,null,null,null,null,null,null,null,null,null,null,null,null,null,null,null,null,null,null,null,null,null,null,null,null,null,null,null,null,null,null,null,null,"半角数字と半角ハイフンのみ可。\n（ハイフン付き）"]
[null,"メールアドレス①（担当者）",null,null,null,null,null,null,null,null,null,null,null,null,null,null,null,null,null,null,null,null,null,null,null,null,null,null,null,null,null,null,null,null,null,null,null,null,null,"半角英数字記号のみ可。"]
[null,"メールアドレス②（担当者）\n　※任意",null,null,null,null,null,null,null,null,null,null,null,null,null,null,null,null,null,null,null,null,null,null,null,null,null,null,null,null,null,null,null,null,null,null,null,null,null,"半角英数字記号のみ可。\n２以上の場合は；（セミコロン）区切りで記入。"]
[null,"連絡手段のご要望",null,null,null,null,null,null,null,null,null,null,null,null,null,null,null,null,"　",null,null,null,"その他ご要望　（連絡時間帯等）",null,null,null,null,null,null,null,null,null,null,null,null,null,null,null,null,"連絡手段のご要望について記載してください。"]
[]
[null,"研修申し込みヒアリング"]
[null,"No","項目",null,null,null,null,null,null,null,null,null,"期間",null,null,null,null,null,null,null,null,null,null,null,null,null,null,null,null,null,null,"注意事項"]
[null,1,"教育委員会向け事前説明ご希望期間",null,null,null,null,null,null,null,null,null,"YYYY/MM/DD",null,null,null,null,null,null,null,null,"～","YYYY/MM/DD",null,null,null,null,null,null,null,null,"教育委員会向け事前説明ご希望期間はYYYY/MM/DDで記載してください。\n教育委員会向けに事前説明を行います。ご希望の日付をお知らせください。"]
[null,2,"希望する研修期間",null,null,null,null,null,null,null,null,null,null,null,null,null,null,null,null,null,null,null,null,null,null,null,null,null,null,null,null,"希望する時期をお知らせください"]
[]
[null,"お客さまご要望記事欄"]
[null,"お客さまご要望記事欄"]
[null,"※「お客さまご要望記事欄」に記載された事項については、当社が明示的に承諾しない限り、当社とお客さまとの間の契約条件等として両者を拘束するものではありません。"]
[null,"-------------------------------------　　弊社記入欄 （お客さまによる記入は不要です）　　-------------------------------------"]
[null,"お客さま受付部門（NTTコム営業担当者）　※営業担当の情報をご記入ください。"]
[null,"会社名",null,null,null,null,null,null,null,null,{"$f":"IF(申込書!#REF!<>\"\",申込書!#REF!<>\"\",\"\")","v":{"$error":"#REF!"}}]
[null,"部課名",null,null,null,null,null,null,null,null,{"$f":"IF(申込書!#REF!<>\"\",申込書!#REF!<>\"\",\"\")","v":{"$error":"#REF!"}}]
[null,"担当者名",null,null,null,null,null,null,null,null,{"$f":"IF(申込書!#REF!<>\"\",申込書!#REF!<>\"\",\"\")","v":{"$error":"#REF!"}}]
[null,"電話番号",null,null,null,null,null,null,null,null,{"$f":"IF(申込書!#REF!<>\"\",申込書!#REF!<>\"\",\"\")","v":{"$error":"#REF!"}},null,null,null,null,null,null,null,null,null,null,null,null,null,null,null,null,null,null,null,null,null,null,null,null,null,null,null,null,"半角数字と半角ハイフンのみ可。\n（ハイフン付き）"]
[null,"メールアドレス①",null,null,null,null,null,null,null,null,{"$f":"IF(申込書!#REF!<>\"\",申込書!#REF!<>\"\",\"\")","v":{"$error":"#REF!"}},null,null,null,null,null,null,null,null,null,null,null,null,null,null,null,null,null,null,null,null,null,null,null,null,null,null,null,null,"こちらに入力されたメールアドレスはアカウント送付先メールアドレスに追加されます。メールの受領が必要な場合は必ずご記入ください。"]
[null,"メールアドレス②",null,null,null,null,null,null,null,null,{"$f":"IF(申込書!#REF!<>\"\",申込書!#REF!<>\"\",\"\")","v":{"$error":"#REF!"}},null,null,null,null,null,null,null,null,null,null,null,null,null,null,null,null,null,null,null,null,null,null,null,null,null,null,null,null,"上記同様。\n２以上の場合は；（セミコロン）区切りで記入。"]

{"sheet":"CBT情報","index":11,"n_rows":608,"n_cols":21,"rows_kept":608,"cut":false,"hidden":true,"merged":[[0,0,4,0],[0,1,0,12],[0,13,0,20],[1,1,1,6],[1,7,1,12],[1,13,1,16],[1,17,1,20],[2,1,2,6],[3,1,3,6],[2,7,2,12],[3,7,3,12],[2,13,2,16],[3,13,3,16],[2,17,2,20],[3,17,3,20]]}
["\n学校名\n\n\n\n\n学校情報シートに情報を入力後、\nボタンをクリックしてください","受験対象の学年にID数を記入　（ID合計はID数の合計値を自動表示します）",null,null,null,null,null,null,null,null,null,null,null,"受験対象の学年にID数を記入　（ID合計はID数の合計値を自動表示します）"]
[null,"小学生",null,null,null,null,null,"小学生",null,null,null,null,null,"中学生",null,null,null,"中学生"]
[null,{"$f":"IF(COUNTIF(申込書!$C$101:$L$130,\"まなびポケットCBT1回次受検（国語）\")>0,\"まなびポケットCBT1回次受検（国語）\",\"\")","v":""},null,null,null,null,null,{"$f":"IF(COUNTIF(申込書!$C$101:$L$130,\"まなびポケットCBT1回次受検（算数/数学）\")>0,\"まなびポケットCBT1回次受検（算数/数学）\",\"\")","v":""},null,null,null,null,null,{"$f":"IF(COUNTIF(申込書!$C$101:$L$130,\"まなびポケットCBT1回次受検（国語）\")>0,\"まなびポケットCBT1回次受検（国語）\",\"\")","v":""},null,null,null,{"$f":"IF(COUNTIF(申込書!$C$101:$L$130,\"まなびポケットCBT1回次受検（算数/数学）\")>0,\"まなびポケットCBT1回次受検（算数/数学）\",\"\")","v":""}]
[null,{"$f":"IF(COUNTIF(申込書!$C$101:$L$130,\"まなびポケットCBT2回次受検（国語）\")>0,\"まなびポケットCBT2回次受検（国語）\",\"\")","v":""},null,null,null,null,null,{"$f":"IF(COUNTIF(申込書!$C$101:$L$130,\"まなびポケットCBT2回次受検（算数/数学）\")>0,\"まなびポケットCBT2回次受検（算数/数学）\",\"\")","v":""},null,null,null,null,null,{"$f":"IF(COUNTIF(申込書!$C$101:$L$130,\"まなびポケットCBT2回次受検（国語）\")>0,\"まなびポケットCBT2回次受検（国語）\",\"\")","v":""},null,null,null,{"$f":"IF(COUNTIF(申込書!$C$101:$L$130,\"まなびポケットCBT2回次受検（算数/数学）\")>0,\"まなびポケットCBT2回次受検（算数/数学）\",\"\")","v":""}]
[null,"ＩＤ合計","2年生\nID数","3年生\nID数","4年生\nID数","5年生\nID数","6年生\nID数","ＩＤ合計","2年生\nID数","3年生\nID数","4年生\nID数","5年生\nID数","6年生\nID数","ＩＤ合計","1年生\nID数","2年生\nID数","3年生\nID数","ＩＤ合計","1年生\nID数","2年生\nID数","3年生\nID数"]
["大手町小学校",{"$f":"IF(SUM(C6:G6)=0,\"\",SUM(C6:G6))","v":600},null,null,200,200,200,{"$f":"IF(SUM(I6:M6)=0,\"\",SUM(I6:M6))","v":400},200,200,null,null,null,{"$f":"IF(SUM(O6:Q6)=0,\"\",SUM(O6:Q6))","v":700},null,350,350,{"$f":"IF(SUM(S6:U6)=0,\"\",SUM(S6:U6))","v":350},null,null,350]
[null,{"$f":"IF(SUM(C7:G7)=0,\"\",SUM(C7:G7))","v":""},null,null,null,null,null,{"$f":"IF(SUM(I7:M7)=0,\"\",SUM(I7:M7))","v":""},null,null,null,null,null,{"$f":"IF(SUM(O7:Q7)=0,\"\",SUM(O7:Q7))","v":""},null,null,null,{"$f":"IF(SUM(S7:U7)=0,\"\",SUM(S7:U7))","v":""}]
[null,{"$f":"IF(SUM(C8:G8)=0,\"\",SUM(C8:G8))","v":""},null,null,null,null,null,{"$f":"IF(SUM(I8:M8)=0,\"\",SUM(I8:M8))","v":""},null,null,null,null,null,{"$f":"IF(SUM(O8:Q8)=0,\"\",SUM(O8:Q8))","v":""},null,null,null,{"$f":"IF(SUM(S8:U8)=0,\"\",SUM(S8:U8))","v":""}]
[null,"",null,null,null,null,null,"",null,null,null,null,null,"",null,null,null,""]
[null,"",null,null,null,null,null,"",null,null,null,null,null,"",null,null,null,""]
[null,"",null,null,null,null,null,"",null,null,null,null,null,"",null,null,null,""]
[null,"",null,null,null,null,null,"",null,null,null,null,null,"",null,null,null,""]
[null,"",null,null,null,null,null,"",null,null,null,null,null,"",null,null,null,""]
[null,"",null,null,null,null,null,"",null,null,null,null,null,"",null,null,null,""]
[null,"",null,null,null,null,null,"",null,null,null,null,null,"",null,null,null,""]
[null,"",null,null,null,null,null,"",null,null,null,null,null,"",null,null,null,""]
[null,"",null,null,null,null,null,"",null,null,null,null,null,"",null,null,null,""]
[null,"",null,null,null,null,null,"",null,null,null,null,null,"",null,null,null,""]
[null,"",null,null,null,null,null,"",null,null,null,null,null,"",null,null,null,""]
[null,"",null,null,null,null,null,"",null,null,null,null,null,"",null,null,null,""]
[null,"",null,null,null,null,null,"",null,null,null,null,null,"",null,null,null,""]
[null,"",null,null,null,null,null,"",null,null,null,null,null,"",null,null,null,""]
[null,"",null,null,null,null,null,"",null,null,null,null,null,"",null,null,null,""]
[null,"",null,null,null,null,null,"",null,null,null,null,null,"",null,null,null,""]
[null,"",null,null,null,null,null,"",null,null,null,null,null,"",null,null,null,""]
[null,"",null,null,null,null,null,"",null,null,null,null,null,"",null,null,null,""]
[null,"",null,null,null,null,null,"",null,null,null,null,null,"",null,null,null,""]
[null,"",null,null,null,null,null,"",null,null,null,null,null,"",null,null,null,""]
[null,"",null,null,null,null,null,"",null,null,null,null,null,"",null,null,null,""]
[null,"",null,null,null,null,null,"",null,null,null,null,null,"",null,null,null,""]
[null,"",null,null,null,null,null,"",null,null,null,null,null,"",null,null,null,""]
[null,"",null,null,null,null,null,"",null,null,null,null,null,"",null,null,null,""]
[null,"",null,null,null,null,null,"",null,null,null,null,null,"",null,null,null,""]
[null,"",null,null,null,null,null,"",null,null,null,null,null,"",null,null,null,""]
[null,"",null,null,null,null,null,"",null,null,null,null,null,"",null,null,null,""]
[null,"",null,null,null,null,null,"",null,null,null,null,null,"",null,null,null,""]
[null,"",null,null,null,null,null,"",null,null,null,null,null,"",null,null,null,""]
[null,"",null,null,null,null,null,"",null,null,null,null,null,"",null,null,null,""]
[null,"",null,null,null,null,null,"",null,null,null,null,null,"",null,null,null,""]
[null,"",null,null,null,null,null,"",null,null,null,null,null,"",null,null,null,""]
[null,"",null,null,null,null,null,"",null,null,null,null,null,"",null,null,null,""]
[null,"",null,null,null,null,null,"",null,null,null,null,null,"",null,null,null,""]
[null,"",null,null,null,null,null,"",null,null,null,null,null,"",null,null,null,""]
[null,"",null,null,null,null,null,"",null,null,null,null,null,"",null,null,null,""]
[null,"",null,null,null,null,null,"",null,null,null,null,null,"",null,null,null,""]
[null,"",null,null,null,null,null,"",null,null,null,null,null,"",null,null,null,""]
[null,"",null,null,null,null,null,"",null,null,null,null,null,"",null,null,null,""]
[null,"",null,null,null,null,null,"",null,null,null,null,null,"",null,null,null,""]
[null,"",null,null,null,null,null,"",null,null,null,null,null,"",null,null,null,""]
[null,"",null,null,null,null,null,"",null,null,null,null,null,"",null,null,null,""]
[null,"",null,null,null,null,null,"",null,null,null,null,null,"",null,null,null,""]
[null,"",null,null,null,null,null,"",null,null,null,null,null,"",null,null,null,""]
[null,"",null,null,null,null,null,"",null,null,null,null,null,"",null,null,null,""]
[null,"",null,null,null,null,null,"",null,null,null,null,null,"",null,null,null,""]
[null,"",null,null,null,null,null,"",null,null,null,null,null,"",null,null,null,""]
[null,"",null,null,null,null,null,"",null,null,null,null,null,"",null,null,null,""]
[null,"",null,null,null,null,null,"",null,null,null,null,null,"",null,null,null,""]
[null,"",null,null,null,null,null,"",null,null,null,null,null,"",null,null,null,""]
[null,"",null,null,null,null,null,"",null,null,null,null,null,"",null,null,null,""]
[null,"",null,null,null,null,null,"",null,null,null,null,null,"",null,null,null,""]
[null,"",null,null,null,null,null,"",null,null,null,null,null,"",null,null,null,""]
[null,"",null,null,null,null,null,"",null,null,null,null,null,"",null,null,null,""]
[null,"",null,null,null,null,null,"",null,null,null,null,null,"",null,null,null,""]
[null,"",null,null,null,null,null,"",null,null,null,null,null,"",null,null,null,""]
[null,"",null,null,null,null,null,"",null,null,null,null,null,"",null,null,null,""]
[null,"",null,null,null,null,null,"",null,null,null,null,null,"",null,null,null,""]
[null,"",null,null,null,null,null,"",null,null,null,null,null,"",null,null,null,""]
[null,"",null,null,null,null,null,"",null,null,null,null,null,"",null,null,null,""]
[null,"",null,null,null,null,null,"",null,null,null,null,null,"",null,null,null,""]
[null,"",null,null,null,null,null,"",null,null,null,null,null,"",null,null,null,""]
[null,"",null,null,null,null,null,"",null,null,null,null,null,"",null,null,null,""]
[null,{"$f":"IF(SUM(C72:G72)=0,\"\",SUM(C72:G72))","v":""},null,null,null,null,null,{"$f":"IF(SUM(I72:M72)=0,\"\",SUM(I72:M72))","v":""},null,null,null,null,null,{"$f":"IF(SUM(O72:Q72)=0,\"\",SUM(O72:Q72))","v":""},null,null,null,{"$f":"IF(SUM(S72:U72)=0,\"\",SUM(S72:U72))","v":""}]
[null,"",null,null,null,null,null,"",null,null,null,null,null,"",null,null,null,""]
[null,"",null,null,null,null,null,"",null,null,null,null,null,"",null,null,null,""]
[null,"",null,null,null,null,null,"",null,null,null,null,null,"",null,null,null,""]
[null,"",null,null,null,null,null,"",null,null,null,null,null,"",null,null,null,""]
[null,"",null,null,null,null,null,"",null,null,null,null,null,"",null,null,null,""]
[null,"",null,null,null,null,null,"",null,null,null,null,null,"",null,null,null,""]
[null,"",null,null,null,null,null,"",null,null,null,null,null,"",null,null,null,""]
[null,"",null,null,null,null,null,"",null,null,null,null,null,"",null,null,null,""]
[null,"",null,null,null,null,null,"",null,null,null,null,null,"",null,null,null,""]
[null,"",null,null,null,null,null,"",null,null,null,null,null,"",null,null,null,""]
[null,"",null,null,null,null,null,"",null,null,null,null,null,"",null,null,null,""]
[null,"",null,null,null,null,null,"",null,null,null,null,null,"",null,null,null,""]
[null,"",null,null,null,null,null,"",null,null,null,null,null,"",null,null,null,""]
[null,"",null,null,null,null,null,"",null,null,null,null,null,"",null,null,null,""]
[null,"",null,null,null,null,null,"",null,null,null,null,null,"",null,null,null,""]
[null,"",null,null,null,null,null,"",null,null,null,null,null,"",null,null,null,""]
[null,"",null,null,null,null,null,"",null,null,null,null,null,"",null,null,null,""]
[null,"",null,null,null,null,null,"",null,null,null,null,null,"",null,null,null,""]
[null,"",null,null,null,null,null,"",null,null,null,null,null,"",null,null,null,""]
[null,"",null,null,null,null,null,"",null,null,null,null,null,"",null,null,null,""]
[null,"",null,null,null,null,null,"",null,null,null,null,null,"",null,null,null,""]
[null,"",null,null,null,null,null,"",null,null,null,null,null,"",null,null,null,""]
[null,"",null,null,null,null,null,"",null,null,null,null,null,"",null,null,null,""]
[null,"",null,null,null,null,null,"",null,null,null,null,null,"",null,null,null,""]
[null,"",null,null,null,null,null,"",null,null,null,null,null,"",null,null,null,""]
[null,"",null,null,null,null,null,"",null,null,null,null,null,"",null,null,null,""]
[null,"",null,null,null,null,null,"",null,null,null,null,null,"",null,null,null,""]
[null,"",null,null,null,null,null,"",null,null,null,null,null,"",null,null,null,""]
[null,"",null,null,null,null,null,"",null,null,null,null,null,"",null,null,null,""]
[null,"",null,null,null,null,null,"",null,null,null,null,null,"",null,null,null,""]
[null,"",null,null,null,null,null,"",null,null,null,null,null,"",null,null,null,""]
[null,"",null,null,null,null,null,"",null,null,null,null,null,"",null,null,null,""]
[null,"",null,null,null,null,null,"",null,null,null,null,null,"",null,null,null,""]
[null,"",null,null,null,null,null,"",null,null,null,null,null,"",null,null,null,""]
[null,"",null,null,null,null,null,"",null,null,null,null,null,"",null,null,null,""]
[null,"",null,null,null,null,null,"",null,null,null,null,null,"",null,null,null,""]
[null,"",null,null,null,null,null,"",null,null,null,null,null,"",null,null,null,""]
[null,"",null,null,null,null,null,"",null,null,null,null,null,"",null,null,null,""]
[null,"",null,null,null,null,null,"",null,null,null,null,null,"",null,null,null,""]
[null,"",null,null,null,null,null,"",null,null,null,null,null,"",null,null,null,""]
[null,"",null,null,null,null,null,"",null,null,null,null,null,"",null,null,null,""]
[null,"",null,null,null,null,null,"",null,null,null,null,null,"",null,null,null,""]
[null,"",null,null,null,null,null,"",null,null,null,null,null,"",null,null,null,""]
[null,"",null,null,null,null,null,"",null,null,null,null,null,"",null,null,null,""]
[null,"",null,null,null,null,null,"",null,null,null,null,null,"",null,null,null,""]
[null,"",null,null,null,null,null,"",null,null,null,null,null,"",null,null,null,""]
[null,"",null,null,null,null,null,"",null,null,null,null,null,"",null,null,null,""]
[null,"",null,null,null,null,null,"",null,null,null,null,null,"",null,null,null,""]
[null,"",null,null,null,null,null,"",null,null,null,null,null,"",null,null,null,""]
[null,"",null,null,null,null,null,"",null,null,null,null,null,"",null,null,null,""]
[null,"",null,null,null,null,null,"",null,null,null,null,null,"",null,null,null,""]
[null,"",null,null,null,null,null,"",null,null,null,null,null,"",null,null,null,""]
[null,"",null,null,null,null,null,"",null,null,null,null,null,"",null,null,null,""]
[null,"",null,null,null,null,null,"",null,null,null,null,null,"",null,null,null,""]
[null,"",null,null,null,null,null,"",null,null,null,null,null,"",null,null,null,""]
[null,"",null,null,null,null,null,"",null,null,null,null,null,"",null,null,null,""]
[null,"",null,null,null,null,null,"",null,null,null,null,null,"",null,null,null,""]
[null,"",null,null,null,null,null,"",null,null,null,null,null,"",null,null,null,""]
[null,"",null,null,null,null,null,"",null,null,null,null,null,"",null,null,null,""]
[null,"",null,null,null,null,null,"",null,null,null,null,null,"",null,null,null,""]
[null,"",null,null,null,null,null,"",null,null,null,null,null,"",null,null,null,""]
[null,"",null,null,null,null,null,"",null,null,null,null,null,"",null,null,null,""]
[null,"",null,null,null,null,null,"",null,null,null,null,null,"",null,null,null,""]
[null,{"$f":"IF(SUM(C136:G136)=0,\"\",SUM(C136:G136))","v":""},null,null,null,null,null,{"$f":"IF(SUM(I136:M136)=0,\"\",SUM(I136:M136))","v":""},null,null,null,null,null,{"$f":"IF(SUM(O136:Q136)=0,\"\",SUM(O136:Q136))","v":""},null,null,null,{"$f":"IF(SUM(S136:U136)=0,\"\",SUM(S136:U136))","v":""}]
[null,"",null,null,null,null,null,"",null,null,null,null,null,"",null,null,null,""]
[null,"",null,null,null,null,null,"",null,null,null,null,null,"",null,null,null,""]
[null,"",null,null,null,null,null,"",null,null,null,null,null,"",null,null,null,""]
[null,"",null,null,null,null,null,"",null,null,null,null,null,"",null,null,null,""]
[null,"",null,null,null,null,null,"",null,null,null,null,null,"",null,null,null,""]
[null,"",null,null,null,null,null,"",null,null,null,null,null,"",null,null,null,""]
[null,"",null,null,null,null,null,"",null,null,null,null,null,"",null,null,null,""]
[null,"",null,null,null,null,null,"",null,null,null,null,null,"",null,null,null,""]
[null,"",null,null,null,null,null,"",null,null,null,null,null,"",null,null,null,""]
[null,"",null,null,null,null,null,"",null,null,null,null,null,"",null,null,null,""]
[null,"",null,null,null,null,null,"",null,null,null,null,null,"",null,null,null,""]
[null,"",null,null,null,null,null,"",null,null,null,null,null,"",null,null,null,""]
[null,"",null,null,null,null,null,"",null,null,null,null,null,"",null,null,null,""]
[null,"",null,null,null,null,null,"",null,null,null,null,null,"",null,null,null,""]
[null,"",null,null,null,null,null,"",null,null,null,null,null,"",null,null,null,""]
[null,"",null,null,null,null,null,"",null,null,null,null,null,"",null,null,null,""]
[null,"",null,null,null,null,null,"",null,null,null,null,null,"",null,null,null,""]
[null,"",null,null,null,null,null,"",null,null,null,null,null,"",null,null,null,""]
[null,"",null,null,null,null,null,"",null,null,null,null,null,"",null,null,null,""]
[null,"",null,null,null,null,null,"",null,null,null,null,null,"",null,null,null,""]
[null,"",null,null,null,null,null,"",null,null,null,null,null,"",null,null,null,""]
[null,"",null,null,null,null,null,"",null,null,null,null,null,"",null,null,null,""]
[null,"",null,null,null,null,null,"",null,null,null,null,null,"",null,null,null,""]
[null,"",null,null,null,null,null,"",null,null,null,null,null,"",null,null,null,""]
[null,"",null,null,null,null,null,"",null,null,null,null,null,"",null,null,null,""]
[null,"",null,null,null,null,null,"",null,null,null,null,null,"",null,null,null,""]
[null,"",null,null,null,null,null,"",null,null,null,null,null,"",null,null,null,""]
[null,"",null,null,null,null,null,"",null,null,null,null,null,"",null,null,null,""]
[null,"",null,null,null,null,null,"",null,null,null,null,null,"",null,null,null,""]
[null,"",null,null,null,null,null,"",null,null,null,null,null,"",null,null,null,""]
[null,"",null,null,null,null,null,"",null,null,null,null,null,"",null,null,null,""]
[null,"",null,null,null,null,null,"",null,null,null,null,null,"",null,null,null,""]
[null,"",null,null,null,null,null,"",null,null,null,null,null,"",null,null,null,""]
[null,"",null,null,null,null,null,"",null,null,null,null,null,"",null,null,null,""]
[null,"",null,null,null,null,null,"",null,null,null,null,null,"",null,null,null,""]
[null,"",null,null,null,null,null,"",null,null,null,null,null,"",null,null,null,""]
[null,"",null,null,null,null,null,"",null,null,null,null,null,"",null,null,null,""]
[null,"",null,null,null,null,null,"",null,null,null,null,null,"",null,null,null,""]
[null,"",null,null,null,null,null,"",null,null,null,null,null,"",null,null,null,""]
[null,"",null,null,null,null,null,"",null,null,null,null,null,"",null,null,null,""]
[null,"",null,null,null,null,null,"",null,null,null,null,null,"",null,null,null,""]
[null,"",null,null,null,null,null,"",null,null,null,null,null,"",null,null,null,""]
[null,"",null,null,null,null,null,"",null,null,null,null,null,"",null,null,null,""]
[null,"",null,null,null,null,null,"",null,null,null,null,null,"",null,null,null,""]
[null,"",null,null,null,null,null,"",null,null,null,null,null,"",null,null,null,""]
[null,"",null,null,null,null,null,"",null,null,null,null,null,"",null,null,null,""]
[null,"",null,null,null,null,null,"",null,null,null,null,null,"",null,null,null,""]
[null,"",null,null,null,null,null,"",null,null,null,null,null,"",null,null,null,""]
[null,"",null,null,null,null,null,"",null,null,null,null,null,"",null,null,null,""]
[null,"",null,null,null,null,null,"",null,null,null,null,null,"",null,null,null,""]
[null,"",null,null,null,null,null,"",null,null,null,null,null,"",null,null,null,""]
[null,"",null,null,null,null,null,"",null,null,null,null,null,"",null,null,null,""]
[null,"",null,null,null,null,null,"",null,null,null,null,null,"",null,null,null,""]
[null,"",null,null,null,null,null,"",null,null,null,null,null,"",null,null,null,""]
[null,"",null,null,null,null,null,"",null,null,null,null,null,"",null,null,null,""]
[null,"",null,null,null,null,null,"",null,null,null,null,null,"",null,null,null,""]
[null,"",null,null,null,null,null,"",null,null,null,null,null,"",null,null,null,""]
[null,"",null,null,null,null,null,"",null,null,null,null,null,"",null,null,null,""]
[null,"",null,null,null,null,null,"",null,null,null,null,null,"",null,null,null,""]
[null,"",null,null,null,null,null,"",null,null,null,null,null,"",null,null,null,""]
[null,"",null,null,null,null,null,"",null,null,null,null,null,"",null,null,null,""]
[null,"",null,null,null,null,null,"",null,null,null,null,null,"",null,null,null,""]
[null,"",null,null,null,null,null,"",null,null,null,null,null,"",null,null,null,""]
[null,{"$f":"IF(SUM(C200:G200)=0,\"\",SUM(C200:G200))","v":""},null,null,null,null,null,{"$f":"IF(SUM(I200:M200)=0,\"\",SUM(I200:M200))","v":""},null,null,null,null,null,{"$f":"IF(SUM(O200:Q200)=0,\"\",SUM(O200:Q200))","v":""},null,null,null,{"$f":"IF(SUM(S200:U200)=0,\"\",SUM(S200:U200))","v":""}]
[null,"",null,null,null,null,null,"",null,null,null,null,null,"",null,null,null,""]
[null,"",null,null,null,null,null,"",null,null,null,null,null,"",null,null,null,""]
[null,"",null,null,null,null,null,"",null,null,null,null,null,"",null,null,null,""]
[null,"",null,null,null,null,null,"",null,null,null,null,null,"",null,null,null,""]
[null,"",null,null,null,null,null,"",null,null,null,null,null,"",null,null,null,""]
[null,"",null,null,null,null,null,"",null,null,null,null,null,"",null,null,null,""]
[null,{"$f":"IF(SUM(C207:G207)=0,\"\",SUM(C207:G207))","v":""},null,null,null,null,null,{"$f":"IF(SUM(I207:M207)=0,\"\",SUM(I207:M207))","v":""},null,null,null,null,null,{"$f":"IF(SUM(O207:Q207)=0,\"\",SUM(O207:Q207))","v":""},null,null,null,{"$f":"IF(SUM(S207:U207)=0,\"\",SUM(S207:U207))","v":""}]
[null,"",null,null,null,null,null,"",null,null,null,null,null,"",null,null,null,""]
[null,"",null,null,null,null,null,"",null,null,null,null,null,"",null,null,null,""]
[null,"",null,null,null,null,null,"",null,null,null,null,null,"",null,null,null,""]
[null,"",null,null,null,null,null,"",null,null,null,null,null,"",null,null,null,""]
[null,"",null,null,null,null,null,"",null,null,null,null,null,"",null,null,null,""]
[null,"",null,null,null,null,null,"",null,null,null,null,null,"",null,null,null,""]
[null,"",null,null,null,null,null,"",null,null,null,null,null,"",null,null,null,""]
[null,"",null,null,null,null,null,"",null,null,null,null,null,"",null,null,null,""]
[null,"",null,null,null,null,null,"",null,null,null,null,null,"",null,null,null,""]
[null,"",null,null,null,null,null,"",null,null,null,null,null,"",null,null,null,""]
[null,"",null,null,null,null,null,"",null,null,null,null,null,"",null,null,null,""]
[null,"",null,null,null,null,null,"",null,null,null,null,null,"",null,null,null,""]
[null,"",null,null,null,null,null,"",null,null,null,null,null,"",null,null,null,""]
[null,"",null,null,null,null,null,"",null,null,null,null,null,"",null,null,null,""]
[null,"",null,null,null,null,null,"",null,null,null,null,null,"",null,null,null,""]
[null,"",null,null,null,null,null,"",null,null,null,null,null,"",null,null,null,""]
[null,"",null,null,null,null,null,"",null,null,null,null,null,"",null,null,null,""]
[null,"",null,null,null,null,null,"",null,null,null,null,null,"",null,null,null,""]
[null,"",null,null,null,null,null,"",null,null,null,null,null,"",null,null,null,""]
[null,"",null,null,null,null,null,"",null,null,null,null,null,"",null,null,null,""]
[null,"",null,null,null,null,null,"",null,null,null,null,null,"",null,null,null,""]
[null,"",null,null,null,null,null,"",null,null,null,null,null,"",null,null,null,""]
[null,"",null,null,null,null,null,"",null,null,null,null,null,"",null,null,null,""]
[null,"",null,null,null,null,null,"",null,null,null,null,null,"",null,null,null,""]
[null,"",null,null,null,null,null,"",null,null,null,null,null,"",null,null,null,""]
[null,"",null,null,null,null,null,"",null,null,null,null,null,"",null,null,null,""]
[null,"",null,null,null,null,null,"",null,null,null,null,null,"",null,null,null,""]
[null,"",null,null,null,null,null,"",null,null,null,null,null,"",null,null,null,""]
[null,"",null,null,null,null,null,"",null,null,null,null,null,"",null,null,null,""]
[null,"",null,null,null,null,null,"",null,null,null,null,null,"",null,null,null,""]
[null,"",null,null,null,null,null,"",null,null,null,null,null,"",null,null,null,""]
[null,"",null,null,null,null,null,"",null,null,null,null,null,"",null,null,null,""]
[null,"",null,null,null,null,null,"",null,null,null,null,null,"",null,null,null,""]
[null,"",null,null,null,null,null,"",null,null,null,null,null,"",null,null,null,""]
[null,"",null,null,null,null,null,"",null,null,null,null,null,"",null,null,null,""]
[null,"",null,null,null,null,null,"",null,null,null,null,null,"",null,null,null,""]
[null,"",null,null,null,null,null,"",null,null,null,null,null,"",null,null,null,""]
[null,"",null,null,null,null,null,"",null,null,null,null,null,"",null,null,null,""]
[null,"",null,null,null,null,null,"",null,null,null,null,null,"",null,null,null,""]
[null,"",null,null,null,null,null,"",null,null,null,null,null,"",null,null,null,""]
[null,"",null,null,null,null,null,"",null,null,null,null,null,"",null,null,null,""]
[null,"",null,null,null,null,null,"",null,null,null,null,null,"",null,null,null,""]
[null,"",null,null,null,null,null,"",null,null,null,null,null,"",null,null,null,""]
[null,"",null,null,null,null,null,"",null,null,null,null,null,"",null,null,null,""]
[null,"",null,null,null,null,null,"",null,null,null,null,null,"",null,null,null,""]
[null,"",null,null,null,null,null,"",null,null,null,null,null,"",null,null,null,""]
[null,"",null,null,null,null,null,"",null,null,null,null,null,"",null,null,null,""]
[null,"",null,null,null,null,null,"",null,null,null,null,null,"",null,null,null,""]
[null,"",null,null,null,null,null,"",null,null,null,null,null,"",null,null,null,""]
[null,"",null,null,null,null,null,"",null,null,null,null,null,"",null,null,null,""]
[null,"",null,null,null,null,null,"",null,null,null,null,null,"",null,null,null,""]
[null,"",null,null,null,null,null,"",null,null,null,null,null,"",null,null,null,""]
[null,"",null,null,null,null,null,"",null,null,null,null,null,"",null,null,null,""]
[null,"",null,null,null,null,null,"",null,null,null,null,null,"",null,null,null,""]
[null,"",null,null,null,null,null,"",null,null,null,null,null,"",null,null,null,""]
[null,"",null,null,null,null,null,"",null,null,null,null,null,"",null,null,null,""]
[null,"",null,null,null,null,null,"",null,null,null,null,null,"",null,null,null,""]
[null,"",null,null,null,null,null,"",null,null,null,null,null,"",null,null,null,""]
[null,"",null,null,null,null,null,"",null,null,null,null,null,"",null,null,null,""]
[null,"",null,null,null,null,null,"",null,null,null,null,null,"",null,null,null,""]
[null,"",null,null,null,null,null,"",null,null,null,null,null,"",null,null,null,""]
[null,"",null,null,null,null,null,"",null,null,null,null,null,"",null,null,null,""]
[null,"",null,null,null,null,null,"",null,null,null,null,null,"",null,null,null,""]
[null,{"$f":"IF(SUM(C271:G271)=0,\"\",SUM(C271:G271))","v":""},null,null,null,null,null,{"$f":"IF(SUM(I271:M271)=0,\"\",SUM(I271:M271))","v":""},null,null,null,null,null,{"$f":"IF(SUM(O271:Q271)=0,\"\",SUM(O271:Q271))","v":""},null,null,null,{"$f":"IF(SUM(S271:U271)=0,\"\",SUM(S271:U271))","v":""}]
[null,"",null,null,null,null,null,"",null,null,null,null,null,"",null,null,null,""]
[null,"",null,null,null,null,null,"",null,null,null,null,null,"",null,null,null,""]
[null,"",null,null,null,null,null,"",null,null,null,null,null,"",null,null,null,""]
[null,"",null,null,null,null,null,"",null,null,null,null,null,"",null,null,null,""]
[null,"",null,null,null,null,null,"",null,null,null,null,null,"",null,null,null,""]
[null,"",null,null,null,null,null,"",null,null,null,null,null,"",null,null,null,""]
[null,"",null,null,null,null,null,"",null,null,null,null,null,"",null,null,null,""]
[null,"",null,null,null,null,null,"",null,null,null,null,null,"",null,null,null,""]
[null,"",null,null,null,null,null,"",null,null,null,null,null,"",null,null,null,""]
[null,"",null,null,null,null,null,"",null,null,null,null,null,"",null,null,null,""]
[null,"",null,null,null,null,null,"",null,null,null,null,null,"",null,null,null,""]
[null,"",null,null,null,null,null,"",null,null,null,null,null,"",null,null,null,""]
[null,"",null,null,null,null,null,"",null,null,null,null,null,"",null,null,null,""]
[null,"",null,null,null,null,null,"",null,null,null,null,null,"",null,null,null,""]
[null,"",null,null,null,null,null,"",null,null,null,null,null,"",null,null,null,""]
[null,"",null,null,null,null,null,"",null,null,null,null,null,"",null,null,null,""]
[null,"",null,null,null,null,null,"",null,null,null,null,null,"",null,null,null,""]
[null,"",null,null,null,null,null,"",null,null,null,null,null,"",null,null,null,""]
[null,"",null,null,null,null,null,"",null,null,null,null,null,"",null,null,null,""]
[null,"",null,null,null,null,null,"",null,null,null,null,null,"",null,null,null,""]
[null,"",null,null,null,null,null,"",null,null,null,null,null,"",null,null,null,""]
[null,"",null,null,null,null,null,"",null,null,null,null,null,"",null,null,null,""]
[null,"",null,null,null,null,null,"",null,null,null,null,null,"",null,null,null,""]
[null,"",null,null,null,null,null,"",null,null,null,null,null,"",null,null,null,""]
[null,"",null,null,null,null,null,"",null,null,null,null,null,"",null,null,null,""]
[null,"",null,null,null,null,null,"",null,null,null,null,null,"",null,null,null,""]
[null,"",null,null,null,null,null,"",null,null,null,null,null,"",null,null,null,""]
[null,"",null,null,null,null,null,"",null,null,null,null,null,"",null,null,null,""]
[null,"",null,null,null,null,null,"",null,null,null,null,null,"",null,null,null,""]
[null,"",null,null,null,null,null,"",null,null,null,null,null,"",null,null,null,""]
[null,"",null,null,null,null,null,"",null,null,null,null,null,"",null,null,null,""]
[null,"",null,null,null,null,null,"",null,null,null,null,null,"",null,null,null,""]
[null,"",null,null,null,null,null,"",null,null,null,null,null,"",null,null,null,""]
[null,"",null,null,null,null,null,"",null,null,null,null,null,"",null,null,null,""]
[null,"",null,null,null,null,null,"",null,null,null,null,null,"",null,null,null,""]
[null,"",null,null,null,null,null,"",null,null,null,null,null,"",null,null,null,""]
[null,{"$f":"IF(SUM(C308:G308)=0,\"\",SUM(C308:G308))","v":""},null,null,null,null,null,{"$f":"IF(SUM(I308:M308)=0,\"\",SUM(I308:M308))","v":""},null,null,null,null,null,"",null,null,null,""]
[null,{"$f":"IF(SUM(C309:G309)=0,\"\",SUM(C309:G309))","v":""},null,null,null,null,null,{"$f":"IF(SUM(I309:M309)=0,\"\",SUM(I309:M309))","v":""},null,null,null,null,null,"",null,null,null,""]
[null,"",null,null,null,null,null,"",null,null,null,null,null,"",null,null,null,""]
[null,"",null,null,null,null,null,"",null,null,null,null,null,"",null,null,null,""]
[null,"",null,null,null,null,null,"",null,null,null,null,null,"",null,null,null,""]
[null,"",null,null,null,null,null,"",null,null,null,null,null,"",null,null,null,""]
[null,"",null,null,null,null,null,"",null,null,null,null,null,"",null,null,null,""]
[null,"",null,null,null,null,null,"",null,null,null,null,null,"",null,null,null,""]
[null,"",null,null,null,null,null,"",null,null,null,null,null,"",null,null,null,""]
[null,"",null,null,null,null,null,"",null,null,null,null,null,"",null,null,null,""]
[null,"",null,null,null,null,null,"",null,null,null,null,null,"",null,null,null,""]
[null,"",null,null,null,null,null,"",null,null,null,null,null,"",null,null,null,""]
[null,"",null,null,null,null,null,"",null,null,null,null,null,"",null,null,null,""]
[null,"",null,null,null,null,null,"",null,null,null,null,null,"",null,null,null,""]
[null,"",null,null,null,null,null,"",null,null,null,null,null,"",null,null,null,""]
[null,"",null,null,null,null,null,"",null,null,null,null,null,"",null,null,null,""]
[null,"",null,null,null,null,null,"",null,null,null,null,null,"",null,null,null,""]
[null,"",null,null,null,null,null,"",null,null,null,null,null,"",null,null,null,""]
[null,"",null,null,null,null,null,"",null,null,null,null,null,"",null,null,null,""]
[null,"",null,null,null,null,null,"",null,null,null,null,null,"",null,null,null,""]
[null,"",null,null,null,null,null,"",null,null,null,null,null,"",null,null,null,""]
[null,"",null,null,null,null,null,"",null,null,null,null,null,"",null,null,null,""]
[null,"",null,null,null,null,null,"",null,null,null,null,null,"",null,null,null,""]
[null,"",null,null,null,null,null,"",null,null,null,null,null,"",null,null,null,""]
[null,"",null,null,null,null,null,"",null,null,null,null,null,"",null,null,null,""]
[null,"",null,null,null,null,null,"",null,null,null,null,null,"",null,null,null,""]
[null,"",null,null,null,null,null,"",null,null,null,null,null,"",null,null,null,""]
[null,"",null,null,null,null,null,"",null,null,null,null,null,{"$f":"IF(SUM(O335:Q335)=0,\"\",SUM(O335:Q335))","v":""},null,null,null,{"$f":"IF(SUM(S335:U335)=0,\"\",SUM(S335:U335))","v":""}]
[null,"",null,null,null,null,null,"",null,null,null,null,null,"",null,null,null,""]
[null,"",null,null,null,null,null,"",null,null,null,null,null,"",null,null,null,""]
[null,"",null,null,null,null,null,"",null,null,null,null,null,"",null,null,null,""]
[null,"",null,null,null,null,null,"",null,null,null,null,null,"",null,null,null,""]
[null,"",null,null,null,null,null,"",null,null,null,null,null,"",null,null,null,""]
[null,"",null,null,null,null,null,"",null,null,null,null,null,"",null,null,null,""]
[null,"",null,null,null,null,null,"",null,null,null,null,null,"",null,null,null,""]
[null,"",null,null,null,null,null,"",null,null,null,null,null,"",null,null,null,""]
[null,"",null,null,null,null,null,"",null,null,null,null,null,"",null,null,null,""]
[null,"",null,null,null,null,null,"",null,null,null,null,null,"",null,null,null,""]
[null,"",null,null,null,null,null,"",null,null,null,null,null,"",null,null,null,""]
[null,"",null,null,null,null,null,"",null,null,null,null,null,"",null,null,null,""]
[null,"",null,null,null,null,null,"",null,null,null,null,null,"",null,null,null,""]
[null,"",null,null,null,null,null,"",null,null,null,null,null,"",null,null,null,""]
[null,"",null,null,null,null,null,"",null,null,null,null,null,"",null,null,null,""]
[null,"",null,null,null,null,null,"",null,null,null,null,null,"",null,null,null,""]
[null,"",null,null,null,null,null,"",null,null,null,null,null,"",null,null,null,""]
[null,"",null,null,null,null,null,"",null,null,null,null,null,"",null,null,null,""]
[null,"",null,null,null,null,null,"",null,null,null,null,null,"",null,null,null,""]
[null,"",null,null,null,null,null,"",null,null,null,null,null,"",null,null,null,""]
[null,"",null,null,null,null,null,"",null,null,null,null,null,"",null,null,null,""]
[null,"",null,null,null,null,null,"",null,null,null,null,null,"",null,null,null,""]
[null,"",null,null,null,null,null,"",null,null,null,null,null,"",null,null,null,""]
[null,"",null,null,null,null,null,"",null,null,null,null,null,"",null,null,null,""]
[null,"",null,null,null,null,null,"",null,null,null,null,null,"",null,null,null,""]
[null,"",null,null,null,null,null,"",null,null,null,null,null,"",null,null,null,""]
[null,"",null,null,null,null,null,"",null,null,null,null,null,"",null,null,null,""]
[null,"",null,null,null,null,null,"",null,null,null,null,null,"",null,null,null,""]
[null,"",null,null,null,null,null,"",null,null,null,null,null,"",null,null,null,""]
[null,"",null,null,null,null,null,"",null,null,null,null,null,"",null,null,null,""]
[null,"",null,null,null,null,null,"",null,null,null,null,null,"",null,null,null,""]
[null,"",null,null,null,null,null,"",null,null,null,null,null,"",null,null,null,""]
[null,"",null,null,null,null,null,"",null,null,null,null,null,"",null,null,null,""]
[null,"",null,null,null,null,null,"",null,null,null,null,null,"",null,null,null,""]
[null,"",null,null,null,null,null,"",null,null,null,null,null,"",null,null,null,""]
[null,"",null,null,null,null,null,"",null,null,null,null,null,"",null,null,null,""]
[null,"",null,null,null,null,null,"",null,null,null,null,null,"",null,null,null,""]
[null,{"$f":"IF(SUM(C373:G373)=0,\"\",SUM(C373:G373))","v":""},null,null,null,null,null,{"$f":"IF(SUM(I373:M373)=0,\"\",SUM(I373:M373))","v":""},null,null,null,null,null,"",null,null,null,""]
[null,"",null,null,null,null,null,"",null,null,null,null,null,"",null,null,null,""]
[null,"",null,null,null,null,null,"",null,null,null,null,null,"",null,null,null,""]
[null,"",null,null,null,null,null,"",null,null,null,null,null,"",null,null,null,""]
[null,"",null,null,null,null,null,"",null,null,null,null,null,"",null,null,null,""]
[null,"",null,null,null,null,null,"",null,null,null,null,null,"",null,null,null,""]
[null,"",null,null,null,null,null,"",null,null,null,null,null,"",null,null,null,""]
[null,"",null,null,null,null,null,"",null,null,null,null,null,"",null,null,null,""]
[null,"",null,null,null,null,null,"",null,null,null,null,null,"",null,null,null,""]
[null,"",null,null,null,null,null,"",null,null,null,null,null,"",null,null,null,""]
[null,"",null,null,null,null,null,"",null,null,null,null,null,"",null,null,null,""]
[null,"",null,null,null,null,null,"",null,null,null,null,null,"",null,null,null,""]
[null,"",null,null,null,null,null,"",null,null,null,null,null,"",null,null,null,""]
[null,"",null,null,null,null,null,"",null,null,null,null,null,"",null,null,null,""]
[null,"",null,null,null,null,null,"",null,null,null,null,null,"",null,null,null,""]
[null,"",null,null,null,null,null,"",null,null,null,null,null,"",null,null,null,""]
[null,"",null,null,null,null,null,"",null,null,null,null,null,"",null,null,null,""]
[null,"",null,null,null,null,null,"",null,null,null,null,null,"",null,null,null,""]
[null,"",null,null,null,null,null,"",null,null,null,null,null,"",null,null,null,""]
[null,"",null,null,null,null,null,"",null,null,null,null,null,"",null,null,null,""]
[null,"",null,null,null,null,null,"",null,null,null,null,null,"",null,null,null,""]
[null,"",null,null,null,null,null,"",null,null,null,null,null,"",null,null,null,""]
[null,"",null,null,null,null,null,"",null,null,null,null,null,"",null,null,null,""]
[null,"",null,null,null,null,null,"",null,null,null,null,null,"",null,null,null,""]
[null,"",null,null,null,null,null,"",null,null,null,null,null,"",null,null,null,""]
[null,"",null,null,null,null,null,"",null,null,null,null,null,"",null,null,null,""]
[null,"",null,null,null,null,null,"",null,null,null,null,null,{"$f":"IF(SUM(O399:Q399)=0,\"\",SUM(O399:Q399))","v":""},null,null,null,{"$f":"IF(SUM(S399:U399)=0,\"\",SUM(S399:U399))","v":""}]
[null,"",null,null,null,null,null,"",null,null,null,null,null,"",null,null,null,""]
[null,"",null,null,null,null,null,"",null,null,null,null,null,"",null,null,null,""]
[null,"",null,null,null,null,null,"",null,null,null,null,null,"",null,null,null,""]
[null,"",null,null,null,null,null,"",null,null,null,null,null,"",null,null,null,""]
[null,"",null,null,null,null,null,"",null,null,null,null,null,"",null,null,null,""]
[null,"",null,null,null,null,null,"",null,null,null,null,null,"",null,null,null,""]
[null,"",null,null,null,null,null,"",null,null,null,null,null,"",null,null,null,""]
[null,"",null,null,null,null,null,"",null,null,null,null,null,"",null,null,null,""]
[null,"",null,null,null,null,null,"",null,null,null,null,null,"",null,null,null,""]
[null,"",null,null,null,null,null,"",null,null,null,null,null,"",null,null,null,""]
[null,"",null,null,null,null,null,"",null,null,null,null,null,"",null,null,null,""]
[null,"",null,null,null,null,null,"",null,null,null,null,null,"",null,null,null,""]
[null,"",null,null,null,null,null,"",null,null,null,null,null,"",null,null,null,""]
[null,"",null,null,null,null,null,"",null,null,null,null,null,"",null,null,null,""]
[null,"",null,null,null,null,null,"",null,null,null,null,null,"",null,null,null,""]
[null,"",null,null,null,null,null,"",null,null,null,null,null,"",null,null,null,""]
[null,"",null,null,null,null,null,"",null,null,null,null,null,"",null,null,null,""]
[null,"",null,null,null,null,null,"",null,null,null,null,null,"",null,null,null,""]
[null,"",null,null,null,null,null,"",null,null,null,null,null,"",null,null,null,""]
[null,"",null,null,null,null,null,"",null,null,null,null,null,"",null,null,null,""]
[null,"",null,null,null,null,null,"",null,null,null,null,null,"",null,null,null,""]
[null,"",null,null,null,null,null,"",null,null,null,null,null,"",null,null,null,""]
[null,"",null,null,null,null,null,"",null,null,null,null,null,"",null,null,null,""]
[null,"",null,null,null,null,null,"",null,null,null,null,null,"",null,null,null,""]
[null,"",null,null,null,null,null,"",null,null,null,null,null,"",null,null,null,""]
[null,"",null,null,null,null,null,"",null,null,null,null,null,"",null,null,null,""]
[null,"",null,null,null,null,null,"",null,null,null,null,null,"",null,null,null,""]
[null,"",null,null,null,null,null,"",null,null,null,null,null,"",null,null,null,""]
[null,"",null,null,null,null,null,"",null,null,null,null,null,"",null,null,null,""]
[null,"",null,null,null,null,null,"",null,null,null,null,null,"",null,null,null,""]
[null,"",null,null,null,null,null,"",null,null,null,null,null,"",null,null,null,""]
[null,"",null,null,null,null,null,"",null,null,null,null,null,"",null,null,null,""]
[null,"",null,null,null,null,null,"",null,null,null,null,null,"",null,null,null,""]
[null,"",null,null,null,null,null,"",null,null,null,null,null,"",null,null,null,""]
[null,"",null,null,null,null,null,"",null,null,null,null,null,"",null,null,null,""]
[null,"",null,null,null,null,null,"",null,null,null,null,null,"",null,null,null,""]
[null,"",null,null,null,null,null,"",null,null,null,null,null,"",null,null,null,""]
[null,{"$f":"IF(SUM(C437:G437)=0,\"\",SUM(C437:G437))","v":""},null,null,null,null,null,{"$f":"IF(SUM(I437:M437)=0,\"\",SUM(I437:M437))","v":""},null,null,null,null,null,"",null,null,null,""]
[null,"",null,null,null,null,null,"",null,null,null,null,null,"",null,null,null,""]
[null,"",null,null,null,null,null,"",null,null,null,null,null,"",null,null,null,""]
[null,"",null,null,null,null,null,"",null,null,null,null,null,"",null,null,null,""]
[null,"",null,null,null,null,null,"",null,null,null,null,null,"",null,null,null,""]
[null,"",null,null,null,null,null,"",null,null,null,null,null,"",null,null,null,""]
[null,"",null,null,null,null,null,"",null,null,null,null,null,"",null,null,null,""]
[null,"",null,null,null,null,null,"",null,null,null,null,null,"",null,null,null,""]
[null,"",null,null,null,null,null,"",null,null,null,null,null,"",null,null,null,""]
[null,"",null,null,null,null,null,"",null,null,null,null,null,"",null,null,null,""]
[null,"",null,null,null,null,null,"",null,null,null,null,null,"",null,null,null,""]
[null,"",null,null,null,null,null,"",null,null,null,null,null,"",null,null,null,""]
[null,"",null,null,null,null,null,"",null,null,null,null,null,"",null,null,null,""]
[null,"",null,null,null,null,null,"",null,null,null,null,null,"",null,null,null,""]
[null,"",null,null,null,null,null,"",null,null,null,null,null,"",null,null,null,""]
[null,"",null,null,null,null,null,"",null,null,null,null,null,"",null,null,null,""]
[null,"",null,null,null,null,null,"",null,null,null,null,null,"",null,null,null,""]
[null,"",null,null,null,null,null,"",null,null,null,null,null,"",null,null,null,""]
[null,"",null,null,null,null,null,"",null,null,null,null,null,"",null,null,null,""]
[null,"",null,null,null,null,null,"",null,null,null,null,null,"",null,null,null,""]
[null,"",null,null,null,null,null,"",null,null,null,null,null,"",null,null,null,""]
[null,"",null,null,null,null,null,"",null,null,null,null,null,"",null,null,null,""]
[null,"",null,null,null,null,null,"",null,null,null,null,null,"",null,null,null,""]
[null,"",null,null,null,null,null,"",null,null,null,null,null,"",null,null,null,""]
[null,"",null,null,null,null,null,"",null,null,null,null,null,"",null,null,null,""]
[null,"",null,null,null,null,null,"",null,null,null,null,null,"",null,null,null,""]
[null,"",null,null,null,null,null,"",null,null,null,null,null,{"$f":"IF(SUM(O463:Q463)=0,\"\",SUM(O463:Q463))","v":""},null,null,null,{"$f":"IF(SUM(S463:U463)=0,\"\",SUM(S463:U463))","v":""}]
[null,"",null,null,null,null,null,"",null,null,null,null,null,"",null,null,null,""]
[null,"",null,null,null,null,null,"",null,null,null,null,null,"",null,null,null,""]
[null,"",null,null,null,null,null,"",null,null,null,null,null,"",null,null,null,""]
[null,"",null,null,null,null,null,"",null,null,null,null,null,"",null,null,null,""]
[null,"",null,null,null,null,null,"",null,null,null,null,null,"",null,null,null,""]
[null,"",null,null,null,null,null,"",null,null,null,null,null,"",null,null,null,""]
[null,"",null,null,null,null,null,"",null,null,null,null,null,"",null,null,null,""]
[null,"",null,null,null,null,null,"",null,null,null,null,null,"",null,null,null,""]
[null,"",null,null,null,null,null,"",null,null,null,null,null,"",null,null,null,""]
[null,"",null,null,null,null,null,"",null,null,null,null,null,"",null,null,null,""]
[null,"",null,null,null,null,null,"",null,null,null,null,null,"",null,null,null,""]
[null,"",null,null,null,null,null,"",null,null,null,null,null,"",null,null,null,""]
[null,"",null,null,null,null,null,"",null,null,null,null,null,"",null,null,null,""]
[null,"",null,null,null,null,null,"",null,null,null,null,null,"",null,null,null,""]
[null,"",null,null,null,null,null,"",null,null,null,null,null,"",null,null,null,""]
[null,"",null,null,null,null,null,"",null,null,null,null,null,"",null,null,null,""]
[null,"",null,null,null,null,null,"",null,null,null,null,null,"",null,null,null,""]
[null,"",null,null,null,null,null,"",null,null,null,null,null,"",null,null,null,""]
[null,"",null,null,null,null,null,"",null,null,null,null,null,"",null,null,null,""]
[null,"",null,null,null,null,null,"",null,null,null,null,null,"",null,null,null,""]
[null,"",null,null,null,null,null,"",null,null,null,null,null,"",null,null,null,""]
[null,"",null,null,null,null,null,"",null,null,null,null,null,"",null,null,null,""]
[null,"",null,null,null,null,null,"",null,null,null,null,null,"",null,null,null,""]
[null,"",null,null,null,null,null,"",null,null,null,null,null,"",null,null,null,""]
[null,"",null,null,null,null,null,"",null,null,null,null,null,"",null,null,null,""]
[null,"",null,null,null,null,null,"",null,null,null,null,null,"",null,null,null,""]
[null,"",null,null,null,null,null,"",null,null,null,null,null,"",null,null,null,""]
[null,"",null,null,null,null,null,"",null,null,null,null,null,"",null,null,null,""]
[null,"",null,null,null,null,null,"",null,null,null,null,null,"",null,null,null,""]
[null,"",null,null,null,null,null,"",null,null,null,null,null,"",null,null,null,""]
[null,"",null,null,null,null,null,"",null,null,null,null,null,"",null,null,null,""]
[null,"",null,null,null,null,null,"",null,null,null,null,null,"",null,null,null,""]
[null,"",null,null,null,null,null,"",null,null,null,null,null,"",null,null,null,""]
[null,"",null,null,null,null,null,"",null,null,null,null,null,"",null,null,null,""]
[null,"",null,null,null,null,null,"",null,null,null,null,null,"",null,null,null,""]
[null,"",null,null,null,null,null,"",null,null,null,null,null,"",null,null,null,""]
[null,"",null,null,null,null,null,"",null,null,null,null,null,"",null,null,null,""]
[null,{"$f":"IF(SUM(C501:G501)=0,\"\",SUM(C501:G501))","v":""},null,null,null,null,null,{"$f":"IF(SUM(I501:M501)=0,\"\",SUM(I501:M501))","v":""},null,null,null,null,null,"",null,null,null,""]
[null,"",null,null,null,null,null,"",null,null,null,null,null,"",null,null,null,""]
[null,"",null,null,null,null,null,"",null,null,null,null,null,"",null,null,null,""]
[null,"",null,null,null,null,null,"",null,null,null,null,null,"",null,null,null,""]
[null,"",null,null,null,null,null,"",null,null,null,null,null,"",null,null,null,""]
[null,"",null,null,null,null,null,"",null,null,null,null,null,"",null,null,null,""]
[null,"",null,null,null,null,null,"",null,null,null,null,null,"",null,null,null,""]
[null,"",null,null,null,null,null,"",null,null,null,null,null,"",null,null,null,""]
[null,"",null,null,null,null,null,"",null,null,null,null,null,"",null,null,null,""]
[null,"",null,null,null,null,null,"",null,null,null,null,null,"",null,null,null,""]
[null,"",null,null,null,null,null,"",null,null,null,null,null,"",null,null,null,""]
[null,"",null,null,null,null,null,"",null,null,null,null,null,"",null,null,null,""]
[null,"",null,null,null,null,null,"",null,null,null,null,null,"",null,null,null,""]
[null,"",null,null,null,null,null,"",null,null,null,null,null,"",null,null,null,""]
[null,"",null,null,null,null,null,"",null,null,null,null,null,"",null,null,null,""]
[null,"",null,null,null,null,null,"",null,null,null,null,null,"",null,null,null,""]
[null,"",null,null,null,null,null,"",null,null,null,null,null,"",null,null,null,""]
[null,"",null,null,null,null,null,"",null,null,null,null,null,"",null,null,null,""]
[null,"",null,null,null,null,null,"",null,null,null,null,null,"",null,null,null,""]
[null,"",null,null,null,null,null,"",null,null,null,null,null,"",null,null,null,""]
[null,"",null,null,null,null,null,"",null,null,null,null,null,"",null,null,null,""]
[null,"",null,null,null,null,null,"",null,null,null,null,null,"",null,null,null,""]
[null,"",null,null,null,null,null,"",null,null,null,null,null,"",null,null,null,""]
[null,"",null,null,null,null,null,"",null,null,null,null,null,"",null,null,null,""]
[null,"",null,null,null,null,null,"",null,null,null,null,null,"",null,null,null,""]
[null,"",null,null,null,null,null,"",null,null,null,null,null,"",null,null,null,""]
[null,"",null,null,null,null,null,"",null,null,null,null,null,{"$f":"IF(SUM(O527:Q527)=0,\"\",SUM(O527:Q527))","v":""},null,null,null,{"$f":"IF(SUM(S527:U527)=0,\"\",SUM(S527:U527))","v":""}]
[null,"",null,null,null,null,null,"",null,null,null,null,null,"",null,null,null,""]
[null,"",null,null,null,null,null,"",null,null,null,null,null,"",null,null,null,""]
[null,"",null,null,null,null,null,"",null,null,null,null,null,"",null,null,null,""]
[null,"",null,null,null,null,null,"",null,null,null,null,null,"",null,null,null,""]
[null,"",null,null,null,null,null,"",null,null,null,null,null,"",null,null,null,""]
[null,"",null,null,null,null,null,"",null,null,null,null,null,"",null,null,null,""]
[null,"",null,null,null,null,null,"",null,null,null,null,null,"",null,null,null,""]
[null,"",null,null,null,null,null,"",null,null,null,null,null,"",null,null,null,""]
[null,"",null,null,null,null,null,"",null,null,null,null,null,"",null,null,null,""]
[null,"",null,null,null,null,null,"",null,null,null,null,null,"",null,null,null,""]
[null,"",null,null,null,null,null,"",null,null,null,null,null,"",null,null,null,""]
[null,"",null,null,null,null,null,"",null,null,null,null,null,"",null,null,null,""]
[null,"",null,null,null,null,null,"",null,null,null,null,null,"",null,null,null,""]
[null,"",null,null,null,null,null,"",null,null,null,null,null,"",null,null,null,""]
[null,"",null,null,null,null,null,"",null,null,null,null,null,"",null,null,null,""]
[null,"",null,null,null,null,null,"",null,null,null,null,null,"",null,null,null,""]
[null,"",null,null,null,null,null,"",null,null,null,null,null,"",null,null,null,""]
[null,"",null,null,null,null,null,"",null,null,null,null,null,"",null,null,null,""]
[null,"",null,null,null,null,null,"",null,null,null,null,null,"",null,null,null,""]
[null,"",null,null,null,null,null,"",null,null,null,null,null,"",null,null,null,""]
[null,"",null,null,null,null,null,"",null,null,null,null,null,"",null,null,null,""]
[null,"",null,null,null,null,null,"",null,null,null,null,null,"",null,null,null,""]
[null,"",null,null,null,null,null,"",null,null,null,null,null,"",null,null,null,""]
[null,"",null,null,null,null,null,"",null,null,null,null,null,"",null,null,null,""]
[null,"",null,null,null,null,null,"",null,null,null,null,null,"",null,null,null,""]
[null,"",null,null,null,null,null,"",null,null,null,null,null,"",null,null,null,""]
[null,"",null,null,null,null,null,"",null,null,null,null,null,"",null,null,null,""]
[null,"",null,null,null,null,null,"",null,null,null,null,null,"",null,null,null,""]
[null,"",null,null,null,null,null,"",null,null,null,null,null,"",null,null,null,""]
[null,"",null,null,null,null,null,"",null,null,null,null,null,"",null,null,null,""]
[null,"",null,null,null,null,null,"",null,null,null,null,null,"",null,null,null,""]
[null,"",null,null,null,null,null,"",null,null,null,null,null,"",null,null,null,""]
[null,"",null,null,null,null,null,"",null,null,null,null,null,"",null,null,null,""]
[null,"",null,null,null,null,null,"",null,null,null,null,null,"",null,null,null,""]
[null,"",null,null,null,null,null,"",null,null,null,null,null,"",null,null,null,""]
[null,"",null,null,null,null,null,"",null,null,null,null,null,"",null,null,null,""]
[null,"",null,null,null,null,null,"",null,null,null,null,null,"",null,null,null,""]
[null,{"$f":"IF(SUM(C565:G565)=0,\"\",SUM(C565:G565))","v":""},null,null,null,null,null,{"$f":"IF(SUM(I565:M565)=0,\"\",SUM(I565:M565))","v":""},null,null,null,null,null,"",null,null,null,""]
[null,"",null,null,null,null,null,"",null,null,null,null,null,"",null,null,null,""]
[null,"",null,null,null,null,null,"",null,null,null,null,null,"",null,null,null,""]
[null,"",null,null,null,null,null,"",null,null,null,null,null,"",null,null,null,""]
[null,"",null,null,null,null,null,"",null,null,null,null,null,"",null,null,null,""]
[null,"",null,null,null,null,null,"",null,null,null,null,null,"",null,null,null,""]
[null,"",null,null,null,null,null,"",null,null,null,null,null,"",null,null,null,""]
[null,"",null,null,null,null,null,"",null,null,null,null,null,"",null,null,null,""]
[null,"",null,null,null,null,null,"",null,null,null,null,null,"",null,null,null,""]
[null,"",null,null,null,null,null,"",null,null,null,null,null,"",null,null,null,""]
[null,"",null,null,null,null,null,"",null,null,null,null,null,"",null,null,null,""]
[null,"",null,null,null,null,null,"",null,null,null,null,null,"",null,null,null,""]
[null,"",null,null,null,null,null,"",null,null,null,null,null,"",null,null,null,""]
[null,"",null,null,null,null,null,"",null,null,null,null,null,"",null,null,null,""]
[null,"",null,null,null,null,null,"",null,null,null,null,null,"",null,null,null,""]
[null,"",null,null,null,null,null,"",null,null,null,null,null,"",null,null,null,""]
[null,"",null,null,null,null,null,"",null,null,null,null,null,"",null,null,null,""]
[null,"",null,null,null,null,null,"",null,null,null,null,null,"",null,null,null,""]
[null,"",null,null,null,null,null,"",null,null,null,null,null,"",null,null,null,""]
[null,"",null,null,null,null,null,"",null,null,null,null,null,"",null,null,null,""]
[null,"",null,null,null,null,null,"",null,null,null,null,null,"",null,null,null,""]
[null,"",null,null,null,null,null,"",null,null,null,null,null,"",null,null,null,""]
[null,"",null,null,null,null,null,"",null,null,null,null,null,"",null,null,null,""]
[null,"",null,null,null,null,null,"",null,null,null,null,null,"",null,null,null,""]
[null,"",null,null,null,null,null,"",null,null,null,null,null,"",null,null,null,""]
[null,"",null,null,null,null,null,"",null,null,null,null,null,"",null,null,null,""]
[null,"",null,null,null,null,null,"",null,null,null,null,null,{"$f":"IF(SUM(O591:Q591)=0,\"\",SUM(O591:Q591))","v":""},null,null,null,{"$f":"IF(SUM(S591:U591)=0,\"\",SUM(S591:U591))","v":""}]
[null,"",null,null,null,null,null,"",null,null,null,null,null,"",null,null,null,""]
[null,"",null,null,null,null,null,"",null,null,null,null,null,"",null,null,null,""]
[null,"",null,null,null,null,null,"",null,null,null,null,null,"",null,null,null,""]
[null,"",null,null,null,null,null,"",null,null,null,null,null,"",null,null,null,""]
[null,"",null,null,null,null,null,"",null,null,null,null,null,"",null,null,null,""]
[null,"",null,null,null,null,null,"",null,null,null,null,null,"",null,null,null,""]
[null,"",null,null,null,null,null,"",null,null,null,null,null,"",null,null,null,""]
[null,"",null,null,null,null,null,"",null,null,null,null,null,"",null,null,null,""]
[null,"",null,null,null,null,null,"",null,null,null,null,null,"",null,null,null,""]
[null,"",null,null,null,null,null,"",null,null,null,null,null,"",null,null,null,""]
[null,"",null,null,null,null,null,"",null,null,null,null,null,"",null,null,null,""]
[null,"",null,null,null,null,null,"",null,null,null,null,null,"",null,null,null,""]
[null,"",null,null,null,null,null,"",null,null,null,null,null,"",null,null,null,""]
[null,"",null,null,null,null,null,"",null,null,null,null,null,"",null,null,null,""]
[null,"",null,null,null,null,null,"",null,null,null,null,null,"",null,null,null,""]
[null,"",null,null,null,null,null,"",null,null,null,null,null,"",null,null,null,""]
[null,"",null,null,null,null,null,"",null,null,null,null,null,"",null,null,null,""]

{"sheet":"エラー一覧","index":12,"n_rows":1,"n_cols":3,"rows_kept":1,"cut":false,"hidden":true,"merged":[]}
["シート名","セル","エラー内容"]

{"sheet":"エラー番号処理対応一覧","index":13,"n_rows":67,"n_cols":4,"rows_kept":67,"cut":false,"hidden":true,"merged":[]}
["No","モジュール","メソッド名","備考"]
["なし","InputCheckModule","ClickCheckButton"]
["001","InputCheckModule","CheckAppForm"]
["002","InputCheckModule","CheckSelectApplicationForm"]
["003","InputCheckModule","CheckCommitments"]
["004","InputCheckModule","CheckContractInformation"]
["005","InputCheckModule","CheckSendNotification"]
["006","InputCheckModule","CheckUnzipPassword"]
["007","InputCheckModule","CheckPaymentInfo"]
["008","InputCheckModule","CheckBoardSchoolInfo"]
["009","InputCheckModule","CheckSkyGiga"]
["010","InputCheckModule","CheckContents"]
["011","InputCheckModule","CheckContentsOtherCosts"]
["012","InputCheckModule","CheckContentsGrade"]
["013","InputCheckModule","CheckManahodai"]
["014","InputCheckModule","CheckTampokun"]
["015","InputCheckModule","CheckIntegratedAuthService"]
["016","InputCheckModule","CheckSchoolInfo"]
["017","InputCheckModule","CheckInput"]
["018","InputCheckModule","SetErrorComment"]
["019","InputCheckModule","ReflectErrorSht"]
["020","InputCheckModule","ClearError"]
["なし","GeneralPurposeProcessModule","SetDataEntryRule"]
["使用しているか不明","GeneralPurposeProcessModule","GetColumnIdx2Name"]
["使用しているか不明","GeneralPurposeProcessModule","CreateRange"]
["なし","GeneralPurposeProcessModule","ClickReflectAddressButton","住所反映ボタンから呼び出される"]
["なし","GeneralPurposeProcessModule","ClickReflectSubscribeInfoButton","契約情報反映ボタンから呼び出される"]
["021","GeneralPurposeProcessModule","SetBorders"]
["022","GeneralPurposeProcessModule","ProtectData"]
["023","GeneralPurposeProcessModule","UnprotectData"]
["024","GeneralPurposeProcessModule","GetAddress"]
["025","GeneralPurposeProcessModule","GetLastRow"]
["026","GeneralPurposeProcessModule","GetRangeLastRow"]
["027","GeneralPurposeProcessModule","GetLastColumn"]
["028","GeneralPurposeProcessModule","StartFunc"]
["029","GeneralPurposeProcessModule","EndFunc"]
["なし","申込書","ClickReSelectApp"]
["なし","申込書","DispContentInputRow"]
["なし","申込書","Worksheet_Change","入力内容変更"]
["？？","申込書","DispContentsInitialCost"]
["？？","申込書","DispSchoolShtContents"]
["030","申込書","CheckMonthCount"]
["031","申込書","CheckUseStartDate"]
["032","申込書","SetDefaultContentArea"]
["033","申込書","SetDefaultInitialCostArea"]
["なし","学校情報","DispSelectContentTargetForm"]
["なし","学校情報","DispReflectContentsForm"]
["なし","学校情報","Worksheet_Activate","シートがアクティブになるとき"]
["034"]
["035"]
["036"]
["037"]
["038"]
["039"]
["040"]
["041"]
["042"]
["043"]
["044"]
["045"]
["046"]
["047"]
["048"]
["049"]
["050"]
["051"]
["052"]

{"sheet":"選択肢マスタ_申込書","index":14,"n_rows":50,"n_cols":20,"rows_kept":50,"cut":false,"hidden":true,"merged":[[0,19,1,19]]}
["【申込書】申込書選択","【申込書】申込書選択","契約情報","お支払い情報","お支払い情報","GIGAタブレット契約内容","SKY安心GIGAタブレット契約内容","コンテンツ申し込み","コンテンツ申し込み","コンテンツ申し込み　初期費用","コンテンツの学年別表示設定の申し込み","まなホーダイ","まなびポケット たんぽくん申し込み","まなびポケット たんぽくん申し込み","まなびポケット たんぽくん申し込み","まなびポケット たんぽくん申し込み"," 統合認証サービス"," 統合認証サービス","スマートエデュケーション推進室　記事欄","都道府県"]
["お申し込み元","お申し込み種類","申込区分","支払方法","請求書送付先","端末種別","契約パッケージ","申し込み有無","単位","単位","申し込み有無","申し込み有無","申し込み有無","サービスプラン名","アドミスキーム","端末使用者","申し込み有無","校務支援システム名","受付種別"]
["▼プルダウンより選択してください","▼プルダウンより選択してください","▼プルダウンより選択してください","▼プルダウンより選択してください","▼プルダウンより選択してください","▼プルダウンより選択してください","▼プルダウンより選択してください","▼プルダウンより選択してください","▼選択","▼選択","▼プルダウンより選択してください","▼プルダウンより選択してください","▼プルダウンより選択してください","▼プルダウンより選択してください","▼プルダウンより選択してください","▼プルダウンより選択してください","▼プルダウンより選択してください","▼プルダウンより選択してください","▼プルダウンより選択してください","▼プルダウンより選択してください"]
["教育委員会","コンテンツ申し込み","新規","支払なし（無料）","契約者情報と同じ","Windows","基本パッケージ","申し込みする","ID","ID","申し込みする","申し込みする","申し込みする","35,000円プラン","申し込みする","児童・生徒のみ","申し込みする","多要素認証サービス_EDUCOMマネージャーC4th　＜株式会社EDUCOM＞","特記事項なし","北海道"]
["学校単独（公立）","GIGAスクールパック（基本パッケージ）","変更","支払いなし(GIGA端末費用に含む)","契約者情報と異なる","Chrome（Wifi）","応用パッケージ","申し込みしない","校","校","申し込みしない","申し込みしない","申し込みしない","40,000円プラン","申し込みしない","教職員のみ","申し込みしない","多要素認証サービス_evanix（エヴァニクス）＜スズキ教育ソフト株式会社＞","契約継続","青森県"]
["学校単独（私立国立）","GIGAスクールパック（応用パッケージ）","廃止","毎月払い",null,"iPad(Wifi)",null,"コンテンツ利用終了（無償のみ）","台","台","申し込み済み",null,null,"45,000円プラン",null,"児童・生徒と教職員",null,"多要素認証サービス_School Engine グループウェア　<株式会社システム　ディ>","トライアル","岩手県"]
[null,"MEXCBT",null,"一括（後払い）",null,"iPad(LTE)",null,null,"一式","一式",null,null,null,"50,000円プラン",null,null,null,"多要素認証サービス_School Engine 校務支援　<株式会社システム　ディ>","キャンペーン","宮城県"]
[null,"まなホーダイ",null,"一括（前払い）",null,null,null,null,null,"回",null,null,null,"55,000円プラン",null,null,null,"多要素認証サービス_Te-Comp@ss　<株式会社 文溪堂>","実証","秋田県"]
[null,"まなびポケット登録情報変更",null,"販売店経由で支払い",null,null,null,null,null,null,null,null,null,"60,000円プラン",null,null,null,"多要素認証サービス_ツムギノ（tsumugino）　＜テクマトリックス株式会社＞",null,"山形県"]
[null,null,null,"無料トライアル",null,null,null,null,null,null,null,null,null,"65,000円プラン",null,null,null,"多要素認証サービス_ミライム　＜株式会社ミライム＞",null,"福島県"]
[null,null,null,"その他（下欄へご記載ください）",null,null,null,null,null,null,null,null,null,"70,000円プラン",null,null,null,"多要素認証サービス",null,"茨城県"]
[null,null,null,null,null,null,null,null,null,null,null,null,null,"75,000円プラン",null,null,null,"認証連携サービス",null,"栃木県"]
[null,null,null,null,null,null,null,null,null,null,null,null,null,"80,000円プラン",null,null,null,null,null,"群馬県"]
[null,null,null,null,null,null,null,null,null,null,null,null,null,"85,000円プラン",null,null,null,null,null,"埼玉県"]
[null,null,null,null,null,null,null,null,null,null,null,null,null,"90,000円プラン",null,null,null,null,null,"千葉県"]
[null,null,null,null,null,null,null,null,null,null,null,null,null,"95,000円プラン",null,null,null,null,null,"東京都"]
[null,null,null,null,null,null,null,null,null,null,null,null,null,"100,000円プラン",null,null,null,null,null,"神奈川県"]
[null,null,null,null,null,null,null,null,null,null,null,null,null,"105,000円プラン",null,null,null,null,null,"新潟県"]
[null,null,null,null,null,null,null,null,null,null,null,null,null,"110,000円プラン",null,null,null,null,null,"富山県"]
[null,null,null,null,null,null,null,null,null,null,null,null,null,"115,000円プラン",null,null,null,null,null,"石川県"]
[null,null,null,null,null,null,null,null,null,null,null,null,null,"120,000円プラン",null,null,null,null,null,"福井県"]
[null,null,null,null,null,null,null,null,null,null,null,null,null,"130,000円プラン",null,null,null,null,null,"山梨県"]
[null,null,null,null,null,null,null,null,null,null,null,null,null,"180,000円プラン",null,null,null,null,null,"長野県"]
[null,null,null,null,null,null,null,null,null,null,null,null,null,null,null,null,null,null,null,"岐阜県"]
[null,null,null,null,null,null,null,null,null,null,null,null,null,null,null,null,null,null,null,"静岡県"]
[null,null,null,null,null,null,null,null,null,null,null,null,null,null,null,null,null,null,null,"愛知県"]
[null,null,null,null,null,null,null,null,null,null,null,null,null,null,null,null,null,null,null,"三重県"]
[null,null,null,null,null,null,null,null,null,null,null,null,null,null,null,null,null,null,null,"滋賀県"]
[null,null,null,null,null,null,null,null,null,null,null,null,null,null,null,null,null,null,null,"京都府"]
[null,null,null,null,null,null,null,null,null,null,null,null,null,null,null,null,null,null,null,"大阪府"]
[null,null,null,null,null,null,null,null,null,null,null,null,null,null,null,null,null,null,null,"兵庫県"]
[null,null,null,null,null,null,null,null,null,null,null,null,null,null,null,null,null,null,null,"奈良県"]
[null,null,null,null,null,null,null,null,null,null,null,null,null,null,null,null,null,null,null,"和歌山県"]
[null,null,null,null,null,null,null,null,null,null,null,null,null,null,null,null,null,null,null,"鳥取県"]
[null,null,null,null,null,null,null,null,null,null,null,null,null,null,null,null,null,null,null,"島根県"]
[null,null,null,null,null,null,null,null,null,null,null,null,null,null,null,null,null,null,null,"岡山県"]
[null,null,null,null,null,null,null,null,null,null,null,null,null,null,null,null,null,null,null,"広島県"]
[null,null,null,null,null,null,null,null,null,null,null,null,null,null,null,null,null,null,null,"山口県"]
[null,null,null,null,null,null,null,null,null,null,null,null,null,null,null,null,null,null,null,"徳島県"]
[null,null,null,null,null,null,null,null,null,null,null,null,null,null,null,null,null,null,null,"香川県"]
[null,null,null,null,null,null,null,null,null,null,null,null,null,null,null,null,null,null,null,"愛媛県"]
[null,null,null,null,null,null,null,null,null,null,null,null,null,null,null,null,null,null,null,"高知県"]
[null,null,null,null,null,null,null,null,null,null,null,null,null,null,null,null,null,null,null,"福岡県"]
[null,null,null,null,null,null,null,null,null,null,null,null,null,null,null,null,null,null,null,"佐賀県"]
[null,null,null,null,null,null,null,null,null,null,null,null,null,null,null,null,null,null,null,"長崎県"]
[null,null,null,null,null,null,null,null,null,null,null,null,null,null,null,null,null,null,null,"熊本県"]
[null,null,null,null,null,null,null,null,null,null,null,null,null,null,null,null,null,null,null,"大分県"]
[null,null,null,null,null,null,null,null,null,null,null,null,null,null,null,null,null,null,null,"宮崎県"]
[null,null,null,null,null,null,null,null,null,null,null,null,null,null,null,null,null,null,null,"鹿児島県"]
[null,null,null,null,null,null,null,null,null,null,null,null,null,null,null,null,null,null,null,"沖縄県"]

{"sheet":"選択肢マスタ_学校情報","index":15,"n_rows":10,"n_cols":11,"rows_kept":10,"cut":false,"hidden":true,"merged":[[0,1,1,1],[0,2,1,2],[0,0,1,0]]}
["まなびポケット","学校種","外部IdP連携オプション","グローバルIP","グローバルIP","ご利用中端末"," まなホーダイ","たんぽくん　"," 統合認証サービス","コンテンツ","コンテンツ"]
[null,null,null,"申し込み有無","アクセス制限対象","選択肢","申し込み有無","申し込み有無","申し込み有無","学年別表示設定","継続の有無"]
["既存環境あり","小学校","Google Workspace連携を申し込む","申し込みする","児童・生徒のみ","○","申し込みする","申し込みする","申し込みする","申し込みする","新規"]
["既存環境あり（住所変更）","中学校","Microsoft Azure AD連携を申し込む","申し込みしない","全校",null,"申し込みしない","申し込みしない","申し込みしない","申し込みしない","新規(切替)"]
["既存環境なし","義務教育学校","利用中（Google、IdP連携メールアドレス変更あり）","申し込み済み",null,null,"申し込み済み（既契約あり）","申し込み済み（既契約あり）","申し込み済み（既契約あり）","申し込み済み","継続"]
["廃止","高等学校","利用中（Google、IdP連携メールアドレス変更なし）",null,null,null,"申し込みする（既契約ありで追加申し込み）","申し込みする（既契約ありで追加申し込み）","申し込みする（既契約ありで追加申し込み）"]
[null,"中等教育学校","利用中（Azure、IdP連携メールアドレス変更あり）"]
[null,"特別支援学校","利用中（Azure、IdP連携メールアドレス変更なし）"]
[null,"その他","申し込みしない"]
[null,null,"利用停止"]

{"sheet":"選択肢マスタ_その他","index":16,"n_rows":10,"n_cols":1,"rows_kept":10,"cut":false,"hidden":true,"merged":[[0,19,1,19]]}
["★GIGA研修シート"]
["希望する研修期間"]
["▼プルダウンより選択してください"]
["今年度4～6月"]
["今年度7～8月"]
["今年度9月～12月"]
["今年度1月～3月"]
["来年度4月～6月"]
["YYYY/MM/DD　～　YYYY/MM/DD"]
["未定"]

{"sheet":"表示シートマスタ","index":17,"n_rows":16,"n_cols":16,"rows_kept":16,"cut":false,"hidden":true,"merged":[[0,1,0,15],[2,1,2,15]]}
[null,"申込書種類"]
["シート名が色ついているものは基本的に●を設定すること","コンテンツ申し込み","GIGAスクールパック（基本パッケージ）","GIGAスクールパック（応用パッケージ）","MEXCBT","まなホーダイ","まなびポケット登録情報変更"]
["シート名","表示したいシートに●を付けてください（順番は固定です）"]
["ご記入にあたって","●","●","●","●","●","●","●","●","●","●","●","●","●","●","●"]
["記入マニュアル","●","●","●","●","●","●","●","●","●","●","●","●","●","●","●"]
["申込書","●","●","●","●","●","●","●","●","●","●","●","●","●","●","●"]
["学校情報","●","●","●","●","●","●","●","●","●","●","●","●","●","●","●"]
["GIGA研修希望調書"]
["選択肢マスタ_申込書"]
["選択肢マスタ_学校情報"]
["コンテンツ＆備考マスタ"]
["承諾項目マスタ"]
["表示シートマスタ"]
["コンテンツプルダウン用"]
["GIGAスクールパック申込別紙",null,"●","●"]
["【社内用】社内受付情報","●","●","●","●","●","●","●","●","●","●","●","●","●","●","●"]

{"sheet":"コンテンツ＆備考マスタ","index":18,"n_rows":91,"n_cols":19,"rows_kept":91,"cut":false,"hidden":true,"merged":[[0,8,0,18]]}
["【申込書】コンテンツ申し込み",null,"【学校情報】学年別設定","【申込書】有料コンテンツ","【申込書】コンテンツ　初期費用","【申込書】コンテンツ　利用料","【申込書】コンテンツ　利用料","【申込書】コンテンツ　利用料","パッケージに紐づくコンテンツ制御（常にこのシートの一番右端においてください。何列目から処理するかは定数で保持しているので、変更あったら要修正）"]
["コンテンツ名","備考","学年別設定可否","有料コンテンツ","初期費用設定","教職員向けコンテンツ\n(設定条件あり)","教育委員会向けコンテンツ\n(設定条件なし)","コンテンツ申し込み","GIGAスクールパック（基本パッケージ）","GIGAスクールパック（応用パッケージ）","MEXCBT","まなホーダイ","まなびポケット登録情報変更"]
["▼プルダウンより選択してください",null,null,null,"●",null,null,"●","●","●","●","●","●","●","●","●","●","●","●"]
["eboard","国立学校、公立学校のみ無料提供。私立学校がご利用の場合は有料です。","不可",null,null,null,null,"●",null,null,"●"]
["EEvideo公立高校入試 読解トレーニング",null,"不可",null,null,null,null,"●","●","●","●","●"]
["EEvideo大学共通テスト 読解トレーニング",null,"不可",null,null,null,null,"●","●","●","●","●"]
["BANSHOT",null,"不可",null,null,"●",null,"●",null,null,"●"]
["Google",null,"不可",null,null,null,null,"●","●","●","●","●"]
["MEXCBT","※文部科学省CBTシステム運用支援サイトのお申し込みを完了している場合のみ、お申し込み可能","可",null,null,null,null,null,null,null,"●"]
["Microsoft 365",null,"不可",null,null,null,null,"●","●","●","●","●"]
["NHK for School",null,"不可",null,null,null,null,"●","●","●","●","●"]
["学研まんがひみつ文庫",null,"不可",null,null,null,null,"●","●","●","●","●"]
["防災学習ポータルサイト",null,"不可",null,null,null,null,"●",null,null,"●","●"]
["ロイロノート・スクール（リンクアイコン）","※ご利用校がロイロノートの利用契約があることが提供条件です。\nロイロノートのご契約状況およびお問い合わせはロイロノートSupport（「ご利用にあたって」のその他欄参照）へご確認ください。","不可",null,null,null,null,"●","●","●","●","●"]
["AIAIモンキー",null,"可","●","●",null,null,"●",null,"●"]
["DONGRI 小学生セット",null,"可","●",null,null,null,"●",null,"●"]
["DONGRI 日本大百科全書付き 中学生セット",null,"可","●",null,null,null,"●",null,"●"]
["English Central　小学校ライセンス",null,"可","●",null,null,null,"●",null,"●"]
["English Central　中学校・高校ライセンス",null,"可","●",null,null,null,"●",null,"●"]
["English Central　高等専門学校ライセンス",null,"可","●",null,null,null,"●",null,"●",null,"●"]
["English Central　小・中・高 AIチャットオプション","English Centralの小学校ライセンスまたは中学校・高校ライセンスのお申し込みが必要です。","可","●",null,null,null,"●",null,"●",null,"●"]
["English Central　高等専門学校 AIチャットオプション","English Centralの高等専門学校ライセンスのお申し込みが必要です。","可","●",null,null,null,"●",null,"●",null,"●"]
["English Central　小・中学校 教科書準拠オプション(啓林館)","English Centralの小学校ライセンスまたは中学校・高校ライセンスのお申し込みが必要です。","可","●",null,null,null,"●",null,"●",null,"●"]
["English Central　中学校 教科書準拠オプション(三省堂、東京書籍、開隆堂)","English Centralの中学校・高校ライセンスのお申し込みが必要です。","可","●",null,null,null,"●",null,"●",null,"●"]
["English Central　高校 教科書準拠オプション(三省堂、東京書籍、桐原書店)","English Centralの中学校・高校ライセンスのお申し込みが必要です。","可","●",null,null,null,"●",null,"●",null,"●"]
["MIMデジタル版","教職員向けコンテンツ「ＭＩＭ学習履歴」が提供されます。","可","●",null,null,null,"●",null,"●",null,"●"]
["navima","教職員向けコンテンツ「navima(先生用)」が提供されます。\n利用期間の単位は年度です。終了日は年度末をご記入ください。","可","●",null,null,null,"●",null,"●"]
["Sagasokka!",null,"可","●",null,null,null,"●"]
["SKYMENU Cloud Professional Edition","教職員、児童・生徒ともに課金対象です。","可","●","●",null,null,"●",null,"●",null,"●"]
["SKYMENU Cloud Professional Edition_保護者向け連絡オプション","SKYMENU Cloud Professional Editionのご利用ID数とご利用期間を合わせてご記入ください。","可","●",null,null,null,"●",null,"●",null,"●"]
["SKYMENU Cloud Professional Edition_ディスク容量(1TB)追加オプション","SKYMENU Cloud Professional Editionのご利用期間と合わせてご記入ください。","可","●",null,null,null,"●",null,"●",null,"●"]
["Weblio Study 通常コース",null,"可","●",null,null,null,"●",null,"●",null,"●"]
["Weblio Study 通常コース＋AI Writing Pro/AI Speaking Pro",null,"可","●",null,null,null,"●",null,"●",null,"●"]
["Weblio Study AI ライティングコース＋AI Writing Pro/AI Speaking Pro",null,"可","●",null,null,null,"●",null,"●",null,"●"]
["WEBQU（アンケート実施２回）","利用期間の単位は年度です。終了日は年度末をご記入ください。","可","●","●",null,null,"●",null,"●",null,"●"]
["WEBQU（アンケート実施３回）","利用期間の単位は年度です。終了日は年度末をご記入ください。","可","●","●",null,null,"●",null,"●",null,"●"]
["WEBQU（アンケート実施追加１回）","利用期間の単位は年度です。終了日は年度末をご記入ください。","可","●",null,null,null,"●",null,"●",null,"●"]
["WEBQU（学力クロス機能）","※全学年が学力クロスの対象ではない場合、対象となる学年を学校情報シートのWEBQU（学力クロス機能）の対象学年にご入力ください。\n利用期間の単位は年度です。終了日は年度末をご記入ください。","可","●","●",null,null,"●",null,"●",null,"●"]
["WEBQU（教育委員会機能）","教育委員会向けの機能です。\n教育委員会によるお申し込みに限り選択可能です。\n利用期間の単位は年度です。終了日は年度末をご記入ください。","不可",null,null,null,"●","●",null,"●",null,"●"]
["きょうしつでビスケット","利用期間の単位は年度です。終了日は年度末をご記入ください。","可","●",null,null,null,"●",null,"●"]
["ゴールドフィンガー スクール　キッズ",null,"可","●",null,null,null,"●",null,"●",null,"●"]
["コラボノートEX for まなびポケット",null,"可","●",null,null,null,"●",null,"●"]
["事例で学ぶNetモラル for まなびポケット",null,"可","●",null,null,null,"●",null,"●"]
["事例で学ぶNetモラル（eラーニング） for まなびポケット",null,"可","●",null,null,null,"●",null,"●"]
["すいスタ♪ for まなびポケット",null,"可","●",null,null,null,"●",null,"●"]
["スクールタクト",null,"可","●",null,null,null,"●",null,"●"]
["すらら","「私立学校向け：初期導入料」、「公立学校向け：振り返りセッション（学期別）」、「公立学校向け：利活用促進サポートパック」、「公立学校向け：成果分析サポートパック」の費用はその他費用にご記入ください。","可","●","●",null,null,"●",null,"●",null,"●"]
["すららドリル",null,"可","●","●",null,null,"●",null,"●",null,"●"]
["デキタス",null,"可","●","●",null,null,"●",null,"●"]
["虹色ボックス",null,"可","●","●",null,null,"●",null,"●"]
["ノウン",null,"可","●",null,null,null,"●",null,"●",null,"●"]
["ピクチャーキッズ for まなびポケット",null,"可","●",null,null,null,"●",null,"●"]
["ブリタニカ・スクールエディション 小学生版",null,"可","●",null,null,null,"●",null,"●",null,"●"]
["ブリタニカ・スクールエディション 中学生版",null,"可","●",null,null,null,"●",null,"●",null,"●"]
["まなびスタンプ",null,"可","●",null,null,null,"●",null,"●"]
["まなびスタンプ プログラミング",null,"可","●",null,null,null,"●",null,"●"]
["ミライシード","※ミライシードをお申し込みの場合はコンテンツ合計金額をご記入ください（ミライシードの各コンテンツの金額の入力は不要です。）","不可","●",null,null,"●","●",null,"●",null,"●"]
["ミライシード Challenge English","対象学年：小学3～6年生 対象学年以外は利用不可\n「Speaking Quest」のお申し込みが必要です。","可","●",null,null,null,"●",null,"●",null,"●"]
["ミライシード RPDCA","「オクリンク／ムーブノート」いずれかのお申し込みが必要です。\n申し込み不要の場合は数量を「０」にしてください。","可","●",null,null,null,"●",null,"●",null,"●"]
["ミライシード Speaking Quest","対象学年：小学5～6年生 対象学年以外は利用不可。\n※本コンテンツをお申し込みの際は「Challenge English」も申し込みコンテンツとして選択してください。","可","●",null,null,null,"●",null,"●",null,"●"]
["ミライシード オクリンク","教職員向け無料バンドルコンテンツ「カルテ」、「RPDCA」がお申し込み可能です。","可","●",null,null,null,"●",null,"●",null,"●"]
["ミライシード オクリンクプラス",null,"可","●",null,null,null,"●",null,"●",null,"●"]
["ミライシード 学習探検ナビ","本コンテンツのお申し込みはNTTドコモビジネスとの事前合意が必要です。ミライシードのコンテンツおよび「ベネッセICT支援サービス」を導入している自治体（学校）のみ利用可能です。","可","●",null,null,null,"●",null,"●",null,"●"]
["ミライシード カルテ","「オクリンク／ドリルパーク／ムーブノート」いずれかのお申し込みが必要です。\n申し込み不要の場合は数量を「０」にしてください。","不可","●",null,"●",null,"●",null,"●",null,"●"]
["ミライシード 情報活用能力（プログラミング）","ミライシードのコンテンツおよび「ベネッセICT支援サービス」を導入している自治体（学校）のみ利用可能です。","可","●",null,null,null,"●",null,"●",null,"●"]
["ミライシード テストパーク","お申し込みとご利用にあたっては事前に株式会社ベネッセコーポレーションの承諾が必要です。\n「ドリルパーク」のお申し込みが必要です。","可","●",null,null,null,"●",null,"●",null,"●"]
["ミライシード ドリルパーク","教職員向け無料バンドルコンテンツ「カルテ」がお申し込み可能です。","可","●",null,null,null,"●",null,"●",null,"●"]
["ミライシード 話し合いトレーニング","「ムーブノート」のお申し込みが必要です。\n申し込み不要の場合は数量を「０」にしてください。","可","●",null,null,null,"●",null,"●",null,"●"]
["ミライシード まるぐランド for school","対象学年：小学1～6年生","可","●",null,null,null,"●",null,"●",null,"●"]
["ミライシード ムーブノート","教職員向け無料バンドルコンテンツ「カルテ」、「話し合いトレーニング」、「RPDCA」がお申し込み可能です。","可","●",null,null,null,"●",null,"●",null,"●"]
["ミライシード ラボ","教職員向けのコンテンツです。","不可","●",null,"●",null,"●",null,"●",null,"●"]
["みんなの学習クラブfor まなびポケット\n（中学校パック）",null,"可","●",null,null,null,"●",null,"●"]
["みんなの学習クラブfor まなびポケット\n（小・中学校パック）",null,"可","●",null,null,null,"●",null,"●"]
["みんなの学習クラブfor まなびポケット\n（小学校パック）",null,"可","●",null,null,null,"●",null,"●"]
["ラインズeライブラリ for まなびポケット",null,"可","●","●",null,null,"●",null,"●",null,"●"]
["ラインズeライブラリアドバンス for まなびポケット",null,"可","●","●",null,null,"●",null,"●",null,"●"]
["ラインズeライブラリアドバンス for まなびポケット 中学校プリントパック","ラインズeライブラリアドバンス for まなびポケットをお申込の方のみ申込可能です。ID数は同数を記載ください。","可","●","●",null,null,"●",null,"●",null,"●"]
["ラインズeライブラリアドバンス for まなびポケット 小学校プリントパック","ラインズeライブラリアドバンス for まなびポケットをお申込の方のみ申込可能です。ID数は同数を記載ください。","可","●","●",null,null,"●",null,"●",null,"●"]
["リーディングスキルテスト_2025年度版（受検実施１回）","利用期間の単位は年度です。終了日は年度末をご記入ください。","可","●",null,null,null,"●",null,"●",null,"●"]
["リーディングスキルテスト_2025年度版（受検実施２回）","利用期間の単位は年度です。終了日は年度末をご記入ください。","可","●",null,null,null,"●",null,"●",null,"●"]
["リーディングスキルテスト_2025年度版（受検実施追加１回）","すでにリーディングスキルテスト_2025年度版を申込済みの方のみ申込可能です。\n利用期間の単位は年度です。終了日は年度末をご記入ください。","可","●",null,null,null,"●",null,"●",null,"●"]
["リアテンダント（小学校向け）","別途日図協各社必要","不可","●","●","●",null,"●",null,"●",null,"●"]
["リアテンダント（中学校・高校向け）",null,"不可","●","●","●",null,"●",null,"●",null,"●"]
["辞書教材サービスBrain+【中高パック】",null,"可","●",null,null,null,"●",null,"●",null,"●"]
["辞書教材サービスBrain+【高校パック】",null,"可","●",null,null,null,"●",null,"●",null,"●"]
["辞書教材サービスBrain+【中学パック】",null,"可","●",null,null,null,"●",null,"●",null,"●"]
["辞書教材サービスBrain+エースクラウンパック ユーザーライセンス",null,"可","●",null,null,null,"●",null,"●",null,"●"]
["辞書教材サービスBrain+エースクラウンパック 学校ライセンス",null,"可","●",null,null,null,"●",null,"●",null,"●"]
["みんなでプログラミング","現在ご契約中の自治体のお申し込みに限り受付可能","可","●",null,null,null,"●"]
["Adobe Express","現在ご契約中の自治体のお申し込みに限り受付可能","可","●",null,null,null,"●"]
["まなびポケット有償版ダッシュボード（ベーシック）",null,"不可","●",null,"●",null,"●"]

{"sheet":"承諾項目マスタ","index":19,"n_rows":9,"n_cols":7,"rows_kept":9,"cut":false,"hidden":true,"merged":[[0,1,0,9],[2,1,2,9]]}
[null,"申込書種類"]
["※申込種類一つにつき、表示できる承諾項目は15個までです。それ以上必要な場合はコードを修正する必要があります。","コンテンツ申し込み","GIGAスクールパック（基本パッケージ）","GIGAスクールパック（応用パッケージ）","MEXCBT","まなホーダイ","まなびポケット登録情報変更"]
["承諾項目文言（全角68文字まで。改行不可）","表示順（表示したい文言に表示順に1から番号を振ってください。最大15個まで）"]
["NTTドコモビジネス株式会社の定める『教育クラウドプラットフォーム「まなびポケット」利用規約』に同意し下記のとおり申し込みます。",1,1,1,1,1]
["『教育クラウドプラットフォームサービス「まなびポケット」 重要事項説明』の内容を承諾します。",2,2,2,2,2]
["本サービス利用のために登録する情報の取扱について、関係する法令、規則および手続き(個人情報保護に関連するものを含む)を遵守しています。",3,3,3,3,3]
["『GIGAスクールパック コンテンツ提供条件』の内容を承諾します。",null,4,4]
["文部科学省CBTシステム運用支援サイトからMEXCBT利用申込済です。",null,null,null,4]
["文部科学省「オンライン学習システムの全国展開事業」のMEXCBT利用において「まなびポケット」を学習eポータルとして申し込みします。",null,null,null,5]

{"sheet":"パッケージコンテンツセット","index":20,"n_rows":1,"n_cols":3,"rows_kept":1,"cut":false,"hidden":true,"merged":[]}
["パッケージ名","コンテンツ名","期間（月数）"]

{"sheet":"コンテンツプルダウン用","index":21,"n_rows":9,"n_cols":3,"rows_kept":9,"cut":false,"hidden":true,"merged":[]}
["コンテンツ　利用料","コンテンツ　その他費用","※このシートはコンテンツのプルダウンを設定するためにマクロで利用します。\n　そのため、このシートに対して一切手を入れないでください。"]
["▼プルダウンより選択してください","▼プルダウンより選択してください"]
["EEvideo公立高校入試 読解トレーニング"]
["EEvideo大学共通テスト 読解トレーニング"]
["Google"]
["Microsoft 365"]
["NHK for School"]
["学研まんがひみつ文庫"]
["ロイロノート・スクール（リンクアイコン）"]